Workbook

Sheet Select an authority
A1: 1
A2: Selecting an Authority and its Standard Comparator Authorities
A3: PLEASE REMEMBER TO 'ENABLE MACROS' - | E3: Please select a Local Authority:
A4: THEY MAY HAVE BEEN DISABLED.
A5: Last updated: 23/05/2023
A7: Children Looked After publications can be found at:-
A8: Children's Social Work Statistics
A11: To help comparisons between local authorities, we have used the comparators as calculated by HMIE in 2003.
A12: These were determined by comparing a number of statistical measures between education authorities, such as unemployment rates, looked after children rates, % owner-occupied properties etc. In order to determine the weight that can be given to comparisons between the local authority and its group, a star rating was introduced which indicates the ‘closeness’ of a particular authority to each member; five stars indicating extremely close and one star indicating not close:
A13: ***** | B13: Extremely Close
A14: **** | B14: Very Close
A15: *** | B15: Close
A16: ** | B16: Somewhat Close
A17: * | B17: Not close
A19: =OFFSET('REF EA Name'!B35,'Select an authority'!A1,0) -> 0
A21: Comparators | B21: Rating
A22: =OFFSET('REF CAS2'!$C$1,'Select an authority'!$A$1,0) -> City of Edinburgh | B22: =OFFSET('REF CAS2'!$D$1,'Select an authority'!$A$1,0) -> ****
A23: =OFFSET('REF CAS2'!$E$1,'Select an authority'!$A$1,0) -> Dundee City | B23: =OFFSET('REF CAS2'!$F$1,'Select an authority'!$A$1,0) -> ***
A24: =OFFSET('REF CAS2'!$G$1,'Select an authority'!$A$1,0) -> South Ayrshire | B24: =OFFSET('REF CAS2'!$H$1,'Select an authority'!$A$1,0) -> ***
A25: =OFFSET('REF CAS2'!$I$1,'Select an authority'!$A$1,0) -> Argyll and Bute | B25: =OFFSET('REF CAS2'!$J$1,'Select an authority'!$A$1,0) -> ***
A26: =OFFSET('REF CAS2'!$K$1,'Select an authority'!$A$1,0) -> Renfrewshire | B26: =OFFSET('REF CAS2'!$L$1,'Select an authority'!$A$1,0) -> ***
A27: Note: Caution should be exercised when making comparisons with comparator authority averages if there are a number of authorities that are not extremely or very close.

Sheet CLA total number
A1: ='DATA CLA'!A1 -> Looked after children on 31 July, 2016 to 2022
B2: select comparators:
A3: =J3 -> 5 | J3: =VLOOKUP('Select an authority'!$A$1,'REF CAs'!$A$1:$F$32,2,0) -> 5
A4: =J4 -> 8 | J4: =VLOOKUP('Select an authority'!$A$1,'REF CAs'!$A$1:$F$32,3,0) -> 8
A5: =J5 -> 28 | J5: =VLOOKUP('Select an authority'!$A$1,'REF CAs'!$A$1:$F$32,4,0) -> 28
A6: 27 | J6: =VLOOKUP('Select an authority'!$A$1,'REF CAs'!$A$1:$F$32,5,0) -> 4
A7: 31 | J7: =VLOOKUP('Select an authority'!$A$1,'REF CAs'!$A$1:$F$32,6,0) -> 25
A12: =IF(AA22="N/A","[text statement not available due to data being unavailable]",IF(Y22="N/A","[text statement not available due to data being unavailable]",IF(AA22="*","[text statement not available due to suppression of data for confidentiality]",IF(Y22="","[text statement not available due to suppression of data for confidentiality]","* The number of children looked after in "&A22&" in "&AA20&" was "&ROUND(AA22,0)&" ("&Y44&ROUND((SQRT((Y22*100)^2)),1)&"% from "&ROUND(V22,0)&" in "&V20&")")))) -> * The number of children looked after in Aberdeen City in 2022 was 480 (a decrease of 7% from 516 in 2021)
A13: =IF(Y31="","[text statement not available due to suppression of data for confidentiality]","* The comparator authorities show "&Y46&ROUND(SQRT((Y31*100)^2),1)&"%, while the Scotland figures show "&Y47&ROUND(SQRT((100*Y33)^2),1)&"%") -> * The comparator authorities show a decrease of 3.7%, while the Scotland figures show a decrease of 4.6%
A14: =IF(AA22="N/A","[text statement not available due to data being unavailable]",IF(AC22="N/A","[text statement not available due to data being unavailable]",IF(AA22="","[text statement not available due to suppression of data for confidentiality]",IF(AC22="*","[text statement not available due to suppression of data for confidentiality]","* The rate (per 1,000 pop 0-17) is "&ROUND(AC22,1)&". This is "&AD40&" the comparator average rate of "&ROUND(AC31,1)&", and "&AD41&" the Scotland average rate of "&ROUND(AC33,1))))) -> * The rate (per 1,000 pop 0-17) is 12.1. This is less than the comparator average rate of 13.6, and similar to the Scotland average rate of 12.3
B20: ='DATA CLA'!C5 -> 2017 | C20: 2017 | D20: 2017 | E20: 2017 | G20: ='DATA CLA'!D5 -> 2018 | H20: 2018 | I20: 2018 | J20: 2018 | L20: ='DATA CLA'!E5 -> 2019 | M20: 2019 | N20: 2019 | O20: 2019 | Q20: ='DATA CLA'!F5 -> 2020 | R20: 2020 | S20: 2020 | T20: 2020 | V20: ='DATA CLA'!G5 -> 2021 | W20: 2021 | X20: 2021 | Y20: 2021 | AA20: ='DATA CLA'!H5 -> 2022 | AB20: 2022 | AC20: 2022
B21: Number | C21: Population 0-17 | D21: Rate | E21: Percentage change | G21: Number | H21: Population 0-17 | I21: Rate | J21: Percentage change | L21: Number | M21: Population 0-17 | N21: Rate | O21: Percentage change | Q21: Number | R21: Population 0-17 | S21: Rate | T21: Percentage change | V21: Number | W21: Population 0-17 | X21: Rate | Y21: Percentage change | AA21: Number | AB21: Population 0-17 | AC21: Rate
A22: =OFFSET('REF EA Name'!$B$2,'Select an authority'!$A$1,0) -> Aberdeen City | B22: =IF(OFFSET('DATA CLA'!$C$5,'Select an authority'!$A$1,0)="","N/A",OFFSET('DATA CLA'!$C$5,'Select an authority'!$A$1,0)) -> 590 | C22: =VLOOKUP($A$22,'DATA CLA'!$A$6:$P$37,11,FALSE) -> 38221 | D22: =IF(OFFSET('DATA CLA'!$T$5,'Select an authority'!$A$1,0)="","N/A",OFFSET('DATA CLA'!$T$5,'Select an authority'!$A$1,0)) -> 15.43654012 | E22: =IF(B22="N/A","N/A",IF(G22="N/A","N/A",IF(B22=0,"",G22/B22-1))) -> -0.06949152542 | G22: =IF(OFFSET('DATA CLA'!$D$5,'Select an authority'!$A$1,0)="","N/A",OFFSET('DATA CLA'!$D$5,'Select an authority'!$A$1,0)) -> 549 | H22: =VLOOKUP($A$22,'DATA CLA'!$A$6:$P$37,12,FALSE) -> 38418 | I22: =IF(OFFSET('DATA CLA'!$U$5,'Select an authority'!$A$1,0)="","N/A",OFFSET('DATA CLA'!$U$5,'Select an authority'!$A$1,0)) -> 14.29017648 | J22: =IF(G22="N/A","N/A",IF(L22="N/A","N/A",IF(G22=0,"",L22/G22-1))) -> -0.01275045537 | L22: =IF(OFFSET('DATA CLA'!$E$5,'Select an authority'!$A$1,0)="","N/A",OFFSET('DATA CLA'!$E$5,'Select an authority'!$A$1,0)) -> 542 | M22: =VLOOKUP($A$22,'DATA CLA'!$A$6:$P$37,13,FALSE) -> 38966 | N22: =IF(OFFSET('DATA CLA'!$V$5,'Select an authority'!$A$1,0)="","N/A",OFFSET('DATA CLA'!$V$5,'Select an authority'!$A$1,0)) -> 13.90956218 | O22: =IF(L22="N/A", "N/A",IF(Q22="N/A", "N/A", IF(L22=0,"",Q22/L22-1))) -> 0.0442804428 | Q22: =IF(OFFSET('DATA CLA'!$F$5,'Select an authority'!$A$1,0)="","N/A",OFFSET('DATA CLA'!$F$5,'Select an authority'!$A$1,0)) -> 566 | R22: =VLOOKUP($A$22,'DATA CLA'!$A$6:$P$37,14,FALSE) -> 39401 | S22: =IF(OFFSET('DATA CLA'!$W$5,'Select an authority'!$A$1,0)="","N/A",OFFSET('DATA CLA'!$W$5,'Select an authority'!$A$1,0)) -> 14.36511764 | T22: =IF(Q22="N/A","N/A",IF(V22="N/A", "N/A",IF(Q22=0,"",V22/Q22-1))) -> -0.08833922261 | V22: =IF(OFFSET('DATA CLA'!$G$5,'Select an authority'!$A$1,0)="","N/A",OFFSET('DATA CLA'!$G$5,'Select an authority'!$A$1,0)) -> 516 | W22: =VLOOKUP($A$22,'DATA CLA'!$A$6:$P$37,15,FALSE) -> 39663 | X22: =IF(OFFSET('DATA CLA'!$X$5,'Select an authority'!$A$1,0)="","N/A",OFFSET('DATA CLA'!$X$5,'Select an authority'!$A$1,0)) -> 13.00960593 | Y22: =IF(V22="N/A","N/A", IF(AA22="N/A", "N/A",IF(V22=0,"",AA22/V22-1))) -> -0.06976744186 | AA22: =IF(OFFSET('DATA CLA'!$H$5,'Select an authority'!$A$1,0)="","N/A",OFFSET('DATA CLA'!$H$5,'Select an authority'!$A$1,0)) -> 480 | AB22: =VLOOKUP($A$22,'DATA CLA'!$A$6:$P$37,16,FALSE) -> 39663 | AC22: =IF(OFFSET('DATA CLA'!$Y$5,'Select an authority'!$A$1,0)="","N/A",OFFSET('DATA CLA'!$Y$5,'Select an authority'!$A$1,0)) -> 12.101959
A24: Comparator Authorities:
A25: =OFFSET('REF EA Name'!$B$2, A3,0) -> City of Edinburgh | B25: =IF(OFFSET('DATA CLA'!$C$5,A3,0)="","N/A", IF(A3<33,OFFSET('DATA CLA'!$C$5,A3,0),"")) -> 1349 | C25: =OFFSET('DATA CLA'!$K$5,A3,0) -> 86478 | D25: =IF(B25="N/A","N/A", IF(B25=0,0,IF(A3<33,B25*1000/C25,""))) -> 15.59934319 | E25: =IF(B25="N/A","N/A",IF(G25="N/A", "N/A", IF($A3=33,"",IF(B25=0,"",G25/B25-1)))) -> -0.02965159377 | G25: =IF(OFFSET('DATA CLA'!$D$5,A3,0)="","N/A", IF(A3<33,OFFSET('DATA CLA'!$D$5,A3,0),"")) -> 1309 | H25: =OFFSET('DATA CLA'!$L$5,A3,0) -> 86866 | I25: =IF(G25="N/A","N/A", IF(G25=0,0,IF(A3<33,G25*1000/H25,""))) -> 15.06918702 | J25: =IF(G25="N/A","N/A", IF(L25="N/A", "N/A",IF($A3=33,"",IF(G25=0,"",L25/G25-1)))) -> -0.05729564553 | L25: =IF(OFFSET('DATA CLA'!$E$5,A3,0)="","N/A", IF(A3<33,OFFSET('DATA CLA'!$E$5,A3,0),"")) -> 1234 | M25: =OFFSET('DATA CLA'!$M$5,A3,0) -> 87481 | N25: =IF(L25="N/A","N/A", IF(L25=0,0,IF(A3<33,L25*1000/M25,""))) -> 14.10592014 | O25: =IF(L25="N/A","N/A", IF(Q25="N/A", "N/A",IF($A3=33,"",IF(L25=0,"",Q25/L25-1)))) -> -0.04376012966 | Q25: =IF(OFFSET('DATA CLA'!$F$5,A3,0)="","N/A", IF(A3<33,OFFSET('DATA CLA'!$F$5,A3,0),"")) -> 1180 | R25: =OFFSET('DATA CLA'!$N$5,A3,0) -> 87556 | S25: =IF(Q25="N/A","N/A", IF(Q25=0,0,IF(A3<33,Q25*1000/R25,""))) -> 13.47708895 | T25: =IF(Q25="N/A","N/A", IF(V25="N/A", "N/A",IF($A3=33,"",IF(Q25=0,"",V25/Q25-1)))) -> -0.1144067797 | V25: =IF(OFFSET('DATA CLA'!$G$5,A3,0)="","N/A", IF(A3<33,OFFSET('DATA CLA'!$G$5,A3,0),"")) -> 1045 | W25: =OFFSET('DATA CLA'!$O$5,A3,0) -> 87551 | X25: =IF(V25="N/A","N/A", IF(V25=0,0,IF(A3<33,V25*1000/W25,""))) -> 11.93590022 | Y25: =IF(V25="N/A","N/A", IF(AA25="N/A", "N/A",IF($A3=33,"",IF(V25=0,"",AA25/V25-1)))) -> -0.02870813397 | AA25: =IF(OFFSET('DATA CLA'!$H$5,A3,0)="","N/A", IF(A3<33,OFFSET('DATA CLA'!$H$5,A3,0),"")) -> 1015 | AB25: =OFFSET('DATA CLA'!$P$5,A3,0) -> 87551 | AC25: =IF(AA25="N/A","N/A", IF(AA25=0,0,IF(A3<33,AA25*1000/AB25,""))) -> 11.5932428
A26: =OFFSET('REF EA Name'!$B$2,A4,0) -> Dundee City | B26: =IF(OFFSET('DATA CLA'!$C$5,A4,0)="","N/A", IF(A4<33,OFFSET('DATA CLA'!$C$5,A4,0),"")) -> 555 | C26: =OFFSET('DATA CLA'!$K$5,A4,0) -> 26803 | D26: =IF(B26="N/A","N/A", IF(B26=0,0,IF(A4<33,B26*1000/C26,""))) -> 20.70663732 | E26: =IF(B26="N/A","N/A", IF(G26="N/A", "N/A",IF($A4=33,"",IF(B26=0,"",G26/B26-1)))) -> -0.06486486486 | G26: =IF(OFFSET('DATA CLA'!$D$5,A4,0)="","N/A", IF(A4<33,OFFSET('DATA CLA'!$D$5,A4,0),"")) -> 519 | H26: =OFFSET('DATA CLA'!$L$5,A4,0) -> 26743 | I26: =IF(G26="N/A","N/A", IF(G26=0,0,IF(A4<33,G26*1000/H26,""))) -> 19.40694761 | J26: =IF(G26="N/A","N/A", IF(L26="N/A", "N/A",IF($A4=33,"",IF(G26=0,"",L26/G26-1)))) -> -0.1078998073 | L26: =IF(OFFSET('DATA CLA'!$E$5,A4,0)="","N/A", IF(A4<33,OFFSET('DATA CLA'!$E$5,A4,0),"")) -> 463 | M26: =OFFSET('DATA CLA'!$M$5,A4,0) -> 26763 | N26: =IF(L26="N/A","N/A", IF(L26=0,0,IF(A4<33,L26*1000/M26,""))) -> 17.30000374 | O26: =IF(L26="N/A","N/A",IF(Q26="N/A", "N/A", IF($A4=33,"",IF(L26=0,"",Q26/L26-1)))) -> 0.06479481641 | Q26: =IF(OFFSET('DATA CLA'!$F$5,A4,0)="","N/A", IF(A4<33,OFFSET('DATA CLA'!$F$5,A4,0),"")) -> 493 | R26: =OFFSET('DATA CLA'!$N$5,A4,0) -> 26678 | S26: =IF(Q26="N/A","N/A", IF(Q26=0,0,IF(A4<33,Q26*1000/R26,""))) -> 18.47964615 | T26: =IF(Q26="N/A","N/A",IF(V26="N/A", "N/A", IF($A4=33,"",IF(Q26=0,"",V26/Q26-1)))) -> -0.1135902637 | V26: =IF(OFFSET('DATA CLA'!$G$5,A4,0)="","N/A", IF(A4<33,OFFSET('DATA CLA'!$G$5,A4,0),"")) -> 437 | W26: =OFFSET('DATA CLA'!$O$5,A4,0) -> 26530 | X26: =IF(V26="N/A","N/A", IF(V26=0,0,IF(A4<33,V26*1000/W26,""))) -> 16.47191858 | Y26: =IF(V26="N/A","N/A",IF(AA26="N/A", "N/A", IF($A4=33,"",IF(V26=0,"",AA26/V26-1)))) -> -0.004576659039 | AA26: =IF(OFFSET('DATA CLA'!$H$5,A4,0)="","N/A", IF(A4<33,OFFSET('DATA CLA'!$H$5,A4,0),"")) -> 435 | AB26: =OFFSET('DATA CLA'!$P$5,A4,0) -> 26530 | AC26: =IF(AA26="N/A","N/A", IF(AA26=0,0,IF(A4<33,AA26*1000/AB26,""))) -> 16.39653223
A27: =OFFSET('REF EA Name'!$B$2,A5,0) -> South Ayrshire | B27: =IF(OFFSET('DATA CLA'!$C$5,A5,0)="","N/A", IF(A5<33,OFFSET('DATA CLA'!$C$5,A5,0),"")) -> 370 | C27: =OFFSET('DATA CLA'!$K$5,A5,0) -> 20082 | D27: =IF(B27="N/A","N/A", IF(B27=0,0,IF(A5<33,B27*1000/C27,""))) -> 18.42445972 | E27: =IF(B27="N/A","N/A", IF(G27="N/A", "N/A",IF($A5=33,"",IF(B27=0,"",G27/B27-1)))) -> -0.04054054054 | G27: =IF(OFFSET('DATA CLA'!$D$5,A5,0)="","N/A", IF(A5<33,OFFSET('DATA CLA'!$D$5,A5,0),"")) -> 355 | H27: =OFFSET('DATA CLA'!$L$5,A5,0) -> 19881 | I27: =IF(G27="N/A","N/A", IF(G27=0,0,IF(A5<33,G27*1000/H27,""))) -> 17.85624466 | J27: =IF(G27="N/A","N/A", IF(L27="N/A", "N/A",IF($A5=33,"",IF(G27=0,"",L27/G27-1)))) -> -0.02816901408 | L27: =IF(OFFSET('DATA CLA'!$E$5,A5,0)="","N/A", IF(A5<33,OFFSET('DATA CLA'!$E$5,A5,0),"")) -> 345 | M27: =OFFSET('DATA CLA'!$M$5,A5,0) -> 19796 | N27: =IF(L27="N/A","N/A", IF(L27=0,0,IF(A5<33,L27*1000/M27,""))) -> 17.42776318 | O27: =IF(L27="N/A","N/A", IF(Q27="N/A", "N/A",IF($A5=33,"",IF(L27=0,"",Q27/L27-1)))) -> -0.1304347826 | Q27: =IF(OFFSET('DATA CLA'!$F$5,A5,0)="","N/A",IF(A5<33,OFFSET('DATA CLA'!$F$5,A5,0),"")) -> 300 | R27: =OFFSET('DATA CLA'!$N$5,A5,0) -> 19656 | S27: =IF(Q27="N/A","N/A", IF(Q27=0,0,IF(A5<33,Q27*1000/R27,""))) -> 15.26251526 | T27: =IF(Q27="N/A","N/A",IF(V27="N/A", "N/A", IF($A5=33,"",IF(Q27=0,"",V27/Q27-1)))) -> -0.2366666667 | V27: =IF(OFFSET('DATA CLA'!$G$5,A5,0)="","N/A", IF(A5<33,OFFSET('DATA CLA'!$G$5,A5,0),"")) -> 229 | W27: =OFFSET('DATA CLA'!$O$5,A5,0) -> 19575 | X27: =IF(V27="N/A","N/A", IF(V27=0,0,IF(A5<33,V27*1000/W27,""))) -> 11.69859515 | Y27: =IF(V27="N/A","N/A",IF(AA27="N/A", "N/A", IF($A5=33,"",IF(V27=0,"",AA27/V27-1)))) -> -0.2052401747 | AA27: =IF(OFFSET('DATA CLA'!$H$5,A5,0)="","N/A", IF(A5<33,OFFSET('DATA CLA'!$H$5,A5,0),"")) -> 182 | AB27: =OFFSET('DATA CLA'!$P$5,A5,0) -> 19575 | AC27: =IF(AA27="N/A","N/A", IF(AA27=0,0,IF(A5<33,AA27*1000/AB27,""))) -> 9.297573436
A28: =OFFSET('REF EA Name'!$B$2,A6,0) -> Shetland Islands | B28: =IF(OFFSET('DATA CLA'!$C$5,A6,0)="","N/A", IF(A6<33,OFFSET('DATA CLA'!$C$5,A6,0),"")) -> 32 | C28: =OFFSET('DATA CLA'!$K$5,A6,0) -> 4771 | D28: =IF(B28="N/A","N/A", IF(B28=0,0,IF(A6<33,B28*1000/C28,""))) -> 6.707189268 | E28: =IF(B28="N/A","N/A", IF(G28="N/A", "N/A",IF($A6=33,"",IF(B28=0,"",G28/B28-1)))) -> -0.09375 | G28: =IF(OFFSET('DATA CLA'!$D$5,A6,0)="","N/A", IF(A6<33,OFFSET('DATA CLA'!$D$5,A6,0),"")) -> 29 | H28: =OFFSET('DATA CLA'!$L$5,A6,0) -> 4689 | I28: =IF(G28="N/A","N/A", IF(G28=0,0,IF(A6<33,G28*1000/H28,""))) -> 6.184687567 | J28: =IF(G28="N/A","N/A", IF(L28="N/A", "N/A",IF($A6=33,"",IF(G28=0,"",L28/G28-1)))) -> 0.1724137931 | L28: =IF(OFFSET('DATA CLA'!$E$5,A6,0)="","N/A", IF(A6<33,OFFSET('DATA CLA'!$E$5,A6,0),"")) -> 34 | M28: =OFFSET('DATA CLA'!$M$5,A6,0) -> 4691 | N28: =IF(L28="N/A","N/A", IF(L28=0,0,IF(A6<33,L28*1000/M28,""))) -> 7.247921552 | O28: =IF(L28="N/A","N/A", IF(Q28="N/A", "N/A",IF($A6=33,"",IF(L28=0,"",Q28/L28-1)))) -> -0.1764705882 | Q28: =IF(OFFSET('DATA CLA'!$F$5,A6,0)="","N/A", IF(A6<33,OFFSET('DATA CLA'!$F$5,A6,0),"")) -> 28 | R28: =OFFSET('DATA CLA'!$N$5,A6,0) -> 4674 | S28: =IF(Q28="N/A","N/A", IF(Q28=0,0,IF(A6<33,Q28*1000/R28,""))) -> 5.990586222 | T28: =IF(Q28="N/A","N/A",IF(V28="N/A", "N/A", IF($A6=33,"",IF(Q28=0,"",V28/Q28-1)))) -> -0.07142857143 | V28: =IF(OFFSET('DATA CLA'!$G$5,A6,0)="","N/A", IF(A6<33,OFFSET('DATA CLA'!$G$5,A6,0),"")) -> 26 | W28: =OFFSET('DATA CLA'!$O$5,A6,0) -> 4624 | X28: =IF(V28="N/A","N/A", IF(V28=0,0,IF(A6<33,V28*1000/W28,""))) -> 5.62283737 | Y28: =IF(V28="N/A","N/A", IF(AA28="N/A", "N/A",IF($A6=33,"",IF(V28=0,"",AA28/V28-1)))) -> 0.03846153846 | AA28: =IF(OFFSET('DATA CLA'!$H$5,A6,0)="","N/A", IF(A6<33,OFFSET('DATA CLA'!$H$5,A6,0),"")) -> 27 | AB28: =OFFSET('DATA CLA'!$P$5,A6,0) -> 4624 | AC28: =IF(AA28="N/A","N/A", IF(AA28=0,0,IF(A6<33,AA28*1000/AB28,""))) -> 5.839100346
A29: =OFFSET('REF EA Name'!$B$2,A7,0) -> West Dunbartonshire | B29: =IF(OFFSET('DATA CLA'!$C$5,A7,0)="","N/A", IF(A7<33,OFFSET('DATA CLA'!$C$5,A7,0),"")) -> 429 | C29: =OFFSET('DATA CLA'!$K$5,A7,0) -> 17656 | D29: =IF(B29="N/A","N/A", IF(B29=0,0,IF(A7<33,B29*1000/C29,""))) -> 24.29768917 | E29: =IF(B29="N/A","N/A", IF(G29="N/A", "N/A",IF($A7=33,"",IF(B29=0,"",G29/B29-1)))) -> 0.0372960373 | G29: =IF(OFFSET('DATA CLA'!$D$5,A7,0)="","N/A", IF(A7<33,OFFSET('DATA CLA'!$D$5,A7,0),"")) -> 445 | H29: =OFFSET('DATA CLA'!$L$5,A7,0) -> 17500 | I29: =IF(G29="N/A","N/A", IF(G29=0,0,IF(A7<33,G29*1000/H29,""))) -> 25.42857143 | J29: =IF(G29="N/A","N/A", IF(L29="N/A", "N/A",IF($A7=33,"",IF(G29=0,"",L29/G29-1)))) -> 0.1348314607 | L29: =IF(OFFSET('DATA CLA'!$E$5,A7,0)="","N/A", IF(A7<33,OFFSET('DATA CLA'!$E$5,A7,0),"")) -> 505 | M29: =OFFSET('DATA CLA'!$M$5,A7,0) -> 17457 | N29: =IF(L29="N/A","N/A", IF(L29=0,0,IF(A7<33,L29*1000/M29,""))) -> 28.92822364 | O29: =IF(L29="N/A","N/A",IF(Q29="N/A", "N/A", IF($A7=33,"",IF(L29=0,"",Q29/L29-1)))) -> 0.00198019802 | Q29: =IF(OFFSET('DATA CLA'!$F$5,A7,0)="","N/A", IF(A7<33,OFFSET('DATA CLA'!$F$5,A7,0),"")) -> 506 | R29: =OFFSET('DATA CLA'!$N$5,A7,0) -> 17331 | S29: =IF(Q29="N/A","N/A", IF(Q29=0,0,IF(A7<33,Q29*1000/R29,""))) -> 29.19623796 | T29: =IF(Q29="N/A","N/A",IF(V29="N/A", "N/A", IF($A7=33,"",IF(Q29=0,"",V29/Q29-1)))) -> -0.0790513834 | V29: =IF(OFFSET('DATA CLA'!$G$5,A7,0)="","N/A", IF(A7<33,OFFSET('DATA CLA'!$G$5,A7,0),"")) -> 466 | W29: =OFFSET('DATA CLA'!$O$5,A7,0) -> 17169 | X29: =IF(V29="N/A","N/A", IF(V29=0,0,IF(A7<33,V29*1000/W29,""))) -> 27.14194187 | Y29: =IF(V29="N/A", "N/A",IF(AA29="N/A","N/A", IF($A7=33,"",IF(V29=0,"",AA29/V29-1)))) -> -0.008583690987 | AA29: =IF(OFFSET('DATA CLA'!$H$5,A7,0)="","N/A", IF(A7<33,OFFSET('DATA CLA'!$H$5,A7,0),"")) -> 462 | AB29: =OFFSET('DATA CLA'!$P$5,A7,0) -> 17169 | AC29: =IF(AA29="N/A","N/A", IF(AA29=0,0,IF(A7<33,AA29*1000/AB29,""))) -> 26.90896383
A31: Comparator authorities | B31: =SUM(B25:B29) -> 2735 | C31: =SUM(C25:C29) -> 155790 | D31: =SUM(B25:B29)/SUM(C25:C29)*1000 -> 17.55568393 | E31: =IF(B31=0,"",SUM(G25:G29)/SUM(B25:B29)-1) -> -0.02851919561 | G31: =SUM(G25:G29) -> 2657 | H31: =SUM(H25:H29) -> 155679 | I31: =SUM(G25:G29)/SUM(H25:H29)*1000 -> 17.06717027 | J31: =IF(G31=0,"",SUM(L25:L29)/SUM(G25:G29)-1) -> -0.02860368837 | L31: =SUM(L25:L29) -> 2581 | M31: =SUM(M25:M29) -> 156188 | N31: =SUM(L25:L29)/SUM(M25:M29)*1000 -> 16.5249571 | O31: =IF(L31=0,"",SUM(Q25:Q29)/SUM(L25:L29)-1) -> -0.02867105773 | Q31: =SUM(Q25:Q29) -> 2507 | R31: =SUM(R25:R29) -> 155895 | S31: =SUM(Q25:Q29)/SUM(R25:R29)*1000 -> 16.0813368 | T31: =IF(Q31=0,"",SUM(V25:V29)/SUM(Q25:Q29)-1) -> -0.1212604707 | V31: =SUM(V25:V29) -> 2203 | W31: =SUM(W25:W29) -> 155449 | X31: =SUM(V25:V29)/SUM(W25:W29)*1000 -> 14.17185057 | Y31: =IF(V31=0,"",SUM(AA25:AA29)/SUM(V25:V29)-1) -> -0.03722197004 | AA31: =SUM(AA25:AA29) -> 2121 | AB31: =SUM(AB25:AB29) -> 155449 | AC31: =SUM(AA25:AA29)/SUM(AB25:AB29)*1000 -> 13.64434638
A33: Scotland | B33: ='DATA CLA'!C38 -> 14897 | C33: ='DATA CLA'!K38 -> 1030055 | D33: =B33*1000/C33 -> 14.46233454 | E33: =IF(B33=0,"",G33/B33-1) -> -0.02302477009 | G33: ='DATA CLA'!D38 -> 14554 | H33: ='DATA CLA'!L38 -> 1028798 | I33: =G33*1000/H33 -> 14.14660604 | J33: =IF(G33=0,"",L33/G33-1) -> -0.02006321286 | L33: ='DATA CLA'!E38 -> 14262 | M33: ='DATA CLA'!M38 -> 1029162 | N33: =L33*1000/M33 -> 13.8578766 | O33: =IF(L33=0,"",Q33/L33-1) -> 0.01374281307 | Q33: ='DATA CLA'!F38 -> 14458 | R33: ='DATA CLA'!$N$38 -> 1026922 | S33: =Q33*1000/R33 -> 14.07896608 | T33: =IF(Q33=0,"",V33/Q33-1) -> -0.08701065154 | V33: ='DATA CLA'!G38 -> 13200 | W33: ='DATA CLA'!$O$38 -> 1024981 | X33: =V33*1000/W33 -> 12.8782875 | Y33: =IF(V33=0,"",AA33/V33-1) -> -0.04575757576 | AA33: ='DATA CLA'!H38 -> 12596 | AB33: ='DATA CLA'!$P$38 -> 1024981 | AC33: =AA33*1000/AB33 -> 12.28900828
A35: Notes
A36: [Note 1] | B36: =IF('DATA CLA'!A40="","",'DATA CLA'!A40) -> Population figures source: NRS mid-year population estimates for 2016-2022
A37: [Note 2] | B37: =IF('DATA CLA'!A41="","",'DATA CLA'!A41) -> Source: Scottish Government CLAS Returns
Y40: =Y22-Y31 -> -0.03254547182 | AC40: =AC22-AC31 -> -1.542387373 | AD40: =IF(AC40<-0.5,"less than",IF(AC40>0.5,"greater than","similar to")) -> less than
Y41: =Y22-Y33 -> -0.0240098661 | AC41: =AC22-AC33 -> -0.1870492794 | AD41: =IF(AC41<-0.5,"less than",IF(AC41>0.5,"greater than","similar to")) -> similar to
Y43: =AA22-V22 -> -36
Y44: =IF(Y43<0,"a decrease of ",IF(Y43>=0,"an increase of ")) -> a decrease of
Y46: =IF(Y31<0,"a decrease of ",IF(Y31>=0,"an increase of ")) -> a decrease of
Y47: =IF(Y33<0,"a decrease of ",IF(Y33>=0,"an increase of ")) -> a decrease of

Sheet CLA Accommodation
A1: ='DATA CLA Acc'!A1 -> Looked after children by accommodation type on 31 July, 2019 to 2022
B2: select comparators:
A3: 31 | I3: =VLOOKUP('Select an authority'!$A$1,'REF CAs'!$A$1:$F$32,2,0) -> 5
A4: 15 | I4: =VLOOKUP('Select an authority'!$A$1,'REF CAs'!$A$1:$F$32,3,0) -> 8
A5: =I5 -> 28 | I5: =VLOOKUP('Select an authority'!$A$1,'REF CAs'!$A$1:$F$32,4,0) -> 28
A6: 9 | I6: =VLOOKUP('Select an authority'!$A$1,'REF CAs'!$A$1:$F$32,5,0) -> 4
A7: 17 | I7: =VLOOKUP('Select an authority'!$A$1,'REF CAs'!$A$1:$F$32,6,0) -> 25
A12: =IF(Z18="N/A","[text statement not available due to data being unavailable]",IF(Z18>0,"* In "&Z16&", "&ROUND(100*Z18,0)&"% of looked after children in "&A18&" were living at home with parents, "&Z41&ROUND(SQRT((100*Z37)^2),1)&"%-points over the previous year.","")) -> * In In the community, 18% of looked after children in Aberdeen City were living at home with parents, a decrease of 0.5%-points over the previous year.
A13: =IF(Z18>0,"* This compares with "&Z42&ROUND(SQRT((100*Z38)^2),1)&"%-points for comparator authorities, and "&Z43&ROUND(SQRT((100*Z39)^2),1)&"%-points for Scotland as a whole.","") -> * This compares with a decrease of 0.8%-points for comparator authorities, and a decrease of 1.7%-points for Scotland as a whole.
A14: =IF(Z18="N/A","[text statement not available due to data being unavailable]",IF(Z18>0,"* The percentage of children living at home with parents ("&ROUND(100*Z18,0)&"%) is "&Z56&" the comparator average ("&ROUND(100*Z27,0)&"%), and "&Z59&" the Scotland average ("&ROUND(100*Z29,0)&"%).","")) -> * The percentage of children living at home with parents (18%) is similar to the comparator average (18%), and less than the Scotland average (21%).
B15: ='DATA CLA Acc'!B3 -> 2019 | C15: 2019 | D15: 2019 | E15: 2019 | F15: 2019 | G15: 2019 | H15: 2019 | J15: 2020 | K15: 2020 | L15: 2020 | M15: 2020 | N15: 2020 | O15: 2020 | P15: 2020 | R15: ='DATA CLA Acc'!T3 -> 2021 | S15: 2021 | T15: 2021 | U15: 2021 | V15: 2021 | W15: 2021 | X15: 2021 | Z15: ='DATA CLA Acc'!AC3 -> 2022 | AA15: 2022 | AB15: 2022 | AC15: 2022 | AD15: 2022 | AE15: 2022 | AF15: 2022
B16: In the community | G16: In residential accommodation | J16: In the community | O16: In residential accommodation | R16: In the community | W16: In residential accommodation | Z16: In the community | AE16: In residential accommodation
B17: At home with parents | C17: With friends / relatives | D17: With foster carers provided by LA | E17: With foster carers purchased by LA | F17: In other community [Note 1] | G17: In local authority home/ Voluntary Home | H17: In other residential care [Note 2] | J17: At home with parents | K17: With friends / relatives | L17: With foster carers provided by LA | M17: With foster carers purchased by LA | N17: In other community [Note 1] | O17: In local authority home/ Voluntary Home | P17: In other residential care [Note 2] | R17: At home with parents | S17: With friends / relatives | T17: With foster carers provided by LA | U17: With foster carers purchased by LA | V17: In other community [Note 1] | W17: In local authority home/ Voluntary Home | X17: In other residential care [Note 2] | Z17: At home with parents | AA17: With friends / relatives | AB17: With foster carers provided by LA | AC17: With foster carers purchased by LA | AD17: In other community [Note 1] | AE17: In local authority home/ Voluntary Home | AF17: In other residential care [Note 2]
A18: =OFFSET('REF EA Name'!$B$2,'Select an authority'!$A$1,0) -> Aberdeen City | B18: =IFERROR(VLOOKUP($A18,'DATA CLA Acc'!$A$7:$AJ$39,'DATA CLA Acc'!B$48,FALSE)/VLOOKUP($A18,'DATA CLA Acc'!$A$7:$AJ$39,9,FALSE),"*") -> 0.1789667897 | C18: =IFERROR(VLOOKUP($A18,'DATA CLA Acc'!$A$7:$AJ$39,'DATA CLA Acc'!C$48,FALSE)/VLOOKUP($A18,'DATA CLA Acc'!$A$7:$AJ$39,9,FALSE),"*") -> 0.1808118081 | D18: =IFERROR(VLOOKUP($A18,'DATA CLA Acc'!$A$7:$AJ$39,'DATA CLA Acc'!D$48,FALSE)/VLOOKUP($A18,'DATA CLA Acc'!$A$7:$AJ$39,9,FALSE),"*") -> 0.1494464945 | E18: =IFERROR(VLOOKUP($A18,'DATA CLA Acc'!$A$7:$AJ$39,'DATA CLA Acc'!E$48,FALSE)/VLOOKUP($A18,'DATA CLA Acc'!$A$7:$AJ$39,9,FALSE),"*") -> 0.3560885609 | F18: =IFERROR(VLOOKUP($A18,'DATA CLA Acc'!$A$7:$AJ$39,'DATA CLA Acc'!F$48,FALSE)/VLOOKUP($A18,'DATA CLA Acc'!$A$7:$AJ$39,9,FALSE),"*") -> 0.0405904059 | G18: =IFERROR(VLOOKUP($A18,'DATA CLA Acc'!$A$7:$AJ$39,'DATA CLA Acc'!G$48,FALSE)/VLOOKUP($A18,'DATA CLA Acc'!$A$7:$AJ$39,9,FALSE),"*") -> 0.0295202952 | H18: =IFERROR(VLOOKUP($A18,'DATA CLA Acc'!$A$7:$AJ$39,'DATA CLA Acc'!H$48,FALSE)/VLOOKUP($A18,'DATA CLA Acc'!$A$7:$AJ$39,9,FALSE),"*") -> 0.06457564576 | J18: =IFERROR(VLOOKUP($A18,'DATA CLA Acc'!$A$7:$AJ$39,'DATA CLA Acc'!K$48,FALSE)/VLOOKUP($A18,'DATA CLA Acc'!$A$7:$AJ$39,18,FALSE),"*") -> 0.2120141343 | K18: =IFERROR(VLOOKUP($A18,'DATA CLA Acc'!$A$7:$AJ$39,'DATA CLA Acc'!L$48,FALSE)/VLOOKUP($A18,'DATA CLA Acc'!$A$7:$AJ$39,18,FALSE),"*") -> 0.1855123675 | L18: =IFERROR(VLOOKUP($A18,'DATA CLA Acc'!$A$7:$AJ$39,'DATA CLA Acc'!M$48,FALSE)/VLOOKUP($A18,'DATA CLA Acc'!$A$7:$AJ$39,18,FALSE),"*") -> 0.1360424028 | M18: =IFERROR(VLOOKUP($A18,'DATA CLA Acc'!$A$7:$AJ$39,'DATA CLA Acc'!N$48,FALSE)/VLOOKUP($A18,'DATA CLA Acc'!$A$7:$AJ$39,18,FALSE),"*") -> 0.3268551237 | N18: =IFERROR(VLOOKUP($A18,'DATA CLA Acc'!$A$7:$AJ$39,'DATA CLA Acc'!O$48,FALSE)/VLOOKUP($A18,'DATA CLA Acc'!$A$7:$AJ$39,18,FALSE),"*") -> 0.03180212014 | O18: =IFERROR(VLOOKUP($A18,'DATA CLA Acc'!$A$7:$AJ$39,'DATA CLA Acc'!P$48,FALSE)/VLOOKUP($A18,'DATA CLA Acc'!$A$7:$AJ$39,18,FALSE),"*") -> 0.03003533569 | P18: =IFERROR(VLOOKUP($A18,'DATA CLA Acc'!$A$7:$AJ$39,'DATA CLA Acc'!Q$48,FALSE)/VLOOKUP($A18,'DATA CLA Acc'!$A$7:$AJ$39,18,FALSE),"*") -> 0.0777385159 | R18: =IFERROR(VLOOKUP($A18,'DATA CLA Acc'!$A$7:$AJ$39,'DATA CLA Acc'!T$48,FALSE)/VLOOKUP($A18,'DATA CLA Acc'!$A$7:$AJ$39,27,FALSE),"*") -> 0.1841085271 | S18: =IFERROR(VLOOKUP($A18,'DATA CLA Acc'!$A$7:$AJ$39,'DATA CLA Acc'!U$48,FALSE)/VLOOKUP($A18,'DATA CLA Acc'!$A$7:$AJ$39,27,FALSE),"*") -> 0.2054263566 | T18: =IFERROR(VLOOKUP($A18,'DATA CLA Acc'!$A$7:$AJ$39,'DATA CLA Acc'!V$48,FALSE)/VLOOKUP($A18,'DATA CLA Acc'!$A$7:$AJ$39,27,FALSE),"*") -> 0.1511627907 | U18: =IFERROR(VLOOKUP($A18,'DATA CLA Acc'!$A$7:$AJ$39,'DATA CLA Acc'!W$48,FALSE)/VLOOKUP($A18,'DATA CLA Acc'!$A$7:$AJ$39,27,FALSE),"*") -> 0.3178294574 | V18: =IFERROR(VLOOKUP($A18,'DATA CLA Acc'!$A$7:$AJ$39,'DATA CLA Acc'!X$48,FALSE)/VLOOKUP($A18,'DATA CLA Acc'!$A$7:$AJ$39,27,FALSE),"*") -> 0.03100775194 | W18: =IFERROR(VLOOKUP($A18,'DATA CLA Acc'!$A$7:$AJ$39,'DATA CLA Acc'!Y$48,FALSE)/VLOOKUP($A18,'DATA CLA Acc'!$A$7:$AJ$39,27,FALSE),"*") -> 0.03488372093 | X18: =IFERROR(VLOOKUP($A18,'DATA CLA Acc'!$A$7:$AJ$39,'DATA CLA Acc'!Z$48,FALSE)/VLOOKUP($A18,'DATA CLA Acc'!$A$7:$AJ$39,27,FALSE),"*") -> 0.07558139535 | Z18: =IFERROR(VLOOKUP($A18,'DATA CLA Acc'!$A$7:$AJ$39,'DATA CLA Acc'!AC$48,FALSE)/VLOOKUP($A18,'DATA CLA Acc'!$A$7:$AJ$39,36,FALSE),"*") -> 0.1791666667 | AA18: =IFERROR(VLOOKUP($A18,'DATA CLA Acc'!$A$7:$AJ$39,'DATA CLA Acc'!AD$48,FALSE)/VLOOKUP($A18,'DATA CLA Acc'!$A$7:$AJ$39,36,FALSE),"*") -> 0.20625 | AB18: =IFERROR(VLOOKUP($A18,'DATA CLA Acc'!$A$7:$AJ$39,'DATA CLA Acc'!AE$48,FALSE)/VLOOKUP($A18,'DATA CLA Acc'!$A$7:$AJ$39,36,FALSE),"*") -> 0.1520833333 | AC18: =IFERROR(VLOOKUP($A18,'DATA CLA Acc'!$A$7:$AJ$39,'DATA CLA Acc'!AF$48,FALSE)/VLOOKUP($A18,'DATA CLA Acc'!$A$7:$AJ$39,36,FALSE),"*") -> 0.3041666667 | AD18: =IFERROR(VLOOKUP($A18,'DATA CLA Acc'!$A$7:$AJ$39,'DATA CLA Acc'!AG$48,FALSE)/VLOOKUP($A18,'DATA CLA Acc'!$A$7:$AJ$39,36,FALSE),"*") -> 0.04375 | AE18: =IFERROR(VLOOKUP($A18,'DATA CLA Acc'!$A$7:$AJ$39,'DATA CLA Acc'!AH$48,FALSE)/VLOOKUP($A18,'DATA CLA Acc'!$A$7:$AJ$39,36,FALSE),"*") -> 0.03541666667 | AF18: =IFERROR(VLOOKUP($A18,'DATA CLA Acc'!$A$7:$AJ$39,'DATA CLA Acc'!AI$48,FALSE)/VLOOKUP($A18,'DATA CLA Acc'!$A$7:$AJ$39,36,FALSE),"*") -> 0.07916666667
A20: Comparator Authorities:
A21: =OFFSET('REF EA Name'!$B$2, A3,0) -> West Dunbartonshire | B21: =IFERROR(VLOOKUP($A21,'DATA CLA Acc'!$A$7:$AJ$39,'DATA CLA Acc'!B$48,FALSE)/VLOOKUP($A21,'DATA CLA Acc'!$A$7:$AJ$39,9,FALSE),"*") -> 0.2198019802 | C21: =IFERROR(VLOOKUP($A21,'DATA CLA Acc'!$A$7:$AJ$39,'DATA CLA Acc'!C$48,FALSE)/VLOOKUP($A21,'DATA CLA Acc'!$A$7:$AJ$39,9,FALSE),"*") -> 0.4336633663 | D21: =IFERROR(VLOOKUP($A21,'DATA CLA Acc'!$A$7:$AJ$39,'DATA CLA Acc'!D$48,FALSE)/VLOOKUP($A21,'DATA CLA Acc'!$A$7:$AJ$39,9,FALSE),"*") -> 0.1227722772 | E21: =IFERROR(VLOOKUP($A21,'DATA CLA Acc'!$A$7:$AJ$39,'DATA CLA Acc'!E$48,FALSE)/VLOOKUP($A21,'DATA CLA Acc'!$A$7:$AJ$39,9,FALSE),"*") -> 0.1089108911 | F21: =IFERROR(VLOOKUP($A21,'DATA CLA Acc'!$A$7:$AJ$39,'DATA CLA Acc'!F$48,FALSE)/VLOOKUP($A21,'DATA CLA Acc'!$A$7:$AJ$39,9,FALSE),"*") -> 0.0198019802 | G21: =IFERROR(VLOOKUP($A21,'DATA CLA Acc'!$A$7:$AJ$39,'DATA CLA Acc'!G$48,FALSE)/VLOOKUP($A21,'DATA CLA Acc'!$A$7:$AJ$39,9,FALSE),"*") -> 0.04158415842 | H21: =IFERROR(VLOOKUP($A21,'DATA CLA Acc'!$A$7:$AJ$39,'DATA CLA Acc'!H$48,FALSE)/VLOOKUP($A21,'DATA CLA Acc'!$A$7:$AJ$39,9,FALSE),"*") -> 0.05346534653 | J21: =IFERROR(VLOOKUP($A21,'DATA CLA Acc'!$A$7:$AJ$39,'DATA CLA Acc'!K$48,FALSE)/VLOOKUP($A21,'DATA CLA Acc'!$A$7:$AJ$39,18,FALSE),"*") -> 0.2233201581 | K21: =IFERROR(VLOOKUP($A21,'DATA CLA Acc'!$A$7:$AJ$39,'DATA CLA Acc'!L$48,FALSE)/VLOOKUP($A21,'DATA CLA Acc'!$A$7:$AJ$39,18,FALSE),"*") -> 0.418972332 | L21: =IFERROR(VLOOKUP($A21,'DATA CLA Acc'!$A$7:$AJ$39,'DATA CLA Acc'!M$48,FALSE)/VLOOKUP($A21,'DATA CLA Acc'!$A$7:$AJ$39,18,FALSE),"*") -> 0.1106719368 | M21: =IFERROR(VLOOKUP($A21,'DATA CLA Acc'!$A$7:$AJ$39,'DATA CLA Acc'!N$48,FALSE)/VLOOKUP($A21,'DATA CLA Acc'!$A$7:$AJ$39,18,FALSE),"*") -> 0.1146245059 | N21: =IFERROR(VLOOKUP($A21,'DATA CLA Acc'!$A$7:$AJ$39,'DATA CLA Acc'!O$48,FALSE)/VLOOKUP($A21,'DATA CLA Acc'!$A$7:$AJ$39,18,FALSE),"*") -> 0.04347826087 | O21: =IFERROR(VLOOKUP($A21,'DATA CLA Acc'!$A$7:$AJ$39,'DATA CLA Acc'!P$48,FALSE)/VLOOKUP($A21,'DATA CLA Acc'!$A$7:$AJ$39,18,FALSE),"*") -> 0.04545454545 | P21: =IFERROR(VLOOKUP($A21,'DATA CLA Acc'!$A$7:$AJ$39,'DATA CLA Acc'!Q$48,FALSE)/VLOOKUP($A21,'DATA CLA Acc'!$A$7:$AJ$39,18,FALSE),"*") -> 0.04347826087 | R21: =IFERROR(VLOOKUP($A21,'DATA CLA Acc'!$A$7:$AJ$39,'DATA CLA Acc'!T$48,FALSE)/VLOOKUP($A21,'DATA CLA Acc'!$A$7:$AJ$39,27,FALSE),"*") -> 0.178111588 | S21: =IFERROR(VLOOKUP($A21,'DATA CLA Acc'!$A$7:$AJ$39,'DATA CLA Acc'!U$48,FALSE)/VLOOKUP($A21,'DATA CLA Acc'!$A$7:$AJ$39,27,FALSE),"*") -> 0.4613733906 | T21: =IFERROR(VLOOKUP($A21,'DATA CLA Acc'!$A$7:$AJ$39,'DATA CLA Acc'!V$48,FALSE)/VLOOKUP($A21,'DATA CLA Acc'!$A$7:$AJ$39,27,FALSE),"*") -> 0.09871244635 | U21: =IFERROR(VLOOKUP($A21,'DATA CLA Acc'!$A$7:$AJ$39,'DATA CLA Acc'!W$48,FALSE)/VLOOKUP($A21,'DATA CLA Acc'!$A$7:$AJ$39,27,FALSE),"*") -> 0.1244635193 | V21: =IFERROR(VLOOKUP($A21,'DATA CLA Acc'!$A$7:$AJ$39,'DATA CLA Acc'!X$48,FALSE)/VLOOKUP($A21,'DATA CLA Acc'!$A$7:$AJ$39,27,FALSE),"*") -> 0.01931330472 | W21: =IFERROR(VLOOKUP($A21,'DATA CLA Acc'!$A$7:$AJ$39,'DATA CLA Acc'!Y$48,FALSE)/VLOOKUP($A21,'DATA CLA Acc'!$A$7:$AJ$39,27,FALSE),"*") -> 0.04506437768 | X21: =IFERROR(VLOOKUP($A21,'DATA CLA Acc'!$A$7:$AJ$39,'DATA CLA Acc'!Z$48,FALSE)/VLOOKUP($A21,'DATA CLA Acc'!$A$7:$AJ$39,27,FALSE),"*") -> 0.07296137339 | Z21: =IFERROR(VLOOKUP($A21,'DATA CLA Acc'!$A$7:$AJ$39,'DATA CLA Acc'!AC$48,FALSE)/VLOOKUP($A21,'DATA CLA Acc'!$A$7:$AJ$39,36,FALSE),"*") -> 0.1774891775 | AA21: =IFERROR(VLOOKUP($A21,'DATA CLA Acc'!$A$7:$AJ$39,'DATA CLA Acc'!AD$48,FALSE)/VLOOKUP($A21,'DATA CLA Acc'!$A$7:$AJ$39,36,FALSE),"*") -> 0.4545454545 | AB21: =IFERROR(VLOOKUP($A21,'DATA CLA Acc'!$A$7:$AJ$39,'DATA CLA Acc'!AE$48,FALSE)/VLOOKUP($A21,'DATA CLA Acc'!$A$7:$AJ$39,36,FALSE),"*") -> 0.1017316017 | AC21: =IFERROR(VLOOKUP($A21,'DATA CLA Acc'!$A$7:$AJ$39,'DATA CLA Acc'!AF$48,FALSE)/VLOOKUP($A21,'DATA CLA Acc'!$A$7:$AJ$39,36,FALSE),"*") -> 0.1212121212 | AD21: =IFERROR(VLOOKUP($A21,'DATA CLA Acc'!$A$7:$AJ$39,'DATA CLA Acc'!AG$48,FALSE)/VLOOKUP($A21,'DATA CLA Acc'!$A$7:$AJ$39,36,FALSE),"*") -> 0.04112554113 | AE21: =IFERROR(VLOOKUP($A21,'DATA CLA Acc'!$A$7:$AJ$39,'DATA CLA Acc'!AH$48,FALSE)/VLOOKUP($A21,'DATA CLA Acc'!$A$7:$AJ$39,36,FALSE),"*") -> 0.04112554113 | AF21: =IFERROR(VLOOKUP($A21,'DATA CLA Acc'!$A$7:$AJ$39,'DATA CLA Acc'!AI$48,FALSE)/VLOOKUP($A21,'DATA CLA Acc'!$A$7:$AJ$39,36,FALSE),"*") -> 0.06277056277
A22: =OFFSET('REF EA Name'!$B$2,A4,0) -> Glasgow City | B22: =IFERROR(VLOOKUP($A22,'DATA CLA Acc'!$A$7:$AJ$39,'DATA CLA Acc'!B$48,FALSE)/VLOOKUP($A22,'DATA CLA Acc'!$A$7:$AJ$39,9,FALSE),"*") -> 0.1581450654 | C22: =IFERROR(VLOOKUP($A22,'DATA CLA Acc'!$A$7:$AJ$39,'DATA CLA Acc'!C$48,FALSE)/VLOOKUP($A22,'DATA CLA Acc'!$A$7:$AJ$39,9,FALSE),"*") -> 0.4609591756 | D22: =IFERROR(VLOOKUP($A22,'DATA CLA Acc'!$A$7:$AJ$39,'DATA CLA Acc'!D$48,FALSE)/VLOOKUP($A22,'DATA CLA Acc'!$A$7:$AJ$39,9,FALSE),"*") -> 0.2179944511 | E22: =IFERROR(VLOOKUP($A22,'DATA CLA Acc'!$A$7:$AJ$39,'DATA CLA Acc'!E$48,FALSE)/VLOOKUP($A22,'DATA CLA Acc'!$A$7:$AJ$39,9,FALSE),"*") -> 0.08481965914 | F22: =IFERROR(VLOOKUP($A22,'DATA CLA Acc'!$A$7:$AJ$39,'DATA CLA Acc'!F$48,FALSE)/VLOOKUP($A22,'DATA CLA Acc'!$A$7:$AJ$39,9,FALSE),"*") -> 0.0007927070947 | G22: =IFERROR(VLOOKUP($A22,'DATA CLA Acc'!$A$7:$AJ$39,'DATA CLA Acc'!G$48,FALSE)/VLOOKUP($A22,'DATA CLA Acc'!$A$7:$AJ$39,9,FALSE),"*") -> 0.05390408244 | H22: =IFERROR(VLOOKUP($A22,'DATA CLA Acc'!$A$7:$AJ$39,'DATA CLA Acc'!H$48,FALSE)/VLOOKUP($A22,'DATA CLA Acc'!$A$7:$AJ$39,9,FALSE),"*") -> 0.02338485929 | J22: =IFERROR(VLOOKUP($A22,'DATA CLA Acc'!$A$7:$AJ$39,'DATA CLA Acc'!K$48,FALSE)/VLOOKUP($A22,'DATA CLA Acc'!$A$7:$AJ$39,18,FALSE),"*") -> 0.1851415094 | K22: =IFERROR(VLOOKUP($A22,'DATA CLA Acc'!$A$7:$AJ$39,'DATA CLA Acc'!L$48,FALSE)/VLOOKUP($A22,'DATA CLA Acc'!$A$7:$AJ$39,18,FALSE),"*") -> 0.4536163522 | L22: =IFERROR(VLOOKUP($A22,'DATA CLA Acc'!$A$7:$AJ$39,'DATA CLA Acc'!M$48,FALSE)/VLOOKUP($A22,'DATA CLA Acc'!$A$7:$AJ$39,18,FALSE),"*") -> 0.1988993711 | M22: =IFERROR(VLOOKUP($A22,'DATA CLA Acc'!$A$7:$AJ$39,'DATA CLA Acc'!N$48,FALSE)/VLOOKUP($A22,'DATA CLA Acc'!$A$7:$AJ$39,18,FALSE),"*") -> 0.07468553459 | N22: =IFERROR(VLOOKUP($A22,'DATA CLA Acc'!$A$7:$AJ$39,'DATA CLA Acc'!O$48,FALSE)/VLOOKUP($A22,'DATA CLA Acc'!$A$7:$AJ$39,18,FALSE),"*") -> 0.001572327044 | O22: =IFERROR(VLOOKUP($A22,'DATA CLA Acc'!$A$7:$AJ$39,'DATA CLA Acc'!P$48,FALSE)/VLOOKUP($A22,'DATA CLA Acc'!$A$7:$AJ$39,18,FALSE),"*") -> 0.04992138365 | P22: =IFERROR(VLOOKUP($A22,'DATA CLA Acc'!$A$7:$AJ$39,'DATA CLA Acc'!Q$48,FALSE)/VLOOKUP($A22,'DATA CLA Acc'!$A$7:$AJ$39,18,FALSE),"*") -> 0.03616352201 | R22: =IFERROR(VLOOKUP($A22,'DATA CLA Acc'!$A$7:$AJ$39,'DATA CLA Acc'!T$48,FALSE)/VLOOKUP($A22,'DATA CLA Acc'!$A$7:$AJ$39,27,FALSE),"*") -> 0.1636597938 | S22: =IFERROR(VLOOKUP($A22,'DATA CLA Acc'!$A$7:$AJ$39,'DATA CLA Acc'!U$48,FALSE)/VLOOKUP($A22,'DATA CLA Acc'!$A$7:$AJ$39,27,FALSE),"*") -> 0.4957044674 | T22: =IFERROR(VLOOKUP($A22,'DATA CLA Acc'!$A$7:$AJ$39,'DATA CLA Acc'!V$48,FALSE)/VLOOKUP($A22,'DATA CLA Acc'!$A$7:$AJ$39,27,FALSE),"*") -> 0.2036082474 | U22: =IFERROR(VLOOKUP($A22,'DATA CLA Acc'!$A$7:$AJ$39,'DATA CLA Acc'!W$48,FALSE)/VLOOKUP($A22,'DATA CLA Acc'!$A$7:$AJ$39,27,FALSE),"*") -> 0.06529209622 | V22: =IFERROR(VLOOKUP($A22,'DATA CLA Acc'!$A$7:$AJ$39,'DATA CLA Acc'!X$48,FALSE)/VLOOKUP($A22,'DATA CLA Acc'!$A$7:$AJ$39,27,FALSE),"*") -> 0.003865979381 | W22: =IFERROR(VLOOKUP($A22,'DATA CLA Acc'!$A$7:$AJ$39,'DATA CLA Acc'!Y$48,FALSE)/VLOOKUP($A22,'DATA CLA Acc'!$A$7:$AJ$39,27,FALSE),"*") -> 0.05111683849 | X22: =IFERROR(VLOOKUP($A22,'DATA CLA Acc'!$A$7:$AJ$39,'DATA CLA Acc'!Z$48,FALSE)/VLOOKUP($A22,'DATA CLA Acc'!$A$7:$AJ$39,27,FALSE),"*") -> 0.01675257732 | Z22: =IFERROR(VLOOKUP($A22,'DATA CLA Acc'!$A$7:$AJ$39,'DATA CLA Acc'!AC$48,FALSE)/VLOOKUP($A22,'DATA CLA Acc'!$A$7:$AJ$39,36,FALSE),"*") -> 0.1500465983 | AA22: =IFERROR(VLOOKUP($A22,'DATA CLA Acc'!$A$7:$AJ$39,'DATA CLA Acc'!AD$48,FALSE)/VLOOKUP($A22,'DATA CLA Acc'!$A$7:$AJ$39,36,FALSE),"*") -> 0.5074557316 | AB22: =IFERROR(VLOOKUP($A22,'DATA CLA Acc'!$A$7:$AJ$39,'DATA CLA Acc'!AE$48,FALSE)/VLOOKUP($A22,'DATA CLA Acc'!$A$7:$AJ$39,36,FALSE),"*") -> 0.1994408201 | AC22: =IFERROR(VLOOKUP($A22,'DATA CLA Acc'!$A$7:$AJ$39,'DATA CLA Acc'!AF$48,FALSE)/VLOOKUP($A22,'DATA CLA Acc'!$A$7:$AJ$39,36,FALSE),"*") -> 0.06803355079 | AD22: =IFERROR(VLOOKUP($A22,'DATA CLA Acc'!$A$7:$AJ$39,'DATA CLA Acc'!AG$48,FALSE)/VLOOKUP($A22,'DATA CLA Acc'!$A$7:$AJ$39,36,FALSE),"*") -> 0.005125815471 | AE22: =IFERROR(VLOOKUP($A22,'DATA CLA Acc'!$A$7:$AJ$39,'DATA CLA Acc'!AH$48,FALSE)/VLOOKUP($A22,'DATA CLA Acc'!$A$7:$AJ$39,36,FALSE),"*") -> 0.05778191985 | AF22: =IFERROR(VLOOKUP($A22,'DATA CLA Acc'!$A$7:$AJ$39,'DATA CLA Acc'!AI$48,FALSE)/VLOOKUP($A22,'DATA CLA Acc'!$A$7:$AJ$39,36,FALSE),"*") -> 0.01211556384
A23: =OFFSET('REF EA Name'!$B$2,A5,0) -> South Ayrshire | B23: =IFERROR(VLOOKUP($A23,'DATA CLA Acc'!$A$7:$AJ$39,'DATA CLA Acc'!B$48,FALSE)/VLOOKUP($A23,'DATA CLA Acc'!$A$7:$AJ$39,9,FALSE),"*") -> 0.2057971014 | C23: =IFERROR(VLOOKUP($A23,'DATA CLA Acc'!$A$7:$AJ$39,'DATA CLA Acc'!C$48,FALSE)/VLOOKUP($A23,'DATA CLA Acc'!$A$7:$AJ$39,9,FALSE),"*") -> 0.2608695652 | D23: =IFERROR(VLOOKUP($A23,'DATA CLA Acc'!$A$7:$AJ$39,'DATA CLA Acc'!D$48,FALSE)/VLOOKUP($A23,'DATA CLA Acc'!$A$7:$AJ$39,9,FALSE),"*") -> 0.3246376812 | E23: =IFERROR(VLOOKUP($A23,'DATA CLA Acc'!$A$7:$AJ$39,'DATA CLA Acc'!E$48,FALSE)/VLOOKUP($A23,'DATA CLA Acc'!$A$7:$AJ$39,9,FALSE),"*") -> 0.07826086957 | F23: =IFERROR(VLOOKUP($A23,'DATA CLA Acc'!$A$7:$AJ$39,'DATA CLA Acc'!F$48,FALSE)/VLOOKUP($A23,'DATA CLA Acc'!$A$7:$AJ$39,9,FALSE),"*") -> 0.02898550725 | G23: =IFERROR(VLOOKUP($A23,'DATA CLA Acc'!$A$7:$AJ$39,'DATA CLA Acc'!G$48,FALSE)/VLOOKUP($A23,'DATA CLA Acc'!$A$7:$AJ$39,9,FALSE),"*") -> 0.0347826087 | H23: =IFERROR(VLOOKUP($A23,'DATA CLA Acc'!$A$7:$AJ$39,'DATA CLA Acc'!H$48,FALSE)/VLOOKUP($A23,'DATA CLA Acc'!$A$7:$AJ$39,9,FALSE),"*") -> 0.06666666667 | J23: =IFERROR(VLOOKUP($A23,'DATA CLA Acc'!$A$7:$AJ$39,'DATA CLA Acc'!K$48,FALSE)/VLOOKUP($A23,'DATA CLA Acc'!$A$7:$AJ$39,18,FALSE),"*") -> 0.2 | K23: =IFERROR(VLOOKUP($A23,'DATA CLA Acc'!$A$7:$AJ$39,'DATA CLA Acc'!L$48,FALSE)/VLOOKUP($A23,'DATA CLA Acc'!$A$7:$AJ$39,18,FALSE),"*") -> 0.2466666667 | L23: =IFERROR(VLOOKUP($A23,'DATA CLA Acc'!$A$7:$AJ$39,'DATA CLA Acc'!M$48,FALSE)/VLOOKUP($A23,'DATA CLA Acc'!$A$7:$AJ$39,18,FALSE),"*") -> 0.3366666667 | M23: =IFERROR(VLOOKUP($A23,'DATA CLA Acc'!$A$7:$AJ$39,'DATA CLA Acc'!N$48,FALSE)/VLOOKUP($A23,'DATA CLA Acc'!$A$7:$AJ$39,18,FALSE),"*") -> 0.08 | N23: =IFERROR(VLOOKUP($A23,'DATA CLA Acc'!$A$7:$AJ$39,'DATA CLA Acc'!O$48,FALSE)/VLOOKUP($A23,'DATA CLA Acc'!$A$7:$AJ$39,18,FALSE),"*") -> 0.04 | O23: =IFERROR(VLOOKUP($A23,'DATA CLA Acc'!$A$7:$AJ$39,'DATA CLA Acc'!P$48,FALSE)/VLOOKUP($A23,'DATA CLA Acc'!$A$7:$AJ$39,18,FALSE),"*") -> 0.04333333333 | P23: =IFERROR(VLOOKUP($A23,'DATA CLA Acc'!$A$7:$AJ$39,'DATA CLA Acc'!Q$48,FALSE)/VLOOKUP($A23,'DATA CLA Acc'!$A$7:$AJ$39,18,FALSE),"*") -> 0.05333333333 | R23: =IFERROR(VLOOKUP($A23,'DATA CLA Acc'!$A$7:$AJ$39,'DATA CLA Acc'!T$48,FALSE)/VLOOKUP($A23,'DATA CLA Acc'!$A$7:$AJ$39,27,FALSE),"*") -> 0.1834061135 | S23: =IFERROR(VLOOKUP($A23,'DATA CLA Acc'!$A$7:$AJ$39,'DATA CLA Acc'!U$48,FALSE)/VLOOKUP($A23,'DATA CLA Acc'!$A$7:$AJ$39,27,FALSE),"*") -> 0.2096069869 | T23: =IFERROR(VLOOKUP($A23,'DATA CLA Acc'!$A$7:$AJ$39,'DATA CLA Acc'!V$48,FALSE)/VLOOKUP($A23,'DATA CLA Acc'!$A$7:$AJ$39,27,FALSE),"*") -> 0.3711790393 | U23: =IFERROR(VLOOKUP($A23,'DATA CLA Acc'!$A$7:$AJ$39,'DATA CLA Acc'!W$48,FALSE)/VLOOKUP($A23,'DATA CLA Acc'!$A$7:$AJ$39,27,FALSE),"*") -> 0.08296943231 | V23: =IFERROR(VLOOKUP($A23,'DATA CLA Acc'!$A$7:$AJ$39,'DATA CLA Acc'!X$48,FALSE)/VLOOKUP($A23,'DATA CLA Acc'!$A$7:$AJ$39,27,FALSE),"*") -> 0.04366812227 | W23: =IFERROR(VLOOKUP($A23,'DATA CLA Acc'!$A$7:$AJ$39,'DATA CLA Acc'!Y$48,FALSE)/VLOOKUP($A23,'DATA CLA Acc'!$A$7:$AJ$39,27,FALSE),"*") -> 0.04366812227 | X23: =IFERROR(VLOOKUP($A23,'DATA CLA Acc'!$A$7:$AJ$39,'DATA CLA Acc'!Z$48,FALSE)/VLOOKUP($A23,'DATA CLA Acc'!$A$7:$AJ$39,27,FALSE),"*") -> 0.06550218341 | Z23: =IFERROR(VLOOKUP($A23,'DATA CLA Acc'!$A$7:$AJ$39,'DATA CLA Acc'!AC$48,FALSE)/VLOOKUP($A23,'DATA CLA Acc'!$A$7:$AJ$39,36,FALSE),"*") -> 0.1813186813 | AA23: =IFERROR(VLOOKUP($A23,'DATA CLA Acc'!$A$7:$AJ$39,'DATA CLA Acc'!AD$48,FALSE)/VLOOKUP($A23,'DATA CLA Acc'!$A$7:$AJ$39,36,FALSE),"*") -> 0.2142857143 | AB23: =IFERROR(VLOOKUP($A23,'DATA CLA Acc'!$A$7:$AJ$39,'DATA CLA Acc'!AE$48,FALSE)/VLOOKUP($A23,'DATA CLA Acc'!$A$7:$AJ$39,36,FALSE),"*") -> 0.4065934066 | AC23: =IFERROR(VLOOKUP($A23,'DATA CLA Acc'!$A$7:$AJ$39,'DATA CLA Acc'!AF$48,FALSE)/VLOOKUP($A23,'DATA CLA Acc'!$A$7:$AJ$39,36,FALSE),"*") -> 0.07142857143 | AD23: =IFERROR(VLOOKUP($A23,'DATA CLA Acc'!$A$7:$AJ$39,'DATA CLA Acc'!AG$48,FALSE)/VLOOKUP($A23,'DATA CLA Acc'!$A$7:$AJ$39,36,FALSE),"*") -> 0.01098901099 | AE23: =IFERROR(VLOOKUP($A23,'DATA CLA Acc'!$A$7:$AJ$39,'DATA CLA Acc'!AH$48,FALSE)/VLOOKUP($A23,'DATA CLA Acc'!$A$7:$AJ$39,36,FALSE),"*") -> 0.06043956044 | AF23: =IFERROR(VLOOKUP($A23,'DATA CLA Acc'!$A$7:$AJ$39,'DATA CLA Acc'!AI$48,FALSE)/VLOOKUP($A23,'DATA CLA Acc'!$A$7:$AJ$39,36,FALSE),"*") -> 0.05494505495
A24: =OFFSET('REF EA Name'!$B$2,A6,0) -> East Ayrshire | B24: =IFERROR(VLOOKUP($A24,'DATA CLA Acc'!$A$7:$AJ$39,'DATA CLA Acc'!B$48,FALSE)/VLOOKUP($A24,'DATA CLA Acc'!$A$7:$AJ$39,9,FALSE),"*") -> 0.304 | C24: =IFERROR(VLOOKUP($A24,'DATA CLA Acc'!$A$7:$AJ$39,'DATA CLA Acc'!C$48,FALSE)/VLOOKUP($A24,'DATA CLA Acc'!$A$7:$AJ$39,9,FALSE),"*") -> 0.24 | D24: =IFERROR(VLOOKUP($A24,'DATA CLA Acc'!$A$7:$AJ$39,'DATA CLA Acc'!D$48,FALSE)/VLOOKUP($A24,'DATA CLA Acc'!$A$7:$AJ$39,9,FALSE),"*") -> 0.2773333333 | E24: =IFERROR(VLOOKUP($A24,'DATA CLA Acc'!$A$7:$AJ$39,'DATA CLA Acc'!E$48,FALSE)/VLOOKUP($A24,'DATA CLA Acc'!$A$7:$AJ$39,9,FALSE),"*") -> 0.06666666667 | F24: =IFERROR(VLOOKUP($A24,'DATA CLA Acc'!$A$7:$AJ$39,'DATA CLA Acc'!F$48,FALSE)/VLOOKUP($A24,'DATA CLA Acc'!$A$7:$AJ$39,9,FALSE),"*") -> 0.02666666667 | G24: =IFERROR(VLOOKUP($A24,'DATA CLA Acc'!$A$7:$AJ$39,'DATA CLA Acc'!G$48,FALSE)/VLOOKUP($A24,'DATA CLA Acc'!$A$7:$AJ$39,9,FALSE),"*") -> 0.04533333333 | H24: =IFERROR(VLOOKUP($A24,'DATA CLA Acc'!$A$7:$AJ$39,'DATA CLA Acc'!H$48,FALSE)/VLOOKUP($A24,'DATA CLA Acc'!$A$7:$AJ$39,9,FALSE),"*") -> 0.04 | J24: =IFERROR(VLOOKUP($A24,'DATA CLA Acc'!$A$7:$AJ$39,'DATA CLA Acc'!K$48,FALSE)/VLOOKUP($A24,'DATA CLA Acc'!$A$7:$AJ$39,18,FALSE),"*") -> 0.2277486911 | K24: =IFERROR(VLOOKUP($A24,'DATA CLA Acc'!$A$7:$AJ$39,'DATA CLA Acc'!L$48,FALSE)/VLOOKUP($A24,'DATA CLA Acc'!$A$7:$AJ$39,18,FALSE),"*") -> 0.2879581152 | L24: =IFERROR(VLOOKUP($A24,'DATA CLA Acc'!$A$7:$AJ$39,'DATA CLA Acc'!M$48,FALSE)/VLOOKUP($A24,'DATA CLA Acc'!$A$7:$AJ$39,18,FALSE),"*") -> 0.280104712 | M24: =IFERROR(VLOOKUP($A24,'DATA CLA Acc'!$A$7:$AJ$39,'DATA CLA Acc'!N$48,FALSE)/VLOOKUP($A24,'DATA CLA Acc'!$A$7:$AJ$39,18,FALSE),"*") -> 0.07853403141 | N24: =IFERROR(VLOOKUP($A24,'DATA CLA Acc'!$A$7:$AJ$39,'DATA CLA Acc'!O$48,FALSE)/VLOOKUP($A24,'DATA CLA Acc'!$A$7:$AJ$39,18,FALSE),"*") -> 0.02879581152 | O24: =IFERROR(VLOOKUP($A24,'DATA CLA Acc'!$A$7:$AJ$39,'DATA CLA Acc'!P$48,FALSE)/VLOOKUP($A24,'DATA CLA Acc'!$A$7:$AJ$39,18,FALSE),"*") -> 0.04712041885 | P24: =IFERROR(VLOOKUP($A24,'DATA CLA Acc'!$A$7:$AJ$39,'DATA CLA Acc'!Q$48,FALSE)/VLOOKUP($A24,'DATA CLA Acc'!$A$7:$AJ$39,18,FALSE),"*") -> 0.0497382199 | R24: =IFERROR(VLOOKUP($A24,'DATA CLA Acc'!$A$7:$AJ$39,'DATA CLA Acc'!T$48,FALSE)/VLOOKUP($A24,'DATA CLA Acc'!$A$7:$AJ$39,27,FALSE),"*") -> 0.2537313433 | S24: =IFERROR(VLOOKUP($A24,'DATA CLA Acc'!$A$7:$AJ$39,'DATA CLA Acc'!U$48,FALSE)/VLOOKUP($A24,'DATA CLA Acc'!$A$7:$AJ$39,27,FALSE),"*") -> 0.1666666667 | T24: =IFERROR(VLOOKUP($A24,'DATA CLA Acc'!$A$7:$AJ$39,'DATA CLA Acc'!V$48,FALSE)/VLOOKUP($A24,'DATA CLA Acc'!$A$7:$AJ$39,27,FALSE),"*") -> 0.4004975124 | U24: =IFERROR(VLOOKUP($A24,'DATA CLA Acc'!$A$7:$AJ$39,'DATA CLA Acc'!W$48,FALSE)/VLOOKUP($A24,'DATA CLA Acc'!$A$7:$AJ$39,27,FALSE),"*") -> 0.07711442786 | V24: =IFERROR(VLOOKUP($A24,'DATA CLA Acc'!$A$7:$AJ$39,'DATA CLA Acc'!X$48,FALSE)/VLOOKUP($A24,'DATA CLA Acc'!$A$7:$AJ$39,27,FALSE),"*") -> 0.004975124378 | W24: =IFERROR(VLOOKUP($A24,'DATA CLA Acc'!$A$7:$AJ$39,'DATA CLA Acc'!Y$48,FALSE)/VLOOKUP($A24,'DATA CLA Acc'!$A$7:$AJ$39,27,FALSE),"*") -> 0.04726368159 | X24: =IFERROR(VLOOKUP($A24,'DATA CLA Acc'!$A$7:$AJ$39,'DATA CLA Acc'!Z$48,FALSE)/VLOOKUP($A24,'DATA CLA Acc'!$A$7:$AJ$39,27,FALSE),"*") -> 0.04975124378 | Z24: =IFERROR(VLOOKUP($A24,'DATA CLA Acc'!$A$7:$AJ$39,'DATA CLA Acc'!AC$48,FALSE)/VLOOKUP($A24,'DATA CLA Acc'!$A$7:$AJ$39,36,FALSE),"*") -> 0.2661498708 | AA24: =IFERROR(VLOOKUP($A24,'DATA CLA Acc'!$A$7:$AJ$39,'DATA CLA Acc'!AD$48,FALSE)/VLOOKUP($A24,'DATA CLA Acc'!$A$7:$AJ$39,36,FALSE),"*") -> 0.2790697674 | AB24: =IFERROR(VLOOKUP($A24,'DATA CLA Acc'!$A$7:$AJ$39,'DATA CLA Acc'!AE$48,FALSE)/VLOOKUP($A24,'DATA CLA Acc'!$A$7:$AJ$39,36,FALSE),"*") -> 0.2764857881 | AC24: =IFERROR(VLOOKUP($A24,'DATA CLA Acc'!$A$7:$AJ$39,'DATA CLA Acc'!AF$48,FALSE)/VLOOKUP($A24,'DATA CLA Acc'!$A$7:$AJ$39,36,FALSE),"*") -> 0.07493540052 | AD24: =IFERROR(VLOOKUP($A24,'DATA CLA Acc'!$A$7:$AJ$39,'DATA CLA Acc'!AG$48,FALSE)/VLOOKUP($A24,'DATA CLA Acc'!$A$7:$AJ$39,36,FALSE),"*") -> 0.002583979328 | AE24: =IFERROR(VLOOKUP($A24,'DATA CLA Acc'!$A$7:$AJ$39,'DATA CLA Acc'!AH$48,FALSE)/VLOOKUP($A24,'DATA CLA Acc'!$A$7:$AJ$39,36,FALSE),"*") -> 0.05167958656 | AF24: =IFERROR(VLOOKUP($A24,'DATA CLA Acc'!$A$7:$AJ$39,'DATA CLA Acc'!AI$48,FALSE)/VLOOKUP($A24,'DATA CLA Acc'!$A$7:$AJ$39,36,FALSE),"*") -> 0.04909560724
A25: =OFFSET('REF EA Name'!$B$2,A7,0) -> Inverclyde | B25: =IFERROR(VLOOKUP($A25,'DATA CLA Acc'!$A$7:$AJ$39,'DATA CLA Acc'!B$48,FALSE)/VLOOKUP($A25,'DATA CLA Acc'!$A$7:$AJ$39,9,FALSE),"*") -> 0.4780487805 | C25: =IFERROR(VLOOKUP($A25,'DATA CLA Acc'!$A$7:$AJ$39,'DATA CLA Acc'!C$48,FALSE)/VLOOKUP($A25,'DATA CLA Acc'!$A$7:$AJ$39,9,FALSE),"*") -> 0.2195121951 | D25: =IFERROR(VLOOKUP($A25,'DATA CLA Acc'!$A$7:$AJ$39,'DATA CLA Acc'!D$48,FALSE)/VLOOKUP($A25,'DATA CLA Acc'!$A$7:$AJ$39,9,FALSE),"*") -> 0.1219512195 | E25: =IFERROR(VLOOKUP($A25,'DATA CLA Acc'!$A$7:$AJ$39,'DATA CLA Acc'!E$48,FALSE)/VLOOKUP($A25,'DATA CLA Acc'!$A$7:$AJ$39,9,FALSE),"*") -> 0.0243902439 | F25: =IFERROR(VLOOKUP($A25,'DATA CLA Acc'!$A$7:$AJ$39,'DATA CLA Acc'!F$48,FALSE)/VLOOKUP($A25,'DATA CLA Acc'!$A$7:$AJ$39,9,FALSE),"*") -> 0.01951219512 | G25: =IFERROR(VLOOKUP($A25,'DATA CLA Acc'!$A$7:$AJ$39,'DATA CLA Acc'!G$48,FALSE)/VLOOKUP($A25,'DATA CLA Acc'!$A$7:$AJ$39,9,FALSE),"*") -> 0.09268292683 | H25: =IFERROR(VLOOKUP($A25,'DATA CLA Acc'!$A$7:$AJ$39,'DATA CLA Acc'!H$48,FALSE)/VLOOKUP($A25,'DATA CLA Acc'!$A$7:$AJ$39,9,FALSE),"*") -> 0.04390243902 | J25: =IFERROR(VLOOKUP($A25,'DATA CLA Acc'!$A$7:$AJ$39,'DATA CLA Acc'!K$48,FALSE)/VLOOKUP($A25,'DATA CLA Acc'!$A$7:$AJ$39,18,FALSE),"*") -> 0.4618834081 | K25: =IFERROR(VLOOKUP($A25,'DATA CLA Acc'!$A$7:$AJ$39,'DATA CLA Acc'!L$48,FALSE)/VLOOKUP($A25,'DATA CLA Acc'!$A$7:$AJ$39,18,FALSE),"*") -> 0.2286995516 | L25: =IFERROR(VLOOKUP($A25,'DATA CLA Acc'!$A$7:$AJ$39,'DATA CLA Acc'!M$48,FALSE)/VLOOKUP($A25,'DATA CLA Acc'!$A$7:$AJ$39,18,FALSE),"*") -> 0.1434977578 | M25: =IFERROR(VLOOKUP($A25,'DATA CLA Acc'!$A$7:$AJ$39,'DATA CLA Acc'!N$48,FALSE)/VLOOKUP($A25,'DATA CLA Acc'!$A$7:$AJ$39,18,FALSE),"*") -> 0.0269058296 | N25: =IFERROR(VLOOKUP($A25,'DATA CLA Acc'!$A$7:$AJ$39,'DATA CLA Acc'!O$48,FALSE)/VLOOKUP($A25,'DATA CLA Acc'!$A$7:$AJ$39,18,FALSE),"*") -> 0.004484304933 | O25: =IFERROR(VLOOKUP($A25,'DATA CLA Acc'!$A$7:$AJ$39,'DATA CLA Acc'!P$48,FALSE)/VLOOKUP($A25,'DATA CLA Acc'!$A$7:$AJ$39,18,FALSE),"*") -> 0.08968609865 | P25: =IFERROR(VLOOKUP($A25,'DATA CLA Acc'!$A$7:$AJ$39,'DATA CLA Acc'!Q$48,FALSE)/VLOOKUP($A25,'DATA CLA Acc'!$A$7:$AJ$39,18,FALSE),"*") -> 0.04484304933 | R25: =IFERROR(VLOOKUP($A25,'DATA CLA Acc'!$A$7:$AJ$39,'DATA CLA Acc'!T$48,FALSE)/VLOOKUP($A25,'DATA CLA Acc'!$A$7:$AJ$39,27,FALSE),"*") -> 0.3834951456 | S25: =IFERROR(VLOOKUP($A25,'DATA CLA Acc'!$A$7:$AJ$39,'DATA CLA Acc'!U$48,FALSE)/VLOOKUP($A25,'DATA CLA Acc'!$A$7:$AJ$39,27,FALSE),"*") -> 0.2572815534 | T25: =IFERROR(VLOOKUP($A25,'DATA CLA Acc'!$A$7:$AJ$39,'DATA CLA Acc'!V$48,FALSE)/VLOOKUP($A25,'DATA CLA Acc'!$A$7:$AJ$39,27,FALSE),"*") -> 0.1601941748 | U25: =IFERROR(VLOOKUP($A25,'DATA CLA Acc'!$A$7:$AJ$39,'DATA CLA Acc'!W$48,FALSE)/VLOOKUP($A25,'DATA CLA Acc'!$A$7:$AJ$39,27,FALSE),"*") -> 0.03883495146 | V25: =IFERROR(VLOOKUP($A25,'DATA CLA Acc'!$A$7:$AJ$39,'DATA CLA Acc'!X$48,FALSE)/VLOOKUP($A25,'DATA CLA Acc'!$A$7:$AJ$39,27,FALSE),"*") -> 0 | W25: =IFERROR(VLOOKUP($A25,'DATA CLA Acc'!$A$7:$AJ$39,'DATA CLA Acc'!Y$48,FALSE)/VLOOKUP($A25,'DATA CLA Acc'!$A$7:$AJ$39,27,FALSE),"*") -> 0.04854368932 | X25: =IFERROR(VLOOKUP($A25,'DATA CLA Acc'!$A$7:$AJ$39,'DATA CLA Acc'!Z$48,FALSE)/VLOOKUP($A25,'DATA CLA Acc'!$A$7:$AJ$39,27,FALSE),"*") -> 0.1116504854 | Z25: =IFERROR(VLOOKUP($A25,'DATA CLA Acc'!$A$7:$AJ$39,'DATA CLA Acc'!AC$48,FALSE)/VLOOKUP($A25,'DATA CLA Acc'!$A$7:$AJ$39,36,FALSE),"*") -> 0.3678756477 | AA25: =IFERROR(VLOOKUP($A25,'DATA CLA Acc'!$A$7:$AJ$39,'DATA CLA Acc'!AD$48,FALSE)/VLOOKUP($A25,'DATA CLA Acc'!$A$7:$AJ$39,36,FALSE),"*") -> 0.2642487047 | AB25: =IFERROR(VLOOKUP($A25,'DATA CLA Acc'!$A$7:$AJ$39,'DATA CLA Acc'!AE$48,FALSE)/VLOOKUP($A25,'DATA CLA Acc'!$A$7:$AJ$39,36,FALSE),"*") -> 0.1450777202 | AC25: =IFERROR(VLOOKUP($A25,'DATA CLA Acc'!$A$7:$AJ$39,'DATA CLA Acc'!AF$48,FALSE)/VLOOKUP($A25,'DATA CLA Acc'!$A$7:$AJ$39,36,FALSE),"*") -> 0.0414507772 | AD25: =IFERROR(VLOOKUP($A25,'DATA CLA Acc'!$A$7:$AJ$39,'DATA CLA Acc'!AG$48,FALSE)/VLOOKUP($A25,'DATA CLA Acc'!$A$7:$AJ$39,36,FALSE),"*") -> 0.04663212435 | AE25: =IFERROR(VLOOKUP($A25,'DATA CLA Acc'!$A$7:$AJ$39,'DATA CLA Acc'!AH$48,FALSE)/VLOOKUP($A25,'DATA CLA Acc'!$A$7:$AJ$39,36,FALSE),"*") -> 0.0103626943 | AF25: =IFERROR(VLOOKUP($A25,'DATA CLA Acc'!$A$7:$AJ$39,'DATA CLA Acc'!AI$48,FALSE)/VLOOKUP($A25,'DATA CLA Acc'!$A$7:$AJ$39,36,FALSE),"*") -> 0.1243523316
A27: Comparator authorities | B27: =SUM(IF(VLOOKUP($A21,'DATA CLA Acc'!$A$7:$AJ$38,'DATA CLA Acc'!B$48,FALSE)="*",0,VLOOKUP($A21,'DATA CLA Acc'!$A$7:$AJ$38,'DATA CLA Acc'!B$48,FALSE)),IF(VLOOKUP($A22,'DATA CLA Acc'!$A$7:$AJ$38,'DATA CLA Acc'!B$48,FALSE)="*",0,VLOOKUP($A22,'DATA CLA Acc'!$A$7:$AJ$38,'DATA CLA Acc'!B$48,FALSE)),IF(VLOOKUP($A23,'DATA CLA Acc'!$A$7:$AJ$38,'DATA CLA Acc'!B$48,FALSE)="*",0,VLOOKUP($A23,'DATA CLA Acc'!$A$7:$AJ$38,'DATA CLA Acc'!B$48,FALSE)),IF(VLOOKUP($A24,'DATA CLA Acc'!$A$7:$AJ$38,'DATA CLA Acc'!B$48,FALSE)="*",0,VLOOKUP($A24,'DATA CLA Acc'!$A$7:$AJ$38,'DATA CLA Acc'!B$48,FALSE)),IF(VLOOKUP($A25,'DATA CLA Acc'!$A$7:$AJ$38,'DATA CLA Acc'!B$48,FALSE)="*",0,VLOOKUP($A25,'DATA CLA Acc'!$A$7:$AJ$38,'DATA CLA Acc'!B$48,FALSE)))/SUM(VLOOKUP($A21,'DATA CLA Acc'!$A$7:$AJ$39,9,FALSE),VLOOKUP($A22,'DATA CLA Acc'!$A$7:$AJ$39,9,FALSE),VLOOKUP($A23,'DATA CLA Acc'!$A$7:$AJ$39,9,FALSE),VLOOKUP($A24,'DATA CLA Acc'!$A$7:$AJ$39,9,FALSE),VLOOKUP($A25,'DATA CLA Acc'!$A$7:$AJ$39,9,FALSE)) -> 0.2006071338 | C27: =SUM(IF(VLOOKUP($A21,'DATA CLA Acc'!$A$7:$AJ$38,'DATA CLA Acc'!C$48,FALSE)="*",0,VLOOKUP($A21,'DATA CLA Acc'!$A$7:$AJ$38,'DATA CLA Acc'!C$48,FALSE)),IF(VLOOKUP($A22,'DATA CLA Acc'!$A$7:$AJ$38,'DATA CLA Acc'!C$48,FALSE)="*",0,VLOOKUP($A22,'DATA CLA Acc'!$A$7:$AJ$38,'DATA CLA Acc'!C$48,FALSE)),IF(VLOOKUP($A23,'DATA CLA Acc'!$A$7:$AJ$38,'DATA CLA Acc'!C$48,FALSE)="*",0,VLOOKUP($A23,'DATA CLA Acc'!$A$7:$AJ$38,'DATA CLA Acc'!C$48,FALSE)),IF(VLOOKUP($A24,'DATA CLA Acc'!$A$7:$AJ$38,'DATA CLA Acc'!C$48,FALSE)="*",0,VLOOKUP($A24,'DATA CLA Acc'!$A$7:$AJ$38,'DATA CLA Acc'!C$48,FALSE)),IF(VLOOKUP($A25,'DATA CLA Acc'!$A$7:$AJ$38,'DATA CLA Acc'!C$48,FALSE)="*",0,VLOOKUP($A25,'DATA CLA Acc'!$A$7:$AJ$38,'DATA CLA Acc'!C$48,FALSE)))/SUM(VLOOKUP($A21,'DATA CLA Acc'!$A$7:$AJ$39,9,FALSE),VLOOKUP($A22,'DATA CLA Acc'!$A$7:$AJ$39,9,FALSE),VLOOKUP($A23,'DATA CLA Acc'!$A$7:$AJ$39,9,FALSE),VLOOKUP($A24,'DATA CLA Acc'!$A$7:$AJ$39,9,FALSE),VLOOKUP($A25,'DATA CLA Acc'!$A$7:$AJ$39,9,FALSE)) -> 0.4065266886 | D27: =SUM(IF(VLOOKUP($A21,'DATA CLA Acc'!$A$7:$AJ$38,'DATA CLA Acc'!D$48,FALSE)="*",0,VLOOKUP($A21,'DATA CLA Acc'!$A$7:$AJ$38,'DATA CLA Acc'!D$48,FALSE)),IF(VLOOKUP($A22,'DATA CLA Acc'!$A$7:$AJ$38,'DATA CLA Acc'!D$48,FALSE)="*",0,VLOOKUP($A22,'DATA CLA Acc'!$A$7:$AJ$38,'DATA CLA Acc'!D$48,FALSE)),IF(VLOOKUP($A23,'DATA CLA Acc'!$A$7:$AJ$38,'DATA CLA Acc'!D$48,FALSE)="*",0,VLOOKUP($A23,'DATA CLA Acc'!$A$7:$AJ$38,'DATA CLA Acc'!D$48,FALSE)),IF(VLOOKUP($A24,'DATA CLA Acc'!$A$7:$AJ$38,'DATA CLA Acc'!D$48,FALSE)="*",0,VLOOKUP($A24,'DATA CLA Acc'!$A$7:$AJ$38,'DATA CLA Acc'!D$48,FALSE)),IF(VLOOKUP($A25,'DATA CLA Acc'!$A$7:$AJ$38,'DATA CLA Acc'!D$48,FALSE)="*",0,VLOOKUP($A25,'DATA CLA Acc'!$A$7:$AJ$38,'DATA CLA Acc'!D$48,FALSE)))/SUM(VLOOKUP($A21,'DATA CLA Acc'!$A$7:$AJ$39,9,FALSE),VLOOKUP($A22,'DATA CLA Acc'!$A$7:$AJ$39,9,FALSE),VLOOKUP($A23,'DATA CLA Acc'!$A$7:$AJ$39,9,FALSE),VLOOKUP($A24,'DATA CLA Acc'!$A$7:$AJ$39,9,FALSE),VLOOKUP($A25,'DATA CLA Acc'!$A$7:$AJ$39,9,FALSE)) -> 0.2157854794 | E27: =SUM(IF(VLOOKUP($A21,'DATA CLA Acc'!$A$7:$AJ$38,'DATA CLA Acc'!E$48,FALSE)="*",0,VLOOKUP($A21,'DATA CLA Acc'!$A$7:$AJ$38,'DATA CLA Acc'!E$48,FALSE)),IF(VLOOKUP($A22,'DATA CLA Acc'!$A$7:$AJ$38,'DATA CLA Acc'!E$48,FALSE)="*",0,VLOOKUP($A22,'DATA CLA Acc'!$A$7:$AJ$38,'DATA CLA Acc'!E$48,FALSE)),IF(VLOOKUP($A23,'DATA CLA Acc'!$A$7:$AJ$38,'DATA CLA Acc'!E$48,FALSE)="*",0,VLOOKUP($A23,'DATA CLA Acc'!$A$7:$AJ$38,'DATA CLA Acc'!E$48,FALSE)),IF(VLOOKUP($A24,'DATA CLA Acc'!$A$7:$AJ$38,'DATA CLA Acc'!E$48,FALSE)="*",0,VLOOKUP($A24,'DATA CLA Acc'!$A$7:$AJ$38,'DATA CLA Acc'!E$48,FALSE)),IF(VLOOKUP($A25,'DATA CLA Acc'!$A$7:$AJ$38,'DATA CLA Acc'!E$48,FALSE)="*",0,VLOOKUP($A25,'DATA CLA Acc'!$A$7:$AJ$38,'DATA CLA Acc'!E$48,FALSE)))/SUM(VLOOKUP($A21,'DATA CLA Acc'!$A$7:$AJ$39,9,FALSE),VLOOKUP($A22,'DATA CLA Acc'!$A$7:$AJ$39,9,FALSE),VLOOKUP($A23,'DATA CLA Acc'!$A$7:$AJ$39,9,FALSE),VLOOKUP($A24,'DATA CLA Acc'!$A$7:$AJ$39,9,FALSE),VLOOKUP($A25,'DATA CLA Acc'!$A$7:$AJ$39,9,FALSE)) -> 0.08246901088 | F27: =SUM(IF(VLOOKUP($A21,'DATA CLA Acc'!$A$7:$AJ$38,'DATA CLA Acc'!F$48,FALSE)="*",0,VLOOKUP($A21,'DATA CLA Acc'!$A$7:$AJ$38,'DATA CLA Acc'!F$48,FALSE)),IF(VLOOKUP($A22,'DATA CLA Acc'!$A$7:$AJ$38,'DATA CLA Acc'!F$48,FALSE)="*",0,VLOOKUP($A22,'DATA CLA Acc'!$A$7:$AJ$38,'DATA CLA Acc'!F$48,FALSE)),IF(VLOOKUP($A23,'DATA CLA Acc'!$A$7:$AJ$38,'DATA CLA Acc'!F$48,FALSE)="*",0,VLOOKUP($A23,'DATA CLA Acc'!$A$7:$AJ$38,'DATA CLA Acc'!F$48,FALSE)),IF(VLOOKUP($A24,'DATA CLA Acc'!$A$7:$AJ$38,'DATA CLA Acc'!F$48,FALSE)="*",0,VLOOKUP($A24,'DATA CLA Acc'!$A$7:$AJ$38,'DATA CLA Acc'!F$48,FALSE)),IF(VLOOKUP($A25,'DATA CLA Acc'!$A$7:$AJ$38,'DATA CLA Acc'!F$48,FALSE)="*",0,VLOOKUP($A25,'DATA CLA Acc'!$A$7:$AJ$38,'DATA CLA Acc'!F$48,FALSE)))/SUM(VLOOKUP($A21,'DATA CLA Acc'!$A$7:$AJ$39,9,FALSE),VLOOKUP($A22,'DATA CLA Acc'!$A$7:$AJ$39,9,FALSE),VLOOKUP($A23,'DATA CLA Acc'!$A$7:$AJ$39,9,FALSE),VLOOKUP($A24,'DATA CLA Acc'!$A$7:$AJ$39,9,FALSE),VLOOKUP($A25,'DATA CLA Acc'!$A$7:$AJ$39,9,FALSE)) -> 0.009107007336 | G27: =SUM(IF(VLOOKUP($A21,'DATA CLA Acc'!$A$7:$AJ$38,'DATA CLA Acc'!G$48,FALSE)="*",0,VLOOKUP($A21,'DATA CLA Acc'!$A$7:$AJ$38,'DATA CLA Acc'!G$48,FALSE)),IF(VLOOKUP($A22,'DATA CLA Acc'!$A$7:$AJ$38,'DATA CLA Acc'!G$48,FALSE)="*",0,VLOOKUP($A22,'DATA CLA Acc'!$A$7:$AJ$38,'DATA CLA Acc'!G$48,FALSE)),IF(VLOOKUP($A23,'DATA CLA Acc'!$A$7:$AJ$38,'DATA CLA Acc'!G$48,FALSE)="*",0,VLOOKUP($A23,'DATA CLA Acc'!$A$7:$AJ$38,'DATA CLA Acc'!G$48,FALSE)),IF(VLOOKUP($A24,'DATA CLA Acc'!$A$7:$AJ$38,'DATA CLA Acc'!G$48,FALSE)="*",0,VLOOKUP($A24,'DATA CLA Acc'!$A$7:$AJ$38,'DATA CLA Acc'!G$48,FALSE)),IF(VLOOKUP($A25,'DATA CLA Acc'!$A$7:$AJ$38,'DATA CLA Acc'!G$48,FALSE)="*",0,VLOOKUP($A25,'DATA CLA Acc'!$A$7:$AJ$38,'DATA CLA Acc'!G$48,FALSE)))/SUM(VLOOKUP($A21,'DATA CLA Acc'!$A$7:$AJ$39,9,FALSE),VLOOKUP($A22,'DATA CLA Acc'!$A$7:$AJ$39,9,FALSE),VLOOKUP($A23,'DATA CLA Acc'!$A$7:$AJ$39,9,FALSE),VLOOKUP($A24,'DATA CLA Acc'!$A$7:$AJ$39,9,FALSE),VLOOKUP($A25,'DATA CLA Acc'!$A$7:$AJ$39,9,FALSE)) -> 0.05185934733 | H27: =SUM(IF(VLOOKUP($A21,'DATA CLA Acc'!$A$7:$AJ$38,'DATA CLA Acc'!H$48,FALSE)="*",0,VLOOKUP($A21,'DATA CLA Acc'!$A$7:$AJ$38,'DATA CLA Acc'!H$48,FALSE)),IF(VLOOKUP($A22,'DATA CLA Acc'!$A$7:$AJ$38,'DATA CLA Acc'!H$48,FALSE)="*",0,VLOOKUP($A22,'DATA CLA Acc'!$A$7:$AJ$38,'DATA CLA Acc'!H$48,FALSE)),IF(VLOOKUP($A23,'DATA CLA Acc'!$A$7:$AJ$38,'DATA CLA Acc'!H$48,FALSE)="*",0,VLOOKUP($A23,'DATA CLA Acc'!$A$7:$AJ$38,'DATA CLA Acc'!H$48,FALSE)),IF(VLOOKUP($A24,'DATA CLA Acc'!$A$7:$AJ$38,'DATA CLA Acc'!H$48,FALSE)="*",0,VLOOKUP($A24,'DATA CLA Acc'!$A$7:$AJ$38,'DATA CLA Acc'!H$48,FALSE)),IF(VLOOKUP($A25,'DATA CLA Acc'!$A$7:$AJ$38,'DATA CLA Acc'!H$48,FALSE)="*",0,VLOOKUP($A25,'DATA CLA Acc'!$A$7:$AJ$38,'DATA CLA Acc'!H$48,FALSE)))/SUM(VLOOKUP($A21,'DATA CLA Acc'!$A$7:$AJ$39,9,FALSE),VLOOKUP($A22,'DATA CLA Acc'!$A$7:$AJ$39,9,FALSE),VLOOKUP($A23,'DATA CLA Acc'!$A$7:$AJ$39,9,FALSE),VLOOKUP($A24,'DATA CLA Acc'!$A$7:$AJ$39,9,FALSE),VLOOKUP($A25,'DATA CLA Acc'!$A$7:$AJ$39,9,FALSE)) -> 0.03364533266 | J27: =SUM(IF(VLOOKUP($A21,'DATA CLA Acc'!$A$7:$AJ$38,'DATA CLA Acc'!K$48,FALSE)="*",0,VLOOKUP($A21,'DATA CLA Acc'!$A$7:$AJ$38,'DATA CLA Acc'!K$48,FALSE)),IF(VLOOKUP($A22,'DATA CLA Acc'!$A$7:$AJ$38,'DATA CLA Acc'!K$48,FALSE)="*",0,VLOOKUP($A22,'DATA CLA Acc'!$A$7:$AJ$38,'DATA CLA Acc'!K$48,FALSE)),IF(VLOOKUP($A23,'DATA CLA Acc'!$A$7:$AJ$38,'DATA CLA Acc'!K$48,FALSE)="*",0,VLOOKUP($A23,'DATA CLA Acc'!$A$7:$AJ$38,'DATA CLA Acc'!K$48,FALSE)),IF(VLOOKUP($A24,'DATA CLA Acc'!$A$7:$AJ$38,'DATA CLA Acc'!K$48,FALSE)="*",0,VLOOKUP($A24,'DATA CLA Acc'!$A$7:$AJ$38,'DATA CLA Acc'!K$48,FALSE)),IF(VLOOKUP($A25,'DATA CLA Acc'!$A$7:$AJ$38,'DATA CLA Acc'!K$48,FALSE)="*",0,VLOOKUP($A25,'DATA CLA Acc'!$A$7:$AJ$38,'DATA CLA Acc'!K$48,FALSE)))/SUM(VLOOKUP($A21,'DATA CLA Acc'!$A$7:$AJ$39,18,FALSE),VLOOKUP($A22,'DATA CLA Acc'!$A$7:$AJ$39,18,FALSE),VLOOKUP($A23,'DATA CLA Acc'!$A$7:$AJ$39,18,FALSE),VLOOKUP($A24,'DATA CLA Acc'!$A$7:$AJ$39,18,FALSE),VLOOKUP($A25,'DATA CLA Acc'!$A$7:$AJ$39,18,FALSE)) -> 0.2108723135 | K27: =SUM(IF(VLOOKUP($A21,'DATA CLA Acc'!$A$7:$AJ$38,'DATA CLA Acc'!L$48,FALSE)="*",0,VLOOKUP($A21,'DATA CLA Acc'!$A$7:$AJ$38,'DATA CLA Acc'!L$48,FALSE)),IF(VLOOKUP($A22,'DATA CLA Acc'!$A$7:$AJ$38,'DATA CLA Acc'!L$48,FALSE)="*",0,VLOOKUP($A22,'DATA CLA Acc'!$A$7:$AJ$38,'DATA CLA Acc'!L$48,FALSE)),IF(VLOOKUP($A23,'DATA CLA Acc'!$A$7:$AJ$38,'DATA CLA Acc'!L$48,FALSE)="*",0,VLOOKUP($A23,'DATA CLA Acc'!$A$7:$AJ$38,'DATA CLA Acc'!L$48,FALSE)),IF(VLOOKUP($A24,'DATA CLA Acc'!$A$7:$AJ$38,'DATA CLA Acc'!L$48,FALSE)="*",0,VLOOKUP($A24,'DATA CLA Acc'!$A$7:$AJ$38,'DATA CLA Acc'!L$48,FALSE)),IF(VLOOKUP($A25,'DATA CLA Acc'!$A$7:$AJ$38,'DATA CLA Acc'!L$48,FALSE)="*",0,VLOOKUP($A25,'DATA CLA Acc'!$A$7:$AJ$38,'DATA CLA Acc'!L$48,FALSE)))/SUM(VLOOKUP($A21,'DATA CLA Acc'!$A$7:$AJ$39,18,FALSE),VLOOKUP($A22,'DATA CLA Acc'!$A$7:$AJ$39,18,FALSE),VLOOKUP($A23,'DATA CLA Acc'!$A$7:$AJ$39,18,FALSE),VLOOKUP($A24,'DATA CLA Acc'!$A$7:$AJ$39,18,FALSE),VLOOKUP($A25,'DATA CLA Acc'!$A$7:$AJ$39,18,FALSE)) -> 0.4048040455 | L27: =SUM(IF(VLOOKUP($A21,'DATA CLA Acc'!$A$7:$AJ$38,'DATA CLA Acc'!M$48,FALSE)="*",0,VLOOKUP($A21,'DATA CLA Acc'!$A$7:$AJ$38,'DATA CLA Acc'!M$48,FALSE)),IF(VLOOKUP($A22,'DATA CLA Acc'!$A$7:$AJ$38,'DATA CLA Acc'!M$48,FALSE)="*",0,VLOOKUP($A22,'DATA CLA Acc'!$A$7:$AJ$38,'DATA CLA Acc'!M$48,FALSE)),IF(VLOOKUP($A23,'DATA CLA Acc'!$A$7:$AJ$38,'DATA CLA Acc'!M$48,FALSE)="*",0,VLOOKUP($A23,'DATA CLA Acc'!$A$7:$AJ$38,'DATA CLA Acc'!M$48,FALSE)),IF(VLOOKUP($A24,'DATA CLA Acc'!$A$7:$AJ$38,'DATA CLA Acc'!M$48,FALSE)="*",0,VLOOKUP($A24,'DATA CLA Acc'!$A$7:$AJ$38,'DATA CLA Acc'!M$48,FALSE)),IF(VLOOKUP($A25,'DATA CLA Acc'!$A$7:$AJ$38,'DATA CLA Acc'!M$48,FALSE)="*",0,VLOOKUP($A25,'DATA CLA Acc'!$A$7:$AJ$38,'DATA CLA Acc'!M$48,FALSE)))/SUM(VLOOKUP($A21,'DATA CLA Acc'!$A$7:$AJ$39,18,FALSE),VLOOKUP($A22,'DATA CLA Acc'!$A$7:$AJ$39,18,FALSE),VLOOKUP($A23,'DATA CLA Acc'!$A$7:$AJ$39,18,FALSE),VLOOKUP($A24,'DATA CLA Acc'!$A$7:$AJ$39,18,FALSE),VLOOKUP($A25,'DATA CLA Acc'!$A$7:$AJ$39,18,FALSE)) -> 0.2027812895 | M27: =SUM(IF(VLOOKUP($A21,'DATA CLA Acc'!$A$7:$AJ$38,'DATA CLA Acc'!N$48,FALSE)="*",0,VLOOKUP($A21,'DATA CLA Acc'!$A$7:$AJ$38,'DATA CLA Acc'!N$48,FALSE)),IF(VLOOKUP($A22,'DATA CLA Acc'!$A$7:$AJ$38,'DATA CLA Acc'!N$48,FALSE)="*",0,VLOOKUP($A22,'DATA CLA Acc'!$A$7:$AJ$38,'DATA CLA Acc'!N$48,FALSE)),IF(VLOOKUP($A23,'DATA CLA Acc'!$A$7:$AJ$38,'DATA CLA Acc'!N$48,FALSE)="*",0,VLOOKUP($A23,'DATA CLA Acc'!$A$7:$AJ$38,'DATA CLA Acc'!N$48,FALSE)),IF(VLOOKUP($A24,'DATA CLA Acc'!$A$7:$AJ$38,'DATA CLA Acc'!N$48,FALSE)="*",0,VLOOKUP($A24,'DATA CLA Acc'!$A$7:$AJ$38,'DATA CLA Acc'!N$48,FALSE)),IF(VLOOKUP($A25,'DATA CLA Acc'!$A$7:$AJ$38,'DATA CLA Acc'!N$48,FALSE)="*",0,VLOOKUP($A25,'DATA CLA Acc'!$A$7:$AJ$38,'DATA CLA Acc'!N$48,FALSE)))/SUM(VLOOKUP($A21,'DATA CLA Acc'!$A$7:$AJ$39,18,FALSE),VLOOKUP($A22,'DATA CLA Acc'!$A$7:$AJ$39,18,FALSE),VLOOKUP($A23,'DATA CLA Acc'!$A$7:$AJ$39,18,FALSE),VLOOKUP($A24,'DATA CLA Acc'!$A$7:$AJ$39,18,FALSE),VLOOKUP($A25,'DATA CLA Acc'!$A$7:$AJ$39,18,FALSE)) -> 0.07787610619 | N27: =SUM(IF(VLOOKUP($A21,'DATA CLA Acc'!$A$7:$AJ$38,'DATA CLA Acc'!O$48,FALSE)="*",0,VLOOKUP($A21,'DATA CLA Acc'!$A$7:$AJ$38,'DATA CLA Acc'!O$48,FALSE)),IF(VLOOKUP($A22,'DATA CLA Acc'!$A$7:$AJ$38,'DATA CLA Acc'!O$48,FALSE)="*",0,VLOOKUP($A22,'DATA CLA Acc'!$A$7:$AJ$38,'DATA CLA Acc'!O$48,FALSE)),IF(VLOOKUP($A23,'DATA CLA Acc'!$A$7:$AJ$38,'DATA CLA Acc'!O$48,FALSE)="*",0,VLOOKUP($A23,'DATA CLA Acc'!$A$7:$AJ$38,'DATA CLA Acc'!O$48,FALSE)),IF(VLOOKUP($A24,'DATA CLA Acc'!$A$7:$AJ$38,'DATA CLA Acc'!O$48,FALSE)="*",0,VLOOKUP($A24,'DATA CLA Acc'!$A$7:$AJ$38,'DATA CLA Acc'!O$48,FALSE)),IF(VLOOKUP($A25,'DATA CLA Acc'!$A$7:$AJ$38,'DATA CLA Acc'!O$48,FALSE)="*",0,VLOOKUP($A25,'DATA CLA Acc'!$A$7:$AJ$38,'DATA CLA Acc'!O$48,FALSE)))/SUM(VLOOKUP($A21,'DATA CLA Acc'!$A$7:$AJ$39,18,FALSE),VLOOKUP($A22,'DATA CLA Acc'!$A$7:$AJ$39,18,FALSE),VLOOKUP($A23,'DATA CLA Acc'!$A$7:$AJ$39,18,FALSE),VLOOKUP($A24,'DATA CLA Acc'!$A$7:$AJ$39,18,FALSE),VLOOKUP($A25,'DATA CLA Acc'!$A$7:$AJ$39,18,FALSE)) -> 0.01264222503 | O27: =SUM(IF(VLOOKUP($A21,'DATA CLA Acc'!$A$7:$AJ$38,'DATA CLA Acc'!P$48,FALSE)="*",0,VLOOKUP($A21,'DATA CLA Acc'!$A$7:$AJ$38,'DATA CLA Acc'!P$48,FALSE)),IF(VLOOKUP($A22,'DATA CLA Acc'!$A$7:$AJ$38,'DATA CLA Acc'!P$48,FALSE)="*",0,VLOOKUP($A22,'DATA CLA Acc'!$A$7:$AJ$38,'DATA CLA Acc'!P$48,FALSE)),IF(VLOOKUP($A23,'DATA CLA Acc'!$A$7:$AJ$38,'DATA CLA Acc'!P$48,FALSE)="*",0,VLOOKUP($A23,'DATA CLA Acc'!$A$7:$AJ$38,'DATA CLA Acc'!P$48,FALSE)),IF(VLOOKUP($A24,'DATA CLA Acc'!$A$7:$AJ$38,'DATA CLA Acc'!P$48,FALSE)="*",0,VLOOKUP($A24,'DATA CLA Acc'!$A$7:$AJ$38,'DATA CLA Acc'!P$48,FALSE)),IF(VLOOKUP($A25,'DATA CLA Acc'!$A$7:$AJ$38,'DATA CLA Acc'!P$48,FALSE)="*",0,VLOOKUP($A25,'DATA CLA Acc'!$A$7:$AJ$38,'DATA CLA Acc'!P$48,FALSE)))/SUM(VLOOKUP($A21,'DATA CLA Acc'!$A$7:$AJ$39,18,FALSE),VLOOKUP($A22,'DATA CLA Acc'!$A$7:$AJ$39,18,FALSE),VLOOKUP($A23,'DATA CLA Acc'!$A$7:$AJ$39,18,FALSE),VLOOKUP($A24,'DATA CLA Acc'!$A$7:$AJ$39,18,FALSE),VLOOKUP($A25,'DATA CLA Acc'!$A$7:$AJ$39,18,FALSE)) -> 0.05082174463 | P27: =SUM(IF(VLOOKUP($A21,'DATA CLA Acc'!$A$7:$AJ$38,'DATA CLA Acc'!Q$48,FALSE)="*",0,VLOOKUP($A21,'DATA CLA Acc'!$A$7:$AJ$38,'DATA CLA Acc'!Q$48,FALSE)),IF(VLOOKUP($A22,'DATA CLA Acc'!$A$7:$AJ$38,'DATA CLA Acc'!Q$48,FALSE)="*",0,VLOOKUP($A22,'DATA CLA Acc'!$A$7:$AJ$38,'DATA CLA Acc'!Q$48,FALSE)),IF(VLOOKUP($A23,'DATA CLA Acc'!$A$7:$AJ$38,'DATA CLA Acc'!Q$48,FALSE)="*",0,VLOOKUP($A23,'DATA CLA Acc'!$A$7:$AJ$38,'DATA CLA Acc'!Q$48,FALSE)),IF(VLOOKUP($A24,'DATA CLA Acc'!$A$7:$AJ$38,'DATA CLA Acc'!Q$48,FALSE)="*",0,VLOOKUP($A24,'DATA CLA Acc'!$A$7:$AJ$38,'DATA CLA Acc'!Q$48,FALSE)),IF(VLOOKUP($A25,'DATA CLA Acc'!$A$7:$AJ$38,'DATA CLA Acc'!Q$48,FALSE)="*",0,VLOOKUP($A25,'DATA CLA Acc'!$A$7:$AJ$38,'DATA CLA Acc'!Q$48,FALSE)))/SUM(VLOOKUP($A21,'DATA CLA Acc'!$A$7:$AJ$39,18,FALSE),VLOOKUP($A22,'DATA CLA Acc'!$A$7:$AJ$39,18,FALSE),VLOOKUP($A23,'DATA CLA Acc'!$A$7:$AJ$39,18,FALSE),VLOOKUP($A24,'DATA CLA Acc'!$A$7:$AJ$39,18,FALSE),VLOOKUP($A25,'DATA CLA Acc'!$A$7:$AJ$39,18,FALSE)) -> 0.0402022756 | R27: =SUM(IF(VLOOKUP($A21,'DATA CLA Acc'!$A$7:$AJ$38,'DATA CLA Acc'!T$48,FALSE)="*",0,VLOOKUP($A21,'DATA CLA Acc'!$A$7:$AJ$38,'DATA CLA Acc'!T$48,FALSE)),IF(VLOOKUP($A22,'DATA CLA Acc'!$A$7:$AJ$38,'DATA CLA Acc'!T$48,FALSE)="*",0,VLOOKUP($A22,'DATA CLA Acc'!$A$7:$AJ$38,'DATA CLA Acc'!T$48,FALSE)),IF(VLOOKUP($A23,'DATA CLA Acc'!$A$7:$AJ$38,'DATA CLA Acc'!T$48,FALSE)="*",0,VLOOKUP($A23,'DATA CLA Acc'!$A$7:$AJ$38,'DATA CLA Acc'!T$48,FALSE)),IF(VLOOKUP($A24,'DATA CLA Acc'!$A$7:$AJ$38,'DATA CLA Acc'!T$48,FALSE)="*",0,VLOOKUP($A24,'DATA CLA Acc'!$A$7:$AJ$38,'DATA CLA Acc'!T$48,FALSE)),IF(VLOOKUP($A25,'DATA CLA Acc'!$A$7:$AJ$38,'DATA CLA Acc'!T$48,FALSE)="*",0,VLOOKUP($A25,'DATA CLA Acc'!$A$7:$AJ$38,'DATA CLA Acc'!T$48,FALSE)))/SUM(VLOOKUP($A21,'DATA CLA Acc'!$A$7:$AJ$39,27,FALSE),VLOOKUP($A22,'DATA CLA Acc'!$A$7:$AJ$39,27,FALSE),VLOOKUP($A23,'DATA CLA Acc'!$A$7:$AJ$39,27,FALSE),VLOOKUP($A24,'DATA CLA Acc'!$A$7:$AJ$39,27,FALSE),VLOOKUP($A25,'DATA CLA Acc'!$A$7:$AJ$39,27,FALSE)) -> 0.189204076 | S27: =SUM(IF(VLOOKUP($A21,'DATA CLA Acc'!$A$7:$AJ$38,'DATA CLA Acc'!U$48,FALSE)="*",0,VLOOKUP($A21,'DATA CLA Acc'!$A$7:$AJ$38,'DATA CLA Acc'!U$48,FALSE)),IF(VLOOKUP($A22,'DATA CLA Acc'!$A$7:$AJ$38,'DATA CLA Acc'!U$48,FALSE)="*",0,VLOOKUP($A22,'DATA CLA Acc'!$A$7:$AJ$38,'DATA CLA Acc'!U$48,FALSE)),IF(VLOOKUP($A23,'DATA CLA Acc'!$A$7:$AJ$38,'DATA CLA Acc'!U$48,FALSE)="*",0,VLOOKUP($A23,'DATA CLA Acc'!$A$7:$AJ$38,'DATA CLA Acc'!U$48,FALSE)),IF(VLOOKUP($A24,'DATA CLA Acc'!$A$7:$AJ$38,'DATA CLA Acc'!U$48,FALSE)="*",0,VLOOKUP($A24,'DATA CLA Acc'!$A$7:$AJ$38,'DATA CLA Acc'!U$48,FALSE)),IF(VLOOKUP($A25,'DATA CLA Acc'!$A$7:$AJ$38,'DATA CLA Acc'!U$48,FALSE)="*",0,VLOOKUP($A25,'DATA CLA Acc'!$A$7:$AJ$38,'DATA CLA Acc'!U$48,FALSE)))/SUM(VLOOKUP($A21,'DATA CLA Acc'!$A$7:$AJ$39,27,FALSE),VLOOKUP($A22,'DATA CLA Acc'!$A$7:$AJ$39,27,FALSE),VLOOKUP($A23,'DATA CLA Acc'!$A$7:$AJ$39,27,FALSE),VLOOKUP($A24,'DATA CLA Acc'!$A$7:$AJ$39,27,FALSE),VLOOKUP($A25,'DATA CLA Acc'!$A$7:$AJ$39,27,FALSE)) -> 0.4232993666 | T27: =SUM(IF(VLOOKUP($A21,'DATA CLA Acc'!$A$7:$AJ$38,'DATA CLA Acc'!V$48,FALSE)="*",0,VLOOKUP($A21,'DATA CLA Acc'!$A$7:$AJ$38,'DATA CLA Acc'!V$48,FALSE)),IF(VLOOKUP($A22,'DATA CLA Acc'!$A$7:$AJ$38,'DATA CLA Acc'!V$48,FALSE)="*",0,VLOOKUP($A22,'DATA CLA Acc'!$A$7:$AJ$38,'DATA CLA Acc'!V$48,FALSE)),IF(VLOOKUP($A23,'DATA CLA Acc'!$A$7:$AJ$38,'DATA CLA Acc'!V$48,FALSE)="*",0,VLOOKUP($A23,'DATA CLA Acc'!$A$7:$AJ$38,'DATA CLA Acc'!V$48,FALSE)),IF(VLOOKUP($A24,'DATA CLA Acc'!$A$7:$AJ$38,'DATA CLA Acc'!V$48,FALSE)="*",0,VLOOKUP($A24,'DATA CLA Acc'!$A$7:$AJ$38,'DATA CLA Acc'!V$48,FALSE)),IF(VLOOKUP($A25,'DATA CLA Acc'!$A$7:$AJ$38,'DATA CLA Acc'!V$48,FALSE)="*",0,VLOOKUP($A25,'DATA CLA Acc'!$A$7:$AJ$38,'DATA CLA Acc'!V$48,FALSE)))/SUM(VLOOKUP($A21,'DATA CLA Acc'!$A$7:$AJ$39,27,FALSE),VLOOKUP($A22,'DATA CLA Acc'!$A$7:$AJ$39,27,FALSE),VLOOKUP($A23,'DATA CLA Acc'!$A$7:$AJ$39,27,FALSE),VLOOKUP($A24,'DATA CLA Acc'!$A$7:$AJ$39,27,FALSE),VLOOKUP($A25,'DATA CLA Acc'!$A$7:$AJ$39,27,FALSE)) -> 0.2200495731 | U27: =SUM(IF(VLOOKUP($A21,'DATA CLA Acc'!$A$7:$AJ$38,'DATA CLA Acc'!W$48,FALSE)="*",0,VLOOKUP($A21,'DATA CLA Acc'!$A$7:$AJ$38,'DATA CLA Acc'!W$48,FALSE)),IF(VLOOKUP($A22,'DATA CLA Acc'!$A$7:$AJ$38,'DATA CLA Acc'!W$48,FALSE)="*",0,VLOOKUP($A22,'DATA CLA Acc'!$A$7:$AJ$38,'DATA CLA Acc'!W$48,FALSE)),IF(VLOOKUP($A23,'DATA CLA Acc'!$A$7:$AJ$38,'DATA CLA Acc'!W$48,FALSE)="*",0,VLOOKUP($A23,'DATA CLA Acc'!$A$7:$AJ$38,'DATA CLA Acc'!W$48,FALSE)),IF(VLOOKUP($A24,'DATA CLA Acc'!$A$7:$AJ$38,'DATA CLA Acc'!W$48,FALSE)="*",0,VLOOKUP($A24,'DATA CLA Acc'!$A$7:$AJ$38,'DATA CLA Acc'!W$48,FALSE)),IF(VLOOKUP($A25,'DATA CLA Acc'!$A$7:$AJ$38,'DATA CLA Acc'!W$48,FALSE)="*",0,VLOOKUP($A25,'DATA CLA Acc'!$A$7:$AJ$38,'DATA CLA Acc'!W$48,FALSE)))/SUM(VLOOKUP($A21,'DATA CLA Acc'!$A$7:$AJ$39,27,FALSE),VLOOKUP($A22,'DATA CLA Acc'!$A$7:$AJ$39,27,FALSE),VLOOKUP($A23,'DATA CLA Acc'!$A$7:$AJ$39,27,FALSE),VLOOKUP($A24,'DATA CLA Acc'!$A$7:$AJ$39,27,FALSE),VLOOKUP($A25,'DATA CLA Acc'!$A$7:$AJ$39,27,FALSE)) -> 0.07380886808 | V27: =SUM(IF(VLOOKUP($A21,'DATA CLA Acc'!$A$7:$AJ$38,'DATA CLA Acc'!X$48,FALSE)="*",0,VLOOKUP($A21,'DATA CLA Acc'!$A$7:$AJ$38,'DATA CLA Acc'!X$48,FALSE)),IF(VLOOKUP($A22,'DATA CLA Acc'!$A$7:$AJ$38,'DATA CLA Acc'!X$48,FALSE)="*",0,VLOOKUP($A22,'DATA CLA Acc'!$A$7:$AJ$38,'DATA CLA Acc'!X$48,FALSE)),IF(VLOOKUP($A23,'DATA CLA Acc'!$A$7:$AJ$38,'DATA CLA Acc'!X$48,FALSE)="*",0,VLOOKUP($A23,'DATA CLA Acc'!$A$7:$AJ$38,'DATA CLA Acc'!X$48,FALSE)),IF(VLOOKUP($A24,'DATA CLA Acc'!$A$7:$AJ$38,'DATA CLA Acc'!X$48,FALSE)="*",0,VLOOKUP($A24,'DATA CLA Acc'!$A$7:$AJ$38,'DATA CLA Acc'!X$48,FALSE)),IF(VLOOKUP($A25,'DATA CLA Acc'!$A$7:$AJ$38,'DATA CLA Acc'!X$48,FALSE)="*",0,VLOOKUP($A25,'DATA CLA Acc'!$A$7:$AJ$38,'DATA CLA Acc'!X$48,FALSE)))/SUM(VLOOKUP($A21,'DATA CLA Acc'!$A$7:$AJ$39,27,FALSE),VLOOKUP($A22,'DATA CLA Acc'!$A$7:$AJ$39,27,FALSE),VLOOKUP($A23,'DATA CLA Acc'!$A$7:$AJ$39,27,FALSE),VLOOKUP($A24,'DATA CLA Acc'!$A$7:$AJ$39,27,FALSE),VLOOKUP($A25,'DATA CLA Acc'!$A$7:$AJ$39,27,FALSE)) -> 0.008262186725 | W27: =SUM(IF(VLOOKUP($A21,'DATA CLA Acc'!$A$7:$AJ$38,'DATA CLA Acc'!Y$48,FALSE)="*",0,VLOOKUP($A21,'DATA CLA Acc'!$A$7:$AJ$38,'DATA CLA Acc'!Y$48,FALSE)),IF(VLOOKUP($A22,'DATA CLA Acc'!$A$7:$AJ$38,'DATA CLA Acc'!Y$48,FALSE)="*",0,VLOOKUP($A22,'DATA CLA Acc'!$A$7:$AJ$38,'DATA CLA Acc'!Y$48,FALSE)),IF(VLOOKUP($A23,'DATA CLA Acc'!$A$7:$AJ$38,'DATA CLA Acc'!Y$48,FALSE)="*",0,VLOOKUP($A23,'DATA CLA Acc'!$A$7:$AJ$38,'DATA CLA Acc'!Y$48,FALSE)),IF(VLOOKUP($A24,'DATA CLA Acc'!$A$7:$AJ$38,'DATA CLA Acc'!Y$48,FALSE)="*",0,VLOOKUP($A24,'DATA CLA Acc'!$A$7:$AJ$38,'DATA CLA Acc'!Y$48,FALSE)),IF(VLOOKUP($A25,'DATA CLA Acc'!$A$7:$AJ$38,'DATA CLA Acc'!Y$48,FALSE)="*",0,VLOOKUP($A25,'DATA CLA Acc'!$A$7:$AJ$38,'DATA CLA Acc'!Y$48,FALSE)))/SUM(VLOOKUP($A21,'DATA CLA Acc'!$A$7:$AJ$39,27,FALSE),VLOOKUP($A22,'DATA CLA Acc'!$A$7:$AJ$39,27,FALSE),VLOOKUP($A23,'DATA CLA Acc'!$A$7:$AJ$39,27,FALSE),VLOOKUP($A24,'DATA CLA Acc'!$A$7:$AJ$39,27,FALSE),VLOOKUP($A25,'DATA CLA Acc'!$A$7:$AJ$39,27,FALSE)) -> 0.04929771413 | X27: =SUM(IF(VLOOKUP($A21,'DATA CLA Acc'!$A$7:$AJ$38,'DATA CLA Acc'!Z$48,FALSE)="*",0,VLOOKUP($A21,'DATA CLA Acc'!$A$7:$AJ$38,'DATA CLA Acc'!Z$48,FALSE)),IF(VLOOKUP($A22,'DATA CLA Acc'!$A$7:$AJ$38,'DATA CLA Acc'!Z$48,FALSE)="*",0,VLOOKUP($A22,'DATA CLA Acc'!$A$7:$AJ$38,'DATA CLA Acc'!Z$48,FALSE)),IF(VLOOKUP($A23,'DATA CLA Acc'!$A$7:$AJ$38,'DATA CLA Acc'!Z$48,FALSE)="*",0,VLOOKUP($A23,'DATA CLA Acc'!$A$7:$AJ$38,'DATA CLA Acc'!Z$48,FALSE)),IF(VLOOKUP($A24,'DATA CLA Acc'!$A$7:$AJ$38,'DATA CLA Acc'!Z$48,FALSE)="*",0,VLOOKUP($A24,'DATA CLA Acc'!$A$7:$AJ$38,'DATA CLA Acc'!Z$48,FALSE)),IF(VLOOKUP($A25,'DATA CLA Acc'!$A$7:$AJ$38,'DATA CLA Acc'!Z$48,FALSE)="*",0,VLOOKUP($A25,'DATA CLA Acc'!$A$7:$AJ$38,'DATA CLA Acc'!Z$48,FALSE)))/SUM(VLOOKUP($A21,'DATA CLA Acc'!$A$7:$AJ$39,27,FALSE),VLOOKUP($A22,'DATA CLA Acc'!$A$7:$AJ$39,27,FALSE),VLOOKUP($A23,'DATA CLA Acc'!$A$7:$AJ$39,27,FALSE),VLOOKUP($A24,'DATA CLA Acc'!$A$7:$AJ$39,27,FALSE),VLOOKUP($A25,'DATA CLA Acc'!$A$7:$AJ$39,27,FALSE)) -> 0.03607821537 | Z27: =SUM(IF(VLOOKUP($A21,'DATA CLA Acc'!$A$7:$AJ$38,'DATA CLA Acc'!AC$48,FALSE)="*",0,VLOOKUP($A21,'DATA CLA Acc'!$A$7:$AJ$38,'DATA CLA Acc'!AC$48,FALSE)),IF(VLOOKUP($A22,'DATA CLA Acc'!$A$7:$AJ$38,'DATA CLA Acc'!AC$48,FALSE)="*",0,VLOOKUP($A22,'DATA CLA Acc'!$A$7:$AJ$38,'DATA CLA Acc'!AC$48,FALSE)),IF(VLOOKUP($A23,'DATA CLA Acc'!$A$7:$AJ$38,'DATA CLA Acc'!AC$48,FALSE)="*",0,VLOOKUP($A23,'DATA CLA Acc'!$A$7:$AJ$38,'DATA CLA Acc'!AC$48,FALSE)),IF(VLOOKUP($A24,'DATA CLA Acc'!$A$7:$AJ$38,'DATA CLA Acc'!AC$48,FALSE)="*",0,VLOOKUP($A24,'DATA CLA Acc'!$A$7:$AJ$38,'DATA CLA Acc'!AC$48,FALSE)),IF(VLOOKUP($A25,'DATA CLA Acc'!$A$7:$AJ$38,'DATA CLA Acc'!AC$48,FALSE)="*",0,VLOOKUP($A25,'DATA CLA Acc'!$A$7:$AJ$38,'DATA CLA Acc'!AC$48,FALSE)))/SUM(VLOOKUP($A21,'DATA CLA Acc'!$A$7:$AJ$39,36,FALSE),VLOOKUP($A22,'DATA CLA Acc'!$A$7:$AJ$39,36,FALSE),VLOOKUP($A23,'DATA CLA Acc'!$A$7:$AJ$39,36,FALSE),VLOOKUP($A24,'DATA CLA Acc'!$A$7:$AJ$39,36,FALSE),VLOOKUP($A25,'DATA CLA Acc'!$A$7:$AJ$39,36,FALSE)) -> 0.181305638 | AA27: =SUM(IF(VLOOKUP($A21,'DATA CLA Acc'!$A$7:$AJ$38,'DATA CLA Acc'!AD$48,FALSE)="*",0,VLOOKUP($A21,'DATA CLA Acc'!$A$7:$AJ$38,'DATA CLA Acc'!AD$48,FALSE)),IF(VLOOKUP($A22,'DATA CLA Acc'!$A$7:$AJ$38,'DATA CLA Acc'!AD$48,FALSE)="*",0,VLOOKUP($A22,'DATA CLA Acc'!$A$7:$AJ$38,'DATA CLA Acc'!AD$48,FALSE)),IF(VLOOKUP($A23,'DATA CLA Acc'!$A$7:$AJ$38,'DATA CLA Acc'!AD$48,FALSE)="*",0,VLOOKUP($A23,'DATA CLA Acc'!$A$7:$AJ$38,'DATA CLA Acc'!AD$48,FALSE)),IF(VLOOKUP($A24,'DATA CLA Acc'!$A$7:$AJ$38,'DATA CLA Acc'!AD$48,FALSE)="*",0,VLOOKUP($A24,'DATA CLA Acc'!$A$7:$AJ$38,'DATA CLA Acc'!AD$48,FALSE)),IF(VLOOKUP($A25,'DATA CLA Acc'!$A$7:$AJ$38,'DATA CLA Acc'!AD$48,FALSE)="*",0,VLOOKUP($A25,'DATA CLA Acc'!$A$7:$AJ$38,'DATA CLA Acc'!AD$48,FALSE)))/SUM(VLOOKUP($A21,'DATA CLA Acc'!$A$7:$AJ$39,36,FALSE),VLOOKUP($A22,'DATA CLA Acc'!$A$7:$AJ$39,36,FALSE),VLOOKUP($A23,'DATA CLA Acc'!$A$7:$AJ$39,36,FALSE),VLOOKUP($A24,'DATA CLA Acc'!$A$7:$AJ$39,36,FALSE),VLOOKUP($A25,'DATA CLA Acc'!$A$7:$AJ$39,36,FALSE)) -> 0.4442136499 | AB27: =SUM(IF(VLOOKUP($A21,'DATA CLA Acc'!$A$7:$AJ$38,'DATA CLA Acc'!AE$48,FALSE)="*",0,VLOOKUP($A21,'DATA CLA Acc'!$A$7:$AJ$38,'DATA CLA Acc'!AE$48,FALSE)),IF(VLOOKUP($A22,'DATA CLA Acc'!$A$7:$AJ$38,'DATA CLA Acc'!AE$48,FALSE)="*",0,VLOOKUP($A22,'DATA CLA Acc'!$A$7:$AJ$38,'DATA CLA Acc'!AE$48,FALSE)),IF(VLOOKUP($A23,'DATA CLA Acc'!$A$7:$AJ$38,'DATA CLA Acc'!AE$48,FALSE)="*",0,VLOOKUP($A23,'DATA CLA Acc'!$A$7:$AJ$38,'DATA CLA Acc'!AE$48,FALSE)),IF(VLOOKUP($A24,'DATA CLA Acc'!$A$7:$AJ$38,'DATA CLA Acc'!AE$48,FALSE)="*",0,VLOOKUP($A24,'DATA CLA Acc'!$A$7:$AJ$38,'DATA CLA Acc'!AE$48,FALSE)),IF(VLOOKUP($A25,'DATA CLA Acc'!$A$7:$AJ$38,'DATA CLA Acc'!AE$48,FALSE)="*",0,VLOOKUP($A25,'DATA CLA Acc'!$A$7:$AJ$38,'DATA CLA Acc'!AE$48,FALSE)))/SUM(VLOOKUP($A21,'DATA CLA Acc'!$A$7:$AJ$39,36,FALSE),VLOOKUP($A22,'DATA CLA Acc'!$A$7:$AJ$39,36,FALSE),VLOOKUP($A23,'DATA CLA Acc'!$A$7:$AJ$39,36,FALSE),VLOOKUP($A24,'DATA CLA Acc'!$A$7:$AJ$39,36,FALSE),VLOOKUP($A25,'DATA CLA Acc'!$A$7:$AJ$39,36,FALSE)) -> 0.2029673591 | AC27: =SUM(IF(VLOOKUP($A21,'DATA CLA Acc'!$A$7:$AJ$38,'DATA CLA Acc'!AF$48,FALSE)="*",0,VLOOKUP($A21,'DATA CLA Acc'!$A$7:$AJ$38,'DATA CLA Acc'!AF$48,FALSE)),IF(VLOOKUP($A22,'DATA CLA Acc'!$A$7:$AJ$38,'DATA CLA Acc'!AF$48,FALSE)="*",0,VLOOKUP($A22,'DATA CLA Acc'!$A$7:$AJ$38,'DATA CLA Acc'!AF$48,FALSE)),IF(VLOOKUP($A23,'DATA CLA Acc'!$A$7:$AJ$38,'DATA CLA Acc'!AF$48,FALSE)="*",0,VLOOKUP($A23,'DATA CLA Acc'!$A$7:$AJ$38,'DATA CLA Acc'!AF$48,FALSE)),IF(VLOOKUP($A24,'DATA CLA Acc'!$A$7:$AJ$38,'DATA CLA Acc'!AF$48,FALSE)="*",0,VLOOKUP($A24,'DATA CLA Acc'!$A$7:$AJ$38,'DATA CLA Acc'!AF$48,FALSE)),IF(VLOOKUP($A25,'DATA CLA Acc'!$A$7:$AJ$38,'DATA CLA Acc'!AF$48,FALSE)="*",0,VLOOKUP($A25,'DATA CLA Acc'!$A$7:$AJ$38,'DATA CLA Acc'!AF$48,FALSE)))/SUM(VLOOKUP($A21,'DATA CLA Acc'!$A$7:$AJ$39,36,FALSE),VLOOKUP($A22,'DATA CLA Acc'!$A$7:$AJ$39,36,FALSE),VLOOKUP($A23,'DATA CLA Acc'!$A$7:$AJ$39,36,FALSE),VLOOKUP($A24,'DATA CLA Acc'!$A$7:$AJ$39,36,FALSE),VLOOKUP($A25,'DATA CLA Acc'!$A$7:$AJ$39,36,FALSE)) -> 0.07477744807 | AD27: =SUM(IF(VLOOKUP($A21,'DATA CLA Acc'!$A$7:$AJ$38,'DATA CLA Acc'!AG$48,FALSE)="*",0,VLOOKUP($A21,'DATA CLA Acc'!$A$7:$AJ$38,'DATA CLA Acc'!AG$48,FALSE)),IF(VLOOKUP($A22,'DATA CLA Acc'!$A$7:$AJ$38,'DATA CLA Acc'!AG$48,FALSE)="*",0,VLOOKUP($A22,'DATA CLA Acc'!$A$7:$AJ$38,'DATA CLA Acc'!AG$48,FALSE)),IF(VLOOKUP($A23,'DATA CLA Acc'!$A$7:$AJ$38,'DATA CLA Acc'!AG$48,FALSE)="*",0,VLOOKUP($A23,'DATA CLA Acc'!$A$7:$AJ$38,'DATA CLA Acc'!AG$48,FALSE)),IF(VLOOKUP($A24,'DATA CLA Acc'!$A$7:$AJ$38,'DATA CLA Acc'!AG$48,FALSE)="*",0,VLOOKUP($A24,'DATA CLA Acc'!$A$7:$AJ$38,'DATA CLA Acc'!AG$48,FALSE)),IF(VLOOKUP($A25,'DATA CLA Acc'!$A$7:$AJ$38,'DATA CLA Acc'!AG$48,FALSE)="*",0,VLOOKUP($A25,'DATA CLA Acc'!$A$7:$AJ$38,'DATA CLA Acc'!AG$48,FALSE)))/SUM(VLOOKUP($A21,'DATA CLA Acc'!$A$7:$AJ$39,36,FALSE),VLOOKUP($A22,'DATA CLA Acc'!$A$7:$AJ$39,36,FALSE),VLOOKUP($A23,'DATA CLA Acc'!$A$7:$AJ$39,36,FALSE),VLOOKUP($A24,'DATA CLA Acc'!$A$7:$AJ$39,36,FALSE),VLOOKUP($A25,'DATA CLA Acc'!$A$7:$AJ$39,36,FALSE)) -> 0.01246290801 | AE27: =SUM(IF(VLOOKUP($A21,'DATA CLA Acc'!$A$7:$AJ$38,'DATA CLA Acc'!AH$48,FALSE)="*",0,VLOOKUP($A21,'DATA CLA Acc'!$A$7:$AJ$38,'DATA CLA Acc'!AH$48,FALSE)),IF(VLOOKUP($A22,'DATA CLA Acc'!$A$7:$AJ$38,'DATA CLA Acc'!AH$48,FALSE)="*",0,VLOOKUP($A22,'DATA CLA Acc'!$A$7:$AJ$38,'DATA CLA Acc'!AH$48,FALSE)),IF(VLOOKUP($A23,'DATA CLA Acc'!$A$7:$AJ$38,'DATA CLA Acc'!AH$48,FALSE)="*",0,VLOOKUP($A23,'DATA CLA Acc'!$A$7:$AJ$38,'DATA CLA Acc'!AH$48,FALSE)),IF(VLOOKUP($A24,'DATA CLA Acc'!$A$7:$AJ$38,'DATA CLA Acc'!AH$48,FALSE)="*",0,VLOOKUP($A24,'DATA CLA Acc'!$A$7:$AJ$38,'DATA CLA Acc'!AH$48,FALSE)),IF(VLOOKUP($A25,'DATA CLA Acc'!$A$7:$AJ$38,'DATA CLA Acc'!AH$48,FALSE)="*",0,VLOOKUP($A25,'DATA CLA Acc'!$A$7:$AJ$38,'DATA CLA Acc'!AH$48,FALSE)))/SUM(VLOOKUP($A21,'DATA CLA Acc'!$A$7:$AJ$39,36,FALSE),VLOOKUP($A22,'DATA CLA Acc'!$A$7:$AJ$39,36,FALSE),VLOOKUP($A23,'DATA CLA Acc'!$A$7:$AJ$39,36,FALSE),VLOOKUP($A24,'DATA CLA Acc'!$A$7:$AJ$39,36,FALSE),VLOOKUP($A25,'DATA CLA Acc'!$A$7:$AJ$39,36,FALSE)) -> 0.05222551929 | AF27: =SUM(IF(VLOOKUP($A21,'DATA CLA Acc'!$A$7:$AJ$38,'DATA CLA Acc'!AI$48,FALSE)="*",0,VLOOKUP($A21,'DATA CLA Acc'!$A$7:$AJ$38,'DATA CLA Acc'!AI$48,FALSE)),IF(VLOOKUP($A22,'DATA CLA Acc'!$A$7:$AJ$38,'DATA CLA Acc'!AI$48,FALSE)="*",0,VLOOKUP($A22,'DATA CLA Acc'!$A$7:$AJ$38,'DATA CLA Acc'!AI$48,FALSE)),IF(VLOOKUP($A23,'DATA CLA Acc'!$A$7:$AJ$38,'DATA CLA Acc'!AI$48,FALSE)="*",0,VLOOKUP($A23,'DATA CLA Acc'!$A$7:$AJ$38,'DATA CLA Acc'!AI$48,FALSE)),IF(VLOOKUP($A24,'DATA CLA Acc'!$A$7:$AJ$38,'DATA CLA Acc'!AI$48,FALSE)="*",0,VLOOKUP($A24,'DATA CLA Acc'!$A$7:$AJ$38,'DATA CLA Acc'!AI$48,FALSE)),IF(VLOOKUP($A25,'DATA CLA Acc'!$A$7:$AJ$38,'DATA CLA Acc'!AI$48,FALSE)="*",0,VLOOKUP($A25,'DATA CLA Acc'!$A$7:$AJ$38,'DATA CLA Acc'!AI$48,FALSE)))/SUM(VLOOKUP($A21,'DATA CLA Acc'!$A$7:$AJ$39,36,FALSE),VLOOKUP($A22,'DATA CLA Acc'!$A$7:$AJ$39,36,FALSE),VLOOKUP($A23,'DATA CLA Acc'!$A$7:$AJ$39,36,FALSE),VLOOKUP($A24,'DATA CLA Acc'!$A$7:$AJ$39,36,FALSE),VLOOKUP($A25,'DATA CLA Acc'!$A$7:$AJ$39,36,FALSE)) -> 0.03204747774
A29: Scotland | B29: =IFERROR(VLOOKUP($A29,'DATA CLA Acc'!$A$7:$AJ$39,'DATA CLA Acc'!B$48,FALSE)/VLOOKUP($A29,'DATA CLA Acc'!$A$7:$AJ$39,9,FALSE),"*") -> 0.2502454074 | C29: =IFERROR(VLOOKUP($A29,'DATA CLA Acc'!$A$7:$AJ$39,'DATA CLA Acc'!C$48,FALSE)/VLOOKUP($A29,'DATA CLA Acc'!$A$7:$AJ$39,9,FALSE),"*") -> 0.2927359417 | D29: =IFERROR(VLOOKUP($A29,'DATA CLA Acc'!$A$7:$AJ$39,'DATA CLA Acc'!D$48,FALSE)/VLOOKUP($A29,'DATA CLA Acc'!$A$7:$AJ$39,9,FALSE),"*") -> 0.2338381714 | E29: =IFERROR(VLOOKUP($A29,'DATA CLA Acc'!$A$7:$AJ$39,'DATA CLA Acc'!E$48,FALSE)/VLOOKUP($A29,'DATA CLA Acc'!$A$7:$AJ$39,9,FALSE),"*") -> 0.1025802833 | F29: =IFERROR(VLOOKUP($A29,'DATA CLA Acc'!$A$7:$AJ$39,'DATA CLA Acc'!F$48,FALSE)/VLOOKUP($A29,'DATA CLA Acc'!$A$7:$AJ$39,9,FALSE),"*") -> 0.01907165895 | G29: =IFERROR(VLOOKUP($A29,'DATA CLA Acc'!$A$7:$AJ$39,'DATA CLA Acc'!G$48,FALSE)/VLOOKUP($A29,'DATA CLA Acc'!$A$7:$AJ$39,9,FALSE),"*") -> 0.04964240639 | H29: =IFERROR(VLOOKUP($A29,'DATA CLA Acc'!$A$7:$AJ$39,'DATA CLA Acc'!H$48,FALSE)/VLOOKUP($A29,'DATA CLA Acc'!$A$7:$AJ$39,9,FALSE),"*") -> 0.05188613098 | J29: =IFERROR(VLOOKUP($A29,'DATA CLA Acc'!$A$7:$AJ$39,'DATA CLA Acc'!K$48,FALSE)/VLOOKUP($A29,'DATA CLA Acc'!$A$7:$AJ$39,18,FALSE),"*") -> 0.2464379582 | K29: =IFERROR(VLOOKUP($A29,'DATA CLA Acc'!$A$7:$AJ$39,'DATA CLA Acc'!L$48,FALSE)/VLOOKUP($A29,'DATA CLA Acc'!$A$7:$AJ$39,18,FALSE),"*") -> 0.308203071 | L29: =IFERROR(VLOOKUP($A29,'DATA CLA Acc'!$A$7:$AJ$39,'DATA CLA Acc'!M$48,FALSE)/VLOOKUP($A29,'DATA CLA Acc'!$A$7:$AJ$39,18,FALSE),"*") -> 0.229284825 | M29: =IFERROR(VLOOKUP($A29,'DATA CLA Acc'!$A$7:$AJ$39,'DATA CLA Acc'!N$48,FALSE)/VLOOKUP($A29,'DATA CLA Acc'!$A$7:$AJ$39,18,FALSE),"*") -> 0.09883801356 | N29: =IFERROR(VLOOKUP($A29,'DATA CLA Acc'!$A$7:$AJ$39,'DATA CLA Acc'!O$48,FALSE)/VLOOKUP($A29,'DATA CLA Acc'!$A$7:$AJ$39,18,FALSE),"*") -> 0.01791395767 | O29: =IFERROR(VLOOKUP($A29,'DATA CLA Acc'!$A$7:$AJ$39,'DATA CLA Acc'!P$48,FALSE)/VLOOKUP($A29,'DATA CLA Acc'!$A$7:$AJ$39,18,FALSE),"*") -> 0.04744777978 | P29: =IFERROR(VLOOKUP($A29,'DATA CLA Acc'!$A$7:$AJ$39,'DATA CLA Acc'!Q$48,FALSE)/VLOOKUP($A29,'DATA CLA Acc'!$A$7:$AJ$39,18,FALSE),"*") -> 0.0518743948 | R29: =IFERROR(VLOOKUP($A29,'DATA CLA Acc'!$A$7:$AJ$39,'DATA CLA Acc'!T$48,FALSE)/VLOOKUP($A29,'DATA CLA Acc'!$A$7:$AJ$39,36,FALSE),"*") -> 0.2265004763 | S29: =IFERROR(VLOOKUP($A29,'DATA CLA Acc'!$A$7:$AJ$39,'DATA CLA Acc'!U$48,FALSE)/VLOOKUP($A29,'DATA CLA Acc'!$A$7:$AJ$39,36,FALSE),"*") -> 0.3501111464 | T29: =IFERROR(VLOOKUP($A29,'DATA CLA Acc'!$A$7:$AJ$39,'DATA CLA Acc'!V$48,FALSE)/VLOOKUP($A29,'DATA CLA Acc'!$A$7:$AJ$39,36,FALSE),"*") -> 0.2501587806 | U29: =IFERROR(VLOOKUP($A29,'DATA CLA Acc'!$A$7:$AJ$39,'DATA CLA Acc'!W$48,FALSE)/VLOOKUP($A29,'DATA CLA Acc'!$A$7:$AJ$39,36,FALSE),"*") -> 0.102810416 | V29: =IFERROR(VLOOKUP($A29,'DATA CLA Acc'!$A$7:$AJ$39,'DATA CLA Acc'!X$48,FALSE)/VLOOKUP($A29,'DATA CLA Acc'!$A$7:$AJ$39,36,FALSE),"*") -> 0.01778342331 | W29: =IFERROR(VLOOKUP($A29,'DATA CLA Acc'!$A$7:$AJ$39,'DATA CLA Acc'!Y$48,FALSE)/VLOOKUP($A29,'DATA CLA Acc'!$A$7:$AJ$39,36,FALSE),"*") -> 0.0484280724 | X29: =IFERROR(VLOOKUP($A29,'DATA CLA Acc'!$A$7:$AJ$39,'DATA CLA Acc'!Z$48,FALSE)/VLOOKUP($A29,'DATA CLA Acc'!$A$7:$AJ$39,27,FALSE),"*") -> 0.04977272727 | Z29: =IFERROR(VLOOKUP($A29,'DATA CLA Acc'!$A$7:$AJ$39,'DATA CLA Acc'!AC$48,FALSE)/VLOOKUP($A29,'DATA CLA Acc'!$A$7:$AJ$39,36,FALSE),"*") -> 0.2093521753 | AA29: =IFERROR(VLOOKUP($A29,'DATA CLA Acc'!$A$7:$AJ$39,'DATA CLA Acc'!AD$48,FALSE)/VLOOKUP($A29,'DATA CLA Acc'!$A$7:$AJ$39,36,FALSE),"*") -> 0.3373293109 | AB29: =IFERROR(VLOOKUP($A29,'DATA CLA Acc'!$A$7:$AJ$39,'DATA CLA Acc'!AE$48,FALSE)/VLOOKUP($A29,'DATA CLA Acc'!$A$7:$AJ$39,36,FALSE),"*") -> 0.2279295014 | AC29: =IFERROR(VLOOKUP($A29,'DATA CLA Acc'!$A$7:$AJ$39,'DATA CLA Acc'!AF$48,FALSE)/VLOOKUP($A29,'DATA CLA Acc'!$A$7:$AJ$39,36,FALSE),"*") -> 0.1019371229 | AD29: =IFERROR(VLOOKUP($A29,'DATA CLA Acc'!$A$7:$AJ$39,'DATA CLA Acc'!AG$48,FALSE)/VLOOKUP($A29,'DATA CLA Acc'!$A$7:$AJ$39,36,FALSE),"*") -> 0.02151476659 | AE29: =IFERROR(VLOOKUP($A29,'DATA CLA Acc'!$A$7:$AJ$39,'DATA CLA Acc'!AH$48,FALSE)/VLOOKUP($A29,'DATA CLA Acc'!$A$7:$AJ$39,36,FALSE),"*") -> 0.05096856145 | AF29: =IFERROR(VLOOKUP($A29,'DATA CLA Acc'!$A$7:$AJ$39,'DATA CLA Acc'!AI$48,FALSE)/VLOOKUP($A29,'DATA CLA Acc'!$A$7:$AJ$39,36,FALSE),"*") -> 0.05096856145
A31: Notes
A32: [Note 1] | B32: In other community includes with prospective adopters.
A33: [Note 2] | B33: Other Residential Care includes crisis care, secure accommodation and residential school.
A34: [Note 3] | B34: Where data has been suppressed for an authority, for the purposes of aggregating to the group of comparator authorities it has been assumed to be 0. Therefore, the percentages for the aggregated comparator authorities category may be slightly lower than the true figure for placement types where data has been suppressed for one of the individual comparator authorities.
A35: [Note 4] | B35: Source: Scottish Government CLAS Returns
S37: =S18-K18 -> 0.0199139891 | T37: =T18-L18 -> 0.01512038787 | U37: =U18-M18 -> -0.009025666311 | V37: =V18-N18 -> -0.0007943682034 | Z37: =Z18-R18 -> -0.004941860465 | AA37: =AA18-S18 -> 0.0008236434109 | AB37: =AB18-T18 -> 0.0009205426357 | AC37: =AC18-U18 -> -0.0136627907 | AD37: =AD18-V18 -> 0.01274224806
S38: =S27-K27 -> 0.01849532105 | T38: =T27-L27 -> 0.01726828361 | U38: =U27-M27 -> -0.004067238114 | V38: =V27-N27 -> -0.004380038306 | Z38: =Z27-R27 -> -0.00789843803 | AA38: =AA27-S27 -> 0.02091428329 | AB38: =AB27-T27 -> -0.01708221407 | AC38: =AC27-U27 -> 0.0009685799908 | AD38: =AD27-V27 -> 0.004200721286
S39: =S29-K29 -> 0.04190807543 | T39: =T29-L29 -> 0.02087395555 | U39: =U29-M29 -> 0.003972402449 | V39: =V29-N29 -> -0.0001305343615 | Z39: =Z29-R29 -> -0.01714830105 | AA39: =AA29-S29 -> -0.0127818355 | AB39: =AB29-T29 -> -0.02222927914 | AC39: =AC29-U29 -> -0.0008732931089 | AD39: =AD29-V29 -> 0.003731343284
A40: Comparator authorities
A41: Scotland | S41: =IF(S37<0,"a decrease of ",IF(S37>=0,"an increase of ")) -> an increase of | T41: an increase of | U41: a decrease of | V41: a decrease of | Z41: =IF(Z37<0,"a decrease of ",IF(Z37>=0,"an increase of ")) -> a decrease of | AA41: =IF(AA37<0,"a decrease of ",IF(AA37>=0,"An increase of ")) -> An increase of | AB41: =IF(AB37<0,"a decrease of ",IF(AB37>=0,"an increase of ")) -> an increase of | AC41: a decrease of | AD41: an increase of
S42: an increase of | T42: an increase of | U42: a decrease of | V42: a decrease of | Z42: =IF(Z38<0,"a decrease of ",IF(Z38>=0,"an increase of ")) -> a decrease of | AA42: an increase of | AB42: a decrease of | AC42: an increase of | AD42: an increase of
S43: an increase of | T43: an increase of | U43: an increase of | V43: a decrease of | Z43: =IF(Z39<0,"a decrease of ",IF(Z39>=0,"an increase of ")) -> a decrease of | AA43: a decrease of | AB43: a decrease of | AC43: a decrease of | AD43: an increase of
C45: =IF(C21="*","",C21*$B21) -> 0.09532006666 | D45: =IF(D21="*","",D21*$B21) -> 0.02698558965 | E45: =IF(E21="*","",E21*$B21) -> 0.02393882953 | F45: =IF(F21="*","",F21*$B21) -> 0.004352514459 | K45: =IF(K21="*","",K21*$J21) -> 0.09356496743 | L45: =IF(L21="*","",L21*$J21) -> 0.02471527441 | M45: =IF(M21="*","",M21*$J21) -> 0.02559796279 | N45: =IF(N21="*","",N21*$J21) -> 0.009709572091 | S45: =IF(S21="*","",S21*$R21) -> 0.08217594725 | T45: =IF(T21="*","",T21*$R21) -> 0.01758183057 | U45: =IF(U21="*","",U21*$R21) -> 0.02216839507 | V45: =IF(V21="*","",V21*$R21) -> 0.003439923373 | Z45: =IF(Z21="*","",Z21*$Z21) -> 0.03150240813 | AA45: =IF(AA21="*","",AA21*$Z21) -> 0.08067689886 | AB45: =IF(AB21="*","",AB21*$Z21) -> 0.01805625832 | AC45: =IF(AC21="*","",AC21*$Z21) -> 0.0215138397 | AD45: =IF(AD21="*","",AD21*$Z21) -> 0.007299338468
C46: =IF(C22="*","",C22*$B22) -> 0.07289841897 | D46: =IF(D22="*","",D22*$B22) -> 0.03447474672 | E46: 0.01341381054 | F46: 0.0001253627153 | K46: =IF(K22="*","",K22*$J22) -> 0.08398321615 | L46: 0.03682452979 | M46: 0.01382739261 | N46: 0.0002911030023 | S46: =IF(S22="*","",S22*$R22) -> 0.08112689092 | T46: 0.03332248379 | U46: 0.01068569101 | V46: 0.0006327053885 | Z46: =IF(Z22="*","",Z22*$Z22) -> 0.02251398167 | AA46: =IF(AA22="*","",AA22*$Z22) -> 0.07614200632 | AB46: 0.02992541663 | AC46: 0.01020820287 | AD46: 0.000769111175
C47: =IF(C23="*","",C23*$B23) -> 0.05368620038 | D47: 0.0668094938 | E47: 0.01610586011 | F47: 0.005965133375 | K47: 0.04933333333 | L47: 0.06733333333 | M47: 0.016 | N47: 0.008 | S47: 0.03844320284 | T47: 0.06807650502 | U47: 0.01521710112 | V47: 0.008009000591 | Z47: =IF(Z23="*","",Z23*$Z23) -> 0.0328764642 | AA47: 0.03885400314 | AB47: 0.07372298032 | AC47: 0.01295133438 | AD47: 0.001992512982
C48: =IF(C24="*","",C24*$B24) -> 0.07296 | D48: 0.08430933333 | E48: 0.02026666667 | F48: 0.008106666667 | K48: 0.06558208382 | L48: 0.06379348154 | M48: 0.01788602286 | N48: 0.006558208382 | S48: 0.04228855721 | T48: 0.1016187718 | U48: 0.01956634737 | V48: 0.001262344991 | Z48: =IF(Z24="*","",Z24*$Z24) -> 0.07083575373 | AA48: 0.07427438255 | AB48: 0.07358665678 | AC48: 0.01994404717 | AD48: 0.0006877257643
C49: =IF(C25="*","",C25*$B25) -> 0.1049375372 | D49: 0.05829863177 | E49: 0.01165972635 | F49: 0.009327781083 | K49: 0.1056325283 | L49: 0.06627923345 | M49: 0.01242735627 | N49: 0.002071226045 | S49: 0.09866622679 | T49: 0.06143368838 | U49: 0.01489301536 | V49: 0 | Z49: =IF(Z25="*","",Z25*$Z25) -> 0.1353324921 | AA49: 0.09721066337 | AB49: 0.05337056028 | AC49: 0.01524873151 | AD49: 0.01715482295
S52: =S18-S27 -> -0.21787301 | T52: =T18-T27 -> -0.06888678242 | U52: =U18-U27 -> 0.2440205893 | V52: =V18-V27 -> 0.02274556521 | Z52: =Z18-Z27 -> -0.002138971316 | AA52: =AA18-AA27 -> -0.2379636499 | AB52: =AB18-AB27 -> -0.05088402572 | AC52: =AC18-AC27 -> 0.2293892186 | AD52: =AD18-AD27 -> 0.03128709199
S54: =S18-S29 -> -0.1446847898 | T54: =T18-T29 -> -0.09899598987 | U54: =U18-U29 -> 0.2150190414 | V54: =V18-V29 -> 0.01322432863 | Z54: =Z18-Z29 -> -0.03018550863 | AA54: =AA18-AA29 -> -0.1310793109 | AB54: =AB18-AB29 -> -0.0758461681 | AC54: =AC18-AC29 -> 0.2022295438 | AD54: =AD18-AD29 -> 0.02223523341
S56: =IF(S52<-0.02,"less than",IF(S52>0.02,"greater than","similar to")) -> less than | Z56: =IF(Z52<-0.02,"less than",IF(Z52>0.02,"greater than","similar to")) -> similar to | AA56: =IF(AA52<-0.02,"less than",IF(AA52>0.02,"greater than","similar to")) -> less than
S59: =IF(S54<-0.02,"less than",IF(S54>0.02,"greater than","similar to")) -> less than | Z59: =IF(Z54<-0.02,"less than",IF(Z54>0.02,"greater than","similar to")) -> less than | AA59: =IF(AA54<-0.02,"less than",IF(AA54>0.02,"greater than","similar to")) -> less than

Sheet CLA Disability
A1: ='DATA CLA DIS'!A1 -> Looked after children by disability status on 31 July, 2019 to 2022
B2: select comparators:
A3: 32 | I3: =VLOOKUP('Select an authority'!$A$1,'REF CAs'!$A$1:$F$32,2,0) -> 5
A4: 26 | I4: =VLOOKUP('Select an authority'!$A$1,'REF CAs'!$A$1:$F$32,3,0) -> 8
A5: 14 | I5: =VLOOKUP('Select an authority'!$A$1,'REF CAs'!$A$1:$F$32,4,0) -> 28
A6: =I6 -> 4 | I6: =VLOOKUP('Select an authority'!$A$1,'REF CAs'!$A$1:$F$32,5,0) -> 4
A7: 30 | I7: =VLOOKUP('Select an authority'!$A$1,'REF CAs'!$A$1:$F$32,6,0) -> 25
A12: =IF(K18="N/A","[text statement not available due to data being unavailable]",IF(O18="N/A","[text statement not available due to due to data being unavailable]",IF(K18="*","[text statement not available due to suppression of data for confidentiality]",IF(O18="*","[text statement not available due to suppression of data for confidentiality]","* In "&N16&", the percentage of looked after children with a disability in "&A18&" was "&ROUND(100*P18,0)&"%, "&M37&ROUND(SQRT((100*M31)^2),1)&"%-points over the previous year.")))) -> * In 2022, the percentage of looked after children with a disability in Aberdeen City was 25%, an increase of 0.4%-points over the previous year.
A13: =IF(K27="N/A","[text statement not available due to data being unavailable]",IF(O27="N/A","[text statement not available due to data being unavailable]",IF(K27=0,"[text statement not available due to suppression of data for confidentiality]",IF(O27=0,"[text statement not available due to suppression of data for confidentiality]","* This compares with "&M38&ROUND(SQRT((100*M32)^2),1)&"%-points for comparator authorities, and "&M39&ROUND(SQRT((100*M33)^2),1)&"%-points for Scotland as a whole.")))) -> * This compares with a decrease of 1.5%-points for comparator authorities, and a decrease of 0%-points for Scotland as a whole.
A14: =IF(O18="N/A","[text statement not available due to data being unavailable]",IF(O27="N/A","[text statement not available due to data being unavailable]",IF(O18="*","[text statement not available due to suppression of data for confidentiality]",IF(O27=0,"[text statement not available due to suppression of data for confidentiality]","* The percentage looked after children with a disability ("&ROUND(100*P18,0)&"%) is "&P36&" the comparator average ("&ROUND(100*P27,0)&"%), and "&P40&" the Scotland average ("&ROUND(100*P29,0)&"%).")))) -> * The percentage looked after children with a disability (25%) is greater than the comparator average (9%), and greater than the Scotland average (10%).
B16: ='DATA CLA DIS'!B3 -> 2019 | C16: 2019 | D16: 2019 | F16: ='DATA CLA DIS'!E3 -> 2020 | G16: 2020 | H16: 2020 | J16: ='DATA CLA DIS'!H3 -> 2021 | K16: 2021 | L16: 2021 | N16: ='DATA CLA DIS'!K3 -> 2022 | O16: 2022 | P16: 2022
B17: ='DATA CLA DIS'!B4 -> Number of children looked after | C17: ='DATA CLA DIS'!C4 -> Number of children looked after with a disability | D17: ='DATA CLA DIS'!D4 -> Percentage of children looked after with a disability | F17: ='DATA CLA DIS'!E4 -> Number of children looked after | G17: ='DATA CLA DIS'!F4 -> Number of children looked after with a disability | H17: ='DATA CLA DIS'!G4 -> Percentage of children looked after with a disability | J17: ='DATA CLA DIS'!H4 -> Number of children looked after | K17: ='DATA CLA DIS'!I4 -> Number of children looked after with a disability | L17: ='DATA CLA DIS'!J4 -> Percentage of children looked after with a disability | N17: ='DATA CLA DIS'!K4 -> Number of children looked after | O17: ='DATA CLA DIS'!L4 -> Number of children looked after with a disability | P17: ='DATA CLA DIS'!M4 -> Percentage of children looked after with a disability
A18: =OFFSET('REF EA Name'!$B$2,'Select an authority'!$A$1,0) -> Aberdeen City | B18: =IF(OFFSET('DATA CLA DIS'!$B$4,'Select an authority'!$A$1,0)="","N/A",OFFSET('DATA CLA DIS'!$B$4,'Select an authority'!$A$1,0)) -> 542 | C18: =IF(OFFSET('DATA CLA DIS'!$C$4,'Select an authority'!$A$1,0)="","N/A",IF(OFFSET('DATA CLA DIS'!$C$4,'Select an authority'!$A$1,0)<5,"*",OFFSET('DATA CLA DIS'!$C$4,'Select an authority'!$A$1,0))) -> 142 | D18: =IF(OFFSET('DATA CLA DIS'!$D$4,'Select an authority'!$A$1,0)="","N/A",IF(C18="*","",OFFSET('DATA CLA DIS'!$D$4,'Select an authority'!$A$1,0))) -> 0.2619926199 | F18: =IF(OFFSET('DATA CLA DIS'!$E$4,'Select an authority'!$A$1,0)="","N/A",OFFSET('DATA CLA DIS'!$E$4,'Select an authority'!$A$1,0)) -> 549 | G18: =IF(OFFSET('DATA CLA DIS'!$F$4,'Select an authority'!$A$1,0)="","N/A",IF(OFFSET('DATA CLA DIS'!$F$4,'Select an authority'!$A$1,0)<5,"*",OFFSET('DATA CLA DIS'!$F$4,'Select an authority'!$A$1,0))) -> 130 | H18: =IF(OFFSET('DATA CLA DIS'!$G$4,'Select an authority'!$A$1,0)="","N/A",IF(G18="*","",OFFSET('DATA CLA DIS'!$G$4,'Select an authority'!$A$1,0))) -> 0.2296819788 | J18: =IF(OFFSET('DATA CLA DIS'!$H$4,'Select an authority'!$A$1,0)="","N/A",OFFSET('DATA CLA DIS'!$H$4,'Select an authority'!$A$1,0)) -> 516 | K18: =IF(OFFSET('DATA CLA DIS'!$I$4,'Select an authority'!$A$1,0)="","N/A",IF(OFFSET('DATA CLA DIS'!$I$4,'Select an authority'!$A$1,0)<5,"*",OFFSET('DATA CLA DIS'!$I$4,'Select an authority'!$A$1,0))) -> 129 | L18: =IF(OFFSET('DATA CLA DIS'!$J$4,'Select an authority'!$A$1,0)="","N/A",IF(K18="*","",OFFSET('DATA CLA DIS'!$J$4,'Select an authority'!$A$1,0))) -> 0.25 | N18: =IF(OFFSET('DATA CLA DIS'!$K$4,'Select an authority'!$A$1,0)="","N/A",(OFFSET('DATA CLA DIS'!$K$4,'Select an authority'!$A$1,0))) -> 480 | O18: =IF(OFFSET('DATA CLA DIS'!$L$4,'Select an authority'!$A$1,0)="","N/A",IF(OFFSET('DATA CLA DIS'!$L$4,'Select an authority'!$A$1,0)<5,"*",OFFSET('DATA CLA DIS'!$L$4,'Select an authority'!$A$1,0))) -> 122 | P18: =IF(OFFSET('DATA CLA DIS'!$M$4,'Select an authority'!$A$1,0)="","N/A",IF(O18="*","",OFFSET('DATA CLA DIS'!$M$4,'Select an authority'!$A$1,0))) -> 0.2541666667
A20: Comparator Authorities:
A21: =OFFSET('REF EA Name'!$B$2, A3,0) -> West Lothian | B21: =IF(OFFSET('DATA CLA DIS'!$B$4,$A3,0)="","N/A",IF($A3<33,OFFSET('DATA CLA DIS'!$B$4,$A3,0),"")) -> 427 | C21: =IF(OFFSET('DATA CLA DIS'!$C$4,$A3,0)="","N/A",IF($A3=33,"",OFFSET('DATA CLA DIS'!$C$4,$A3,0))) -> 46 | D21: =IF(OFFSET('DATA CLA DIS'!$D$4,$A3,0)="","N/A",IF($A3=33,"",OFFSET('DATA CLA DIS'!$D$4,$A3,0))) -> 0.1077283372 | F21: =IF(OFFSET('DATA CLA DIS'!$E$4,$A3,0)="","N/A",IF($A3<33,OFFSET('DATA CLA DIS'!$E$4,$A3,0),"")) -> 443 | G21: =IF(OFFSET('DATA CLA DIS'!$F$4,$A3,0)="","N/A",IF($A3=33,"",OFFSET('DATA CLA DIS'!$F$4,$A3,0))) -> 31 | H21: =IF(OFFSET('DATA CLA DIS'!$G$4,$A3,0)="","N/A",IF($A3=33,"",OFFSET('DATA CLA DIS'!$G$4,$A3,0))) -> 0.07045454545 | J21: =IF(OFFSET('DATA CLA DIS'!$H$4,$A3,0)="","N/A",IF($A3<33,OFFSET('DATA CLA DIS'!$H$4,$A3,0),"")) -> 379 | K21: =IF(OFFSET('DATA CLA DIS'!$I$4,$A3,0)="","N/A",IF($A3=33,"",OFFSET('DATA CLA DIS'!$I$4,$A3,0))) -> 21 | L21: =IF(OFFSET('DATA CLA DIS'!$J$4,$A3,0)="","N/A",IF($A3=33,"",OFFSET('DATA CLA DIS'!$J$4,$A3,0))) -> 0.05540897098 | N21: =IF(OFFSET('DATA CLA DIS'!$K$4,$A3,0)="","N/A",IF($A3<33,OFFSET('DATA CLA DIS'!$K$4,$A3,0),"")) -> 373 | O21: =IF(OFFSET('DATA CLA DIS'!$L$4,$A3,0)="","N/A",IF($A3=33,"",OFFSET('DATA CLA DIS'!$L$4,$A3,0))) -> 17 | P21: =IF(OFFSET('DATA CLA DIS'!$M$4,$A3,0)="","N/A",IF($A3=33,"",OFFSET('DATA CLA DIS'!$M$4,$A3,0))) -> 0.04557640751
A22: =OFFSET('REF EA Name'!$B$2,A4,0) -> Scottish Borders | B22: =IF(OFFSET('DATA CLA DIS'!$B$4,$A4,0)="","N/A",IF($A4<33,OFFSET('DATA CLA DIS'!$B$4,$A4,0),"")) -> 195 | C22: =IF(OFFSET('DATA CLA DIS'!$C$4,$A4,0)="","N/A",IF($A4=33,"",OFFSET('DATA CLA DIS'!$C$4,$A4,0))) -> 15 | D22: =IF(OFFSET('DATA CLA DIS'!$D$4,$A4,0)="","N/A",IF($A4=33,"",OFFSET('DATA CLA DIS'!$D$4,$A4,0))) -> 0.07692307692 | F22: =IF(OFFSET('DATA CLA DIS'!$E$4,$A4,0)="","N/A",IF($A4<33,OFFSET('DATA CLA DIS'!$E$4,$A4,0),"")) -> 205 | G22: =IF(OFFSET('DATA CLA DIS'!$F$4,$A4,0)="","N/A",IF($A4=33,"",OFFSET('DATA CLA DIS'!$F$4,$A4,0))) -> 13 | H22: =IF(OFFSET('DATA CLA DIS'!$G$4,$A4,0)="","N/A",IF($A4=33,"",OFFSET('DATA CLA DIS'!$G$4,$A4,0))) -> 0.06951871658 | J22: =IF(OFFSET('DATA CLA DIS'!$H$4,$A4,0)="","N/A",IF($A4<33,OFFSET('DATA CLA DIS'!$H$4,$A4,0),"")) -> 174 | K22: =IF(OFFSET('DATA CLA DIS'!$I$4,$A4,0)="","N/A",IF($A4=33,"",OFFSET('DATA CLA DIS'!$I$4,$A4,0))) -> 12 | L22: =IF(OFFSET('DATA CLA DIS'!$J$4,$A4,0)="","N/A",IF($A4=33,"",OFFSET('DATA CLA DIS'!$J$4,$A4,0))) -> 0.06896551724 | N22: =IF(OFFSET('DATA CLA DIS'!$K$4,$A4,0)="","N/A",IF($A4<33,OFFSET('DATA CLA DIS'!$K$4,$A4,0),"")) -> 183 | O22: =IF(OFFSET('DATA CLA DIS'!$L$4,$A4,0)="","N/A",IF($A4=33,"",OFFSET('DATA CLA DIS'!$L$4,$A4,0))) -> 8 | P22: =IF(OFFSET('DATA CLA DIS'!$M$4,$A4,0)="","N/A",IF($A4=33,"",OFFSET('DATA CLA DIS'!$M$4,$A4,0))) -> 0.04371584699
A23: =OFFSET('REF EA Name'!$B$2,A5,0) -> Fife | B23: =IF(OFFSET('DATA CLA DIS'!$B$4,$A5,0)="","N/A",IF($A5<33,OFFSET('DATA CLA DIS'!$B$4,$A5,0),"")) -> 935 | C23: =IF(OFFSET('DATA CLA DIS'!$C$4,$A5,0)="","N/A",IF($A5=33,"",OFFSET('DATA CLA DIS'!$C$4,$A5,0))) -> 0 | D23: =IF(OFFSET('DATA CLA DIS'!$D$4,$A5,0)="","N/A",IF($A5=33,"",OFFSET('DATA CLA DIS'!$D$4,$A5,0))) -> 0 | F23: =IF(OFFSET('DATA CLA DIS'!$E$4,$A5,0)="","N/A",IF($A5<33,OFFSET('DATA CLA DIS'!$E$4,$A5,0),"")) -> 941 | G23: =IF(OFFSET('DATA CLA DIS'!$F$4,$A5,0)="","N/A",IF($A5=33,"",OFFSET('DATA CLA DIS'!$F$4,$A5,0))) -> 0 | H23: =IF(OFFSET('DATA CLA DIS'!$G$4,$A5,0)="","N/A",IF($A5=33,"",OFFSET('DATA CLA DIS'!$G$4,$A5,0))) -> 0 | J23: =IF(OFFSET('DATA CLA DIS'!$H$4,$A5,0)="","N/A",IF($A5<33,OFFSET('DATA CLA DIS'!$H$4,$A5,0),"")) -> 810 | K23: =IF(OFFSET('DATA CLA DIS'!$I$4,$A5,0)="","N/A",IF($A5=33,"",OFFSET('DATA CLA DIS'!$I$4,$A5,0))) -> 0 | L23: =IF(OFFSET('DATA CLA DIS'!$J$4,$A5,0)="","N/A",IF($A5=33,"",OFFSET('DATA CLA DIS'!$J$4,$A5,0))) -> 0 | N23: =IF(OFFSET('DATA CLA DIS'!$K$4,$A5,0)="","N/A",IF($A5<33,OFFSET('DATA CLA DIS'!$K$4,$A5,0),"")) -> 748 | O23: =IF(OFFSET('DATA CLA DIS'!$L$4,$A5,0)="","N/A",IF($A5=33,"",OFFSET('DATA CLA DIS'!$L$4,$A5,0))) -> 0 | P23: =IF(OFFSET('DATA CLA DIS'!$M$4,$A5,0)="","N/A",IF($A5=33,"",OFFSET('DATA CLA DIS'!$M$4,$A5,0))) -> 0
A24: =OFFSET('REF EA Name'!$B$2,A6,0) -> Argyll & Bute | B24: =IF(OFFSET('DATA CLA DIS'!$B$4,$A6,0)="","N/A",IF($A6<33,OFFSET('DATA CLA DIS'!$B$4,$A6,0),"")) -> 150 | C24: =IF(OFFSET('DATA CLA DIS'!$C$4,$A6,0)="","N/A",IF($A6=33,"",OFFSET('DATA CLA DIS'!$C$4,$A6,0))) -> 34 | D24: =IF(OFFSET('DATA CLA DIS'!$D$4,$A6,0)="","N/A",IF($A6=33,"",OFFSET('DATA CLA DIS'!$D$4,$A6,0))) -> 0.2266666667 | F24: =IF(OFFSET('DATA CLA DIS'!$E$4,$A6,0)="","N/A",IF($A6<33,OFFSET('DATA CLA DIS'!$E$4,$A6,0),"")) -> 149 | G24: =IF(OFFSET('DATA CLA DIS'!$F$4,$A6,0)="","N/A",IF($A6=33,"",OFFSET('DATA CLA DIS'!$F$4,$A6,0))) -> 39 | H24: =IF(OFFSET('DATA CLA DIS'!$G$4,$A6,0)="","N/A",IF($A6=33,"",OFFSET('DATA CLA DIS'!$G$4,$A6,0))) -> 0.2407407407 | J24: =IF(OFFSET('DATA CLA DIS'!$H$4,$A6,0)="","N/A",IF($A6<33,OFFSET('DATA CLA DIS'!$H$4,$A6,0),"")) -> 151 | K24: =IF(OFFSET('DATA CLA DIS'!$I$4,$A6,0)="","N/A",IF($A6=33,"",OFFSET('DATA CLA DIS'!$I$4,$A6,0))) -> 45 | L24: =IF(OFFSET('DATA CLA DIS'!$J$4,$A6,0)="","N/A",IF($A6=33,"",OFFSET('DATA CLA DIS'!$J$4,$A6,0))) -> 0.298013245 | N24: =IF(OFFSET('DATA CLA DIS'!$K$4,$A6,0)="","N/A",IF($A6<33,OFFSET('DATA CLA DIS'!$K$4,$A6,0),"")) -> 144 | O24: =IF(OFFSET('DATA CLA DIS'!$L$4,$A6,0)="","N/A",IF($A6=33,"",OFFSET('DATA CLA DIS'!$L$4,$A6,0))) -> 37 | P24: =IF(OFFSET('DATA CLA DIS'!$M$4,$A6,0)="","N/A",IF($A6=33,"",OFFSET('DATA CLA DIS'!$M$4,$A6,0))) -> 0.2569444444
A25: =OFFSET('REF EA Name'!$B$2,A7,0) -> Stirling | B25: =IF(OFFSET('DATA CLA DIS'!$B$4,$A7,0)="","N/A",IF($A7<33,OFFSET('DATA CLA DIS'!$B$4,$A7,0),"")) -> 238 | C25: =IF(OFFSET('DATA CLA DIS'!$C$4,$A7,0)="","N/A",IF($A7=33,"",OFFSET('DATA CLA DIS'!$C$4,$A7,0))) -> 25 | D25: =IF(OFFSET('DATA CLA DIS'!$D$4,$A7,0)="","N/A",IF($A7=33,"",OFFSET('DATA CLA DIS'!$D$4,$A7,0))) -> 0.1050420168 | F25: =IF(OFFSET('DATA CLA DIS'!$E$4,$A7,0)="","N/A",IF($A7<33,OFFSET('DATA CLA DIS'!$E$4,$A7,0),"")) -> 236 | G25: =IF(OFFSET('DATA CLA DIS'!$F$4,$A7,0)="","N/A",IF($A7=33,"",OFFSET('DATA CLA DIS'!$F$4,$A7,0))) -> 23 | H25: =IF(OFFSET('DATA CLA DIS'!$G$4,$A7,0)="","N/A",IF($A7=33,"",OFFSET('DATA CLA DIS'!$G$4,$A7,0))) -> 0.09349593496 | J25: =IF(OFFSET('DATA CLA DIS'!$H$4,$A7,0)="","N/A",IF($A7<33,OFFSET('DATA CLA DIS'!$H$4,$A7,0),"")) -> 230 | K25: =IF(OFFSET('DATA CLA DIS'!$I$4,$A7,0)="","N/A",IF($A7=33,"",OFFSET('DATA CLA DIS'!$I$4,$A7,0))) -> 21 | L25: =IF(OFFSET('DATA CLA DIS'!$J$4,$A7,0)="","N/A",IF($A7=33,"",OFFSET('DATA CLA DIS'!$J$4,$A7,0))) -> 0.09130434783 | N25: =IF(OFFSET('DATA CLA DIS'!$K$4,$A7,0)="","N/A",IF($A7<33,OFFSET('DATA CLA DIS'!$K$4,$A7,0),"")) -> 210 | O25: =IF(OFFSET('DATA CLA DIS'!$L$4,$A7,0)="","N/A",IF($A7=33,"",OFFSET('DATA CLA DIS'!$L$4,$A7,0))) -> 21 | P25: =IF(OFFSET('DATA CLA DIS'!$M$4,$A7,0)="","N/A",IF($A7=33,"",OFFSET('DATA CLA DIS'!$M$4,$A7,0))) -> 0.1
A27: Comparator authorities | B27: =SUM(B21:B25) -> 1945 | C27: =SUM(C21:C25) -> 120 | D27: =IF(C27=0,0,C27/(SUMIF(C21,">0",B21)+SUMIF(C22,">0",B22)+SUMIF(C23,">0",B23)+SUMIF(C24,">0",B24)+SUMIF(C25,">0",B25))) -> 0.1188118812 | F27: =SUM(F21:F25) -> 1974 | G27: =SUM(G21:G25) -> 106 | H27: =IF(G27=0,0,G27/(SUMIF(G21,">0",F21)+SUMIF(G22,">0",F22)+SUMIF(G23,">0",F23)+SUMIF(G24,">0",F24)+SUMIF(G25,">0",F25))) -> 0.1026137464 | J27: =SUM(J21:J25) -> 1744 | K27: =SUM(K21:K25) -> 99 | L27: =IF(K27=0,0,K27/(SUMIF(K21,">0",J21)+SUMIF(K22,">0",J22)+SUMIF(K23,">0",J23)+SUMIF(K24,">0",J24)+SUMIF(K25,">0",J25))) -> 0.1059957173 | N27: =SUM(N21:N25) -> 1658 | O27: =SUM(O21:O25) -> 83 | P27: =IF(O27=0,0,O27/(SUMIF(O21,">0",N21)+SUMIF(O22,">0",N22)+SUMIF(O23,">0",N23)+SUMIF(O24,">0",N24)+SUMIF(O25,">0",N25))) -> 0.09120879121
A29: Scotland | B29: ='DATA CLA DIS'!B37 -> 14262 | C29: ='DATA CLA DIS'!C37 -> 1535 | D29: ='DATA CLA DIS'!D37 -> 0.1076286636 | F29: ='DATA CLA DIS'!E37 -> 14554 | G29: ='DATA CLA DIS'!F37 -> 1381 | H29: ='DATA CLA DIS'!G37 -> 0.09552465933 | J29: ='DATA CLA DIS'!H37 -> 13200 | K29: ='DATA CLA DIS'!I37 -> 1280 | L29: ='DATA CLA DIS'!J37 -> 0.09696969697 | N29: ='DATA CLA DIS'!K37 -> 12596 | O29: ='DATA CLA DIS'!L37 -> 1216 | P29: ='DATA CLA DIS'!M37 -> 0.09653858368
L31: =L18-H18 -> 0.0203180212 | M31: =P18-L18 -> 0.004166666667
L32: =L27-H27 -> 0.003381970975 | M32: =P27-L27 -> -0.01478692614 | O32: =L18-L27 -> 0.1440042827 | P32: =P18-P27 -> 0.1629578755
L33: =L29-H29 -> 0.001445037635 | M33: =P29-L29 -> -0.0004311132923
O34: =L18-L29 -> 0.153030303 | P34: =P18-P29 -> 0.157628083
O36: =IF(O32<-0.02,"less than",IF(O32>0.02,"greater than","similar to")) -> greater than | P36: =IF(P32<-0.02,"less than",IF(P32>0.02,"greater than","similar to")) -> greater than
L37: =IF(L31<0,"a decrease of ",IF(L31>=0,"an increase of ")) -> an increase of | M37: an increase of
L38: an increase of | M38: a decrease of
L39: an increase of | M39: a decrease of
O40: =IF(O34<-0.02,"less than",IF(O34>0.02,"greater than","similar to")) -> greater than | P40: =IF(P34<-0.02,"less than",IF(P34>0.02,"greater than","similar to")) -> greater than

Sheet CLA 3placements
A1: ='DATA CLA 3P'!A1 -> Looked after children with 3 or more placements during the year for those looked on 31 July, 2019 to 2022
B2: select comparators:
A3: =H3 -> 5 | H3: =VLOOKUP('Select an authority'!$A$1,'REF CAs'!$A$1:$F$32,2,0) -> 5
A4: 30 | H4: =VLOOKUP('Select an authority'!$A$1,'REF CAs'!$A$1:$F$32,3,0) -> 8
A5: =H5 -> 28 | H5: =VLOOKUP('Select an authority'!$A$1,'REF CAs'!$A$1:$F$32,4,0) -> 28
A6: =H6 -> 4 | H6: =VLOOKUP('Select an authority'!$A$1,'REF CAs'!$A$1:$F$32,5,0) -> 4
A7: 31 | H7: =VLOOKUP('Select an authority'!$A$1,'REF CAs'!$A$1:$F$32,6,0) -> 25
A12: =IF($M$19="N/A","[text statement not available due to data being unavailable]",IF(Q19="N/A","[text statement not available due to data being unavailable]",IF($M$19="*","[text statement not available due to suppression of data for confidentiality]",IF(Q19="*","[text statement not available due to suppression of data for confidentiality]","* In "&$O$17&", "&ROUND(100*$Q$19,0)&"% of children looked after in "&$A$19&" have had 3 or more placements during the past year, "&P37&ROUND(SQRT((100*O37)^2),1)&" %-points over the previous year.")))) -> * In 2022, 4% of children looked after in Aberdeen City have had 3 or more placements during the past year, a decrease of 2.2 %-points over the previous year.
A13: =IF($Q$28="N/A","[text statement not available due to data being unavailable]",IF(Q30="N/A","[text statement not available due to data being unavailable]",IF($Q$28="*","[text statement not available due to suppression of data for confidentiality]",IF(Q30="*","[text statement not available due to suppression of data for confidentiality]","* This compares with "&$P$38&" of "&ROUND(SQRT((100*$O$38)^2),1)&"%-points for comparator authorities, and "&$P$39&" of "&ROUND(SQRT((100*O39)^2),1)&"%-points for Scotland as a whole.")))) -> * This compares with a decrease of 0.4%-points for comparator authorities, and a decrease of 0%-points for Scotland as a whole.
A14: =IF(Q19="N/A","[text statement not available due to data being unavailable]",IF(Q19="*","[text statement not available due to suppression of data for confidentiality]","* The percentage of children who have had 3 or more placements during the past year ("&ROUND(100*Q19,0)&"%) is "&P34&" the comparator average of "&ROUND(100*Q28,0)&"% and "&P35&" the Scotland average of "&ROUND(100*Q30,0)&"%")) -> * The percentage of children who have had 3 or more placements during the past year (4%) is similar to the comparator average of 4% and similar to the Scotland average of 4%
C17: ='DATA CLA 3P'!C3 -> 2019 | D17: 2019 | E17: 2019 | G17: ='DATA CLA 3P'!G3 -> 2020 | H17: 2020 | I17: 2020 | K17: ='DATA CLA 3P'!K3 -> 2021 | L17: 2021 | M17: 2021 | O17: ='DATA CLA 3P'!O3 -> 2022 | P17: 2022 | Q17: 2022
C18: ='DATA CLA 3P'!C4 -> Number of children looked after | D18: ='DATA CLA 3P'!D4 -> Number with 3 or more placements | E18: ='DATA CLA 3P'!E4 -> Percentage with 3 or more placements | G18: ='DATA CLA 3P'!G4 -> Number of children looked after | H18: ='DATA CLA 3P'!H4 -> Number with 3 or more placements | I18: ='DATA CLA 3P'!I4 -> Percentage with 3 or more placements | K18: ='DATA CLA 3P'!K4 -> Number of children looked after | L18: ='DATA CLA 3P'!L4 -> Number with 3 or more placements | M18: ='DATA CLA 3P'!M4 -> Percentage with 3 or more placements | O18: ='DATA CLA 3P'!O4 -> Number of children looked after | P18: ='DATA CLA 3P'!P4 -> Number with 3 or more placements | Q18: ='DATA CLA 3P'!Q4 -> Percentage with 3 or more placements
A19: =OFFSET('REF EA Name'!$B$2,'Select an authority'!$A$1,0) -> Aberdeen City | C19: =IF(OFFSET('DATA CLA 3P'!$C5,'Select an authority'!$A$1,0)="","N/A",IF(OFFSET('DATA CLA 3P'!$C5,'Select an authority'!$A$1,0)=0,"0",OFFSET('DATA CLA 3P'!$C5,'Select an authority'!$A$1,0))) -> 542 | D19: =IF(OFFSET('DATA CLA 3P'!$D5,'Select an authority'!$A$1,0)="","N/A",IF(OFFSET('DATA CLA 3P'!$D5,'Select an authority'!$A$1,0)=0,"0",OFFSET('DATA CLA 3P'!$D5,'Select an authority'!$A$1,0))) -> 29 | E19: =IF(OFFSET('DATA CLA 3P'!$E5,'Select an authority'!$A$1,0)="","N/A",IF(OFFSET('DATA CLA 3P'!$E5,'Select an authority'!$A$1,0)=0,"0",OFFSET('DATA CLA 3P'!$E5,'Select an authority'!$A$1,0))) -> 0.05350553506 | G19: =IF(OFFSET('DATA CLA 3P'!$G5,'Select an authority'!$A$1,0)="","N/A",IF(OFFSET('DATA CLA 3P'!$G5,'Select an authority'!$A$1,0)=0,"0",OFFSET('DATA CLA 3P'!$G5,'Select an authority'!$A$1,0))) -> 566 | H19: =IF(OFFSET('DATA CLA 3P'!$H5,'Select an authority'!$A$1,0)="","N/A",IF(OFFSET('DATA CLA 3P'!$H5,'Select an authority'!$A$1,0)=0,"0",OFFSET('DATA CLA 3P'!$H5,'Select an authority'!$A$1,0))) -> 29 | I19: =IF(OFFSET('DATA CLA 3P'!$I5,'Select an authority'!$A$1,0)="","N/A",IF(OFFSET('DATA CLA 3P'!$I5,'Select an authority'!$A$1,0)=0,"0",OFFSET('DATA CLA 3P'!$I5,'Select an authority'!$A$1,0))) -> 0.05123674912 | K19: =IF(OFFSET('DATA CLA 3P'!$K5,'Select an authority'!$A$1,0)="","N/A",IF(OFFSET('DATA CLA 3P'!$K5,'Select an authority'!$A$1,0)=0,"0",OFFSET('DATA CLA 3P'!$K5,'Select an authority'!$A$1,0))) -> 516 | L19: =IF(OFFSET('DATA CLA 3P'!$L5,'Select an authority'!$A$1,0)="","N/A",IF(OFFSET('DATA CLA 3P'!$L5,'Select an authority'!$A$1,0)=0,"0",OFFSET('DATA CLA 3P'!$L5,'Select an authority'!$A$1,0))) -> 34 | M19: =IF(OFFSET('DATA CLA 3P'!$M5,'Select an authority'!$A$1,0)="","N/A",IF(OFFSET('DATA CLA 3P'!$M5,'Select an authority'!$A$1,0)=0,"0",OFFSET('DATA CLA 3P'!$M5,'Select an authority'!$A$1,0))) -> 0.06589147287 | O19: =IF(OFFSET('DATA CLA 3P'!$O$5,'Select an authority'!$A$1,0)="","N/A",IF(OFFSET('DATA CLA 3P'!$O$5,'Select an authority'!$A$1,0)=0,"0",OFFSET('DATA CLA 3P'!$O$5,'Select an authority'!$A$1,0))) -> 480 | P19: =IF(OFFSET('DATA CLA 3P'!$P$5,'Select an authority'!$A$1,0)="","N/A",IF(OFFSET('DATA CLA 3P'!$P$5,'Select an authority'!$A$1,0)=0,"0",OFFSET('DATA CLA 3P'!$P$5,'Select an authority'!$A$1,0))) -> 21 | Q19: =IF(OFFSET('DATA CLA 3P'!$Q5,'Select an authority'!$A$1,0)="","N/A",IF(OFFSET('DATA CLA 3P'!$Q5,'Select an authority'!$A$1,0)=0,"0",OFFSET('DATA CLA 3P'!$Q5,'Select an authority'!$A$1,0))) -> 0.04375
A21: Comparator Authorities:
A22: =OFFSET('REF EA Name'!$B$2, A3,0) -> City of Edinburgh | C22: =IF(OFFSET('DATA CLA 3P'!$C$5,$A3,0)="","N/A",IF($A3=33,"",IF(OFFSET('DATA CLA 3P'!$C$5,$A3,0)=0,"0",OFFSET('DATA CLA 3P'!$C$5,$A3,0)))) -> 1234 | D22: =IF(OFFSET('DATA CLA 3P'!$D$5,$A3,0)="","N/A",IF($A3=33,"",IF(OFFSET('DATA CLA 3P'!$D$5,$A3,0)=0,"0",OFFSET('DATA CLA 3P'!$D$5,$A3,0)))) -> 91 | E22: =IF(OFFSET('DATA CLA 3P'!$E$5,$A3,0)="","N/A",IF($A3=33,"",IF(OFFSET('DATA CLA 3P'!$E$5,$A3,0)=0,"0",OFFSET('DATA CLA 3P'!$E$5,$A3,0)))) -> 0.0737439222 | G22: =IF(OFFSET('DATA CLA 3P'!$G$5,$A3,0)="","N/A",IF($A3=33,"",IF(OFFSET('DATA CLA 3P'!$G$5,$A3,0)=0,"0",OFFSET('DATA CLA 3P'!$G$5,$A3,0)))) -> 1180 | H22: =IF(OFFSET('DATA CLA 3P'!$H$5,$A3,0)="","N/A",IF($A3=33,"",IF(OFFSET('DATA CLA 3P'!$H$5,$A3,0)=0,"0",OFFSET('DATA CLA 3P'!$H$5,$A3,0)))) -> 67 | I22: =IF(OFFSET('DATA CLA 3P'!$I$5,$A3,0)="","N/A",IF($A3=33,"",IF(OFFSET('DATA CLA 3P'!$I$5,$A3,0)=0,"0",OFFSET('DATA CLA 3P'!$I$5,$A3,0)))) -> 0.05677966102 | K22: =IF(OFFSET('DATA CLA 3P'!$K$5,$A3,0)="","N/A",IF($A3=33,"",IF(OFFSET('DATA CLA 3P'!$K$5,$A3,0)=0,"0",OFFSET('DATA CLA 3P'!$K$5,$A3,0)))) -> 1045 | L22: =IF(OFFSET('DATA CLA 3P'!$L$5,$A3,0)="","N/A",IF($A3=33,"",IF(OFFSET('DATA CLA 3P'!$L$5,$A3,0)=0,"0",OFFSET('DATA CLA 3P'!$L$5,$A3,0)))) -> 47 | M22: =IF(OFFSET('DATA CLA 3P'!$M$5,$A3,0)="","N/A",IF($A3=33,"",IF(OFFSET('DATA CLA 3P'!$M$5,$A3,0)=0,"0",OFFSET('DATA CLA 3P'!$M$5,$A3,0)))) -> 0.04497607656 | O22: =IF(OFFSET('DATA CLA 3P'!$O$5,$A3,0)="","N/A",IF($A3=33,"",IF(OFFSET('DATA CLA 3P'!$O$5,$A3,0)=0,"0",OFFSET('DATA CLA 3P'!$O$5,$A3,0)))) -> 1015 | P22: =IF(OFFSET('DATA CLA 3P'!$P$5,$A3,0)="","N/A",IF($A3=33,"",IF(OFFSET('DATA CLA 3P'!$P$5,$A3,0)=0,"0",OFFSET('DATA CLA 3P'!$P$5,$A3,0)))) -> 56 | Q22: =IF(OFFSET('DATA CLA 3P'!$Q$5,$A3,0)="","N/A",IF($A3=33,"",IF(OFFSET('DATA CLA 3P'!$Q$5,$A3,0)=0,"0",OFFSET('DATA CLA 3P'!$Q$5,$A3,0)))) -> 0.05517241379
A23: =OFFSET('REF EA Name'!$B$2,A4,0) -> Stirling | C23: =IF(OFFSET('DATA CLA 3P'!$C$5,$A4,0)="","N/A",IF($A4=33,"",IF(OFFSET('DATA CLA 3P'!$C$5,$A4,0)=0,"0",OFFSET('DATA CLA 3P'!$C$5,$A4,0)))) -> 238 | D23: =IF(OFFSET('DATA CLA 3P'!$D$5,$A4,0)="","N/A",IF($A4=33,"",IF(OFFSET('DATA CLA 3P'!$D$5,$A4,0)=0,"0",OFFSET('DATA CLA 3P'!$D$5,$A4,0)))) -> 11 | E23: =IF(OFFSET('DATA CLA 3P'!$E$5,$A4,0)="","N/A",IF($A4=33,"",IF(OFFSET('DATA CLA 3P'!$E$5,$A4,0)=0,"0",OFFSET('DATA CLA 3P'!$E$5,$A4,0)))) -> 0.04621848739 | G23: =IF(OFFSET('DATA CLA 3P'!$G$5,$A4,0)="","N/A",IF($A4=33,"",IF(OFFSET('DATA CLA 3P'!$G$5,$A4,0)=0,"0",OFFSET('DATA CLA 3P'!$G$5,$A4,0)))) -> 246 | H23: =IF(OFFSET('DATA CLA 3P'!$H$5,$A4,0)="","N/A",IF($A4=33,"",IF(OFFSET('DATA CLA 3P'!$H$5,$A4,0)=0,"0",OFFSET('DATA CLA 3P'!$H$5,$A4,0)))) -> 11 | I23: =IF(OFFSET('DATA CLA 3P'!$I$5,$A4,0)="","N/A",IF($A4=33,"",IF(OFFSET('DATA CLA 3P'!$I$5,$A4,0)=0,"0",OFFSET('DATA CLA 3P'!$I$5,$A4,0)))) -> 0.04471544715 | K23: =IF(OFFSET('DATA CLA 3P'!$K$5,$A4,0)="","N/A",IF($A4=33,"",IF(OFFSET('DATA CLA 3P'!$K$5,$A4,0)=0,"0",OFFSET('DATA CLA 3P'!$K$5,$A4,0)))) -> 230 | L23: =IF(OFFSET('DATA CLA 3P'!$L$5,$A4,0)="","N/A",IF($A4=33,"",IF(OFFSET('DATA CLA 3P'!$L$5,$A4,0)=0,"0",OFFSET('DATA CLA 3P'!$L$5,$A4,0)))) -> 7 | M23: =IF(OFFSET('DATA CLA 3P'!$M$5,$A4,0)="","N/A",IF($A4=33,"",IF(OFFSET('DATA CLA 3P'!$M$5,$A4,0)=0,"0",OFFSET('DATA CLA 3P'!$M$5,$A4,0)))) -> 0.03043478261 | O23: =IF(OFFSET('DATA CLA 3P'!$O$5,$A4,0)="","N/A",IF($A4=33,"",IF(OFFSET('DATA CLA 3P'!$O$5,$A4,0)=0,"0",OFFSET('DATA CLA 3P'!$O$5,$A4,0)))) -> 210 | P23: =IF(OFFSET('DATA CLA 3P'!$P$5,$A4,0)="","N/A",IF($A4=33,"",IF(OFFSET('DATA CLA 3P'!$P$5,$A4,0)=0,"0",OFFSET('DATA CLA 3P'!$P$5,$A4,0)))) -> 8 | Q23: =IF(OFFSET('DATA CLA 3P'!$Q$5,$A4,0)="","N/A",IF($A4=33,"",IF(OFFSET('DATA CLA 3P'!$Q$5,$A4,0)=0,"0",OFFSET('DATA CLA 3P'!$Q$5,$A4,0)))) -> 0.0380952381
A24: =OFFSET('REF EA Name'!$B$2,A5,0) -> South Ayrshire | C24: =IF(OFFSET('DATA CLA 3P'!$C$5,$A5,0)="","N/A",IF($A5=33,"",IF(OFFSET('DATA CLA 3P'!$C$5,$A5,0)=0,"0",OFFSET('DATA CLA 3P'!$C$5,$A5,0)))) -> 345 | D24: =IF(OFFSET('DATA CLA 3P'!$D$5,$A5,0)="","N/A",IF($A5=33,"",IF(OFFSET('DATA CLA 3P'!$D$5,$A5,0)=0,"0",OFFSET('DATA CLA 3P'!$D$5,$A5,0)))) -> 16 | E24: =IF(OFFSET('DATA CLA 3P'!$E$5,$A5,0)="","N/A",IF($A5=33,"",IF(OFFSET('DATA CLA 3P'!$E$5,$A5,0)=0,"0",OFFSET('DATA CLA 3P'!$E$5,$A5,0)))) -> 0.04637681159 | G24: =IF(OFFSET('DATA CLA 3P'!$G$5,$A5,0)="","N/A",IF($A5=33,"",IF(OFFSET('DATA CLA 3P'!$G$5,$A5,0)=0,"0",OFFSET('DATA CLA 3P'!$G$5,$A5,0)))) -> 300 | H24: =IF(OFFSET('DATA CLA 3P'!$H$5,$A5,0)="","N/A",IF($A5=33,"",IF(OFFSET('DATA CLA 3P'!$H$5,$A5,0)=0,"0",OFFSET('DATA CLA 3P'!$H$5,$A5,0)))) -> 16 | I24: =IF(OFFSET('DATA CLA 3P'!$I$5,$A5,0)="","N/A",IF($A5=33,"",IF(OFFSET('DATA CLA 3P'!$I$5,$A5,0)=0,"0",OFFSET('DATA CLA 3P'!$I$5,$A5,0)))) -> 0.05333333333 | K24: =IF(OFFSET('DATA CLA 3P'!$K$5,$A5,0)="","N/A",IF($A5=33,"",IF(OFFSET('DATA CLA 3P'!$K$5,$A5,0)=0,"0",OFFSET('DATA CLA 3P'!$K$5,$A5,0)))) -> 229 | L24: =IF(OFFSET('DATA CLA 3P'!$L$5,$A5,0)="","N/A",IF($A5=33,"",IF(OFFSET('DATA CLA 3P'!$L$5,$A5,0)=0,"0",OFFSET('DATA CLA 3P'!$L$5,$A5,0)))) -> 14 | M24: =IF(OFFSET('DATA CLA 3P'!$M$5,$A5,0)="","N/A",IF($A5=33,"",IF(OFFSET('DATA CLA 3P'!$M$5,$A5,0)=0,"0",OFFSET('DATA CLA 3P'!$M$5,$A5,0)))) -> 0.06113537118 | O24: =IF(OFFSET('DATA CLA 3P'!$O$5,$A5,0)="","N/A",IF($A5=33,"",IF(OFFSET('DATA CLA 3P'!$O$5,$A5,0)=0,"0",OFFSET('DATA CLA 3P'!$O$5,$A5,0)))) -> 182 | P24: =IF(OFFSET('DATA CLA 3P'!$P$5,$A5,0)="","N/A",IF($A5=33,"",IF(OFFSET('DATA CLA 3P'!$P$5,$A5,0)=0,"0",OFFSET('DATA CLA 3P'!$P$5,$A5,0)))) -> 4 | Q24: =IF(OFFSET('DATA CLA 3P'!$Q$5,$A5,0)="","N/A",IF($A5=33,"",IF(OFFSET('DATA CLA 3P'!$Q$5,$A5,0)=0,"0",OFFSET('DATA CLA 3P'!$Q$5,$A5,0)))) -> 0.02197802198
A25: =OFFSET('REF EA Name'!$B$2,A6,0) -> Argyll & Bute | C25: =IF(OFFSET('DATA CLA 3P'!$C$5,$A6,0)="","N/A",IF($A6=33,"",IF(OFFSET('DATA CLA 3P'!$C$5,$A6,0)=0,"0",OFFSET('DATA CLA 3P'!$C$5,$A6,0)))) -> 150 | D25: =IF(OFFSET('DATA CLA 3P'!$D$5,$A6,0)="","N/A",IF($A6=33,"",IF(OFFSET('DATA CLA 3P'!$D$5,$A6,0)=0,"0",OFFSET('DATA CLA 3P'!$D$5,$A6,0)))) -> 9 | E25: =IF(OFFSET('DATA CLA 3P'!$E$5,$A6,0)="","N/A",IF($A6=33,"",IF(OFFSET('DATA CLA 3P'!$E$5,$A6,0)=0,"0",OFFSET('DATA CLA 3P'!$E$5,$A6,0)))) -> 0.06 | G25: =IF(OFFSET('DATA CLA 3P'!$G$5,$A6,0)="","N/A",IF($A6=33,"",IF(OFFSET('DATA CLA 3P'!$G$5,$A6,0)=0,"0",OFFSET('DATA CLA 3P'!$G$5,$A6,0)))) -> 162 | H25: =IF(OFFSET('DATA CLA 3P'!$H$5,$A6,0)="","N/A",IF($A6=33,"",IF(OFFSET('DATA CLA 3P'!$H$5,$A6,0)=0,"0",OFFSET('DATA CLA 3P'!$H$5,$A6,0)))) -> 2 | I25: =IF(OFFSET('DATA CLA 3P'!$I$5,$A6,0)="","N/A",IF($A6=33,"",IF(OFFSET('DATA CLA 3P'!$I$5,$A6,0)=0,"0",OFFSET('DATA CLA 3P'!$I$5,$A6,0)))) -> 0.01234567901 | K25: =IF(OFFSET('DATA CLA 3P'!$K$5,$A6,0)="","N/A",IF($A6=33,"",IF(OFFSET('DATA CLA 3P'!$K$5,$A6,0)=0,"0",OFFSET('DATA CLA 3P'!$K$5,$A6,0)))) -> 151 | L25: =IF(OFFSET('DATA CLA 3P'!$L$5,$A6,0)="","N/A",IF($A6=33,"",IF(OFFSET('DATA CLA 3P'!$L$5,$A6,0)=0,"0",OFFSET('DATA CLA 3P'!$L$5,$A6,0)))) -> 8 | M25: =IF(OFFSET('DATA CLA 3P'!$M$5,$A6,0)="","N/A",IF($A6=33,"",IF(OFFSET('DATA CLA 3P'!$M$5,$A6,0)=0,"0",OFFSET('DATA CLA 3P'!$M$5,$A6,0)))) -> 0.05298013245 | O25: =IF(OFFSET('DATA CLA 3P'!$O$5,$A6,0)="","N/A",IF($A6=33,"",IF(OFFSET('DATA CLA 3P'!$O$5,$A6,0)=0,"0",OFFSET('DATA CLA 3P'!$O$5,$A6,0)))) -> 144 | P25: =IF(OFFSET('DATA CLA 3P'!$P$5,$A6,0)="","N/A",IF($A6=33,"",IF(OFFSET('DATA CLA 3P'!$P$5,$A6,0)=0,"0",OFFSET('DATA CLA 3P'!$P$5,$A6,0)))) -> 6 | Q25: =IF(OFFSET('DATA CLA 3P'!$Q$5,$A6,0)="","N/A",IF($A6=33,"",IF(OFFSET('DATA CLA 3P'!$Q$5,$A6,0)=0,"0",OFFSET('DATA CLA 3P'!$Q$5,$A6,0)))) -> 0.04166666667
A26: =OFFSET('REF EA Name'!$B$2,A7,0) -> West Dunbartonshire | C26: =IF(OFFSET('DATA CLA 3P'!$C$5,$A7,0)="","N/A",IF($A7=33,"",IF(OFFSET('DATA CLA 3P'!$C$5,$A7,0)=0,"0",OFFSET('DATA CLA 3P'!$C$5,$A7,0)))) -> 505 | D26: =IF(OFFSET('DATA CLA 3P'!$D$5,$A7,0)="","N/A",IF($A7=33,"",IF(OFFSET('DATA CLA 3P'!$D$5,$A7,0)=0,"0",OFFSET('DATA CLA 3P'!$D$5,$A7,0)))) -> 27 | E26: =IF(OFFSET('DATA CLA 3P'!$E$5,$A7,0)="","N/A",IF($A7=33,"",IF(OFFSET('DATA CLA 3P'!$E$5,$A7,0)=0,"0",OFFSET('DATA CLA 3P'!$E$5,$A7,0)))) -> 0.05346534653 | G26: =IF(OFFSET('DATA CLA 3P'!$G$5,$A7,0)="","N/A",IF($A7=33,"",IF(OFFSET('DATA CLA 3P'!$G$5,$A7,0)=0,"0",OFFSET('DATA CLA 3P'!$G$5,$A7,0)))) -> 506 | H26: =IF(OFFSET('DATA CLA 3P'!$H$5,$A7,0)="","N/A",IF($A7=33,"",IF(OFFSET('DATA CLA 3P'!$H$5,$A7,0)=0,"0",OFFSET('DATA CLA 3P'!$H$5,$A7,0)))) -> 19 | I26: =IF(OFFSET('DATA CLA 3P'!$I$5,$A7,0)="","N/A",IF($A7=33,"",IF(OFFSET('DATA CLA 3P'!$I$5,$A7,0)=0,"0",OFFSET('DATA CLA 3P'!$I$5,$A7,0)))) -> 0.03754940711 | K26: =IF(OFFSET('DATA CLA 3P'!$K$5,$A7,0)="","N/A",IF($A7=33,"",IF(OFFSET('DATA CLA 3P'!$K$5,$A7,0)=0,"0",OFFSET('DATA CLA 3P'!$K$5,$A7,0)))) -> 466 | L26: =IF(OFFSET('DATA CLA 3P'!$L$5,$A7,0)="","N/A",IF($A7=33,"",IF(OFFSET('DATA CLA 3P'!$L$5,$A7,0)=0,"0",OFFSET('DATA CLA 3P'!$L$5,$A7,0)))) -> 15 | M26: =IF(OFFSET('DATA CLA 3P'!$M$5,$A7,0)="","N/A",IF($A7=33,"",IF(OFFSET('DATA CLA 3P'!$M$5,$A7,0)=0,"0",OFFSET('DATA CLA 3P'!$M$5,$A7,0)))) -> 0.0321888412 | O26: =IF(OFFSET('DATA CLA 3P'!$O$5,$A7,0)="","N/A",IF($A7=33,"",IF(OFFSET('DATA CLA 3P'!$O$5,$A7,0)=0,"0",OFFSET('DATA CLA 3P'!$O$5,$A7,0)))) -> 462 | P26: =IF(OFFSET('DATA CLA 3P'!$P$5,$A7,0)="","N/A",IF($A7=33,"",IF(OFFSET('DATA CLA 3P'!$P$5,$A7,0)=0,"0",OFFSET('DATA CLA 3P'!$P$5,$A7,0)))) -> 4 | Q26: =IF(OFFSET('DATA CLA 3P'!$Q$5,$A7,0)="","N/A",IF($A7=33,"",IF(OFFSET('DATA CLA 3P'!$Q$5,$A7,0)=0,"0",OFFSET('DATA CLA 3P'!$Q$5,$A7,0)))) -> 0.008658008658
A28: Comparator authorities | C28: =SUM(C22:C26) -> 2472 | D28: =SUM(D22:D26) -> 154 | E28: =IF(D28=0,0,D28/(SUMIF(D22,">0",$C22)+SUMIF(D23,">0",$C23)+SUMIF(D24,">0",$C24)+SUMIF(D25,">0",$C25)+SUMIF(D26,">0",$C26))) -> 0.06229773463 | G28: =SUM(G22:G26) -> 2394 | H28: =SUM(H22:H26) -> 115 | I28: =IF(H28=0,0,H28/(SUMIF(H22,">0",$G22)+SUMIF(H23,">0",$G23)+SUMIF(H24,">0",$G24)+SUMIF(H25,">0",$G25)+SUMIF(H26,">0",$G26))) -> 0.04803675856 | K28: =SUM(K22:K26) -> 2121 | L28: =SUM(L22:L26) -> 91 | M28: =IF(L28=0,0,L28/(SUMIF(L22,">0",$K22)+SUMIF(L23,">0",$K23)+SUMIF(L24,">0",$K24)+SUMIF(L25,">0",$K25)+SUMIF(L26,">0",$K26))) -> 0.04290429043 | O28: =SUM(O22:O26) -> 2013 | P28: =SUM(P22:P26) -> 78 | Q28: =IF(P28=0,0,P28/(SUMIF(P22,">0",$O22)+SUMIF(P23,">0",$O23)+SUMIF(P24,">0",$O24)+SUMIF(P25,">0",$O25)+SUMIF(P26,">0",$O26))) -> 0.03874813711
A30: Scotland | C30: ='DATA CLA 3P'!C$38 -> 14262 | D30: ='DATA CLA 3P'!D$38 -> 742 | E30: ='DATA CLA 3P'!E$38 -> 0.05202636376 | G30: ='DATA CLA 3P'!G$38 -> 14458 | H30: ='DATA CLA 3P'!H$38 -> 572 | I30: ='DATA CLA 3P'!I$38 -> 0.03956287177 | K30: ='DATA CLA 3P'!K$38 -> 13200 | L30: ='DATA CLA 3P'!L$38 -> 502 | M30: ='DATA CLA 3P'!M$38 -> 0.03803030303 | O30: ='DATA CLA 3P'!$O$38 -> 12596 | P30: ='DATA CLA 3P'!$P$38 -> 479 | Q30: ='DATA CLA 3P'!$Q$38 -> 0.03802794538
A32: Notes
A33: [Note 1] | B33: =IF('DATA CLA 3P'!A40="","",'DATA CLA 3P'!A40) -> The figures refer to the number of placements a child has between the 1st August and 31st July of each year. | L33: =I19-E19 -> -0.002268785939 | M33: =IF(L33<0,"a decrease of ",IF(L33>=0,"an increase of ")) -> a decrease of
A34: [Note 2] | B34: =IF('DATA CLA 3P'!A42="","",'DATA CLA 3P'!A42) -> Source: Scottish Government CLAS Returns | E34: =E19-E28 -> -0.008792199572 | F34: =IF(E34<-0.05,"less than",IF(E34>0.05,"greater than","similar to")) -> similar to | I34: =I19-I28 -> 0.003199990554 | J34: =IF(I34<-0.05,"less than",IF(I34>0.05,"greater than","similar to")) -> similar to | L34: =I28-E28 -> -0.01426097606 | M34: =IF(L34<0,"a decrease of ",IF(L34>=0,"an increase of ")) -> a decrease of | O34: =Q19-Q28 -> 0.005001862891 | P34: =IF(O34<-0.05,"less than",IF(O34>0.05,"greater than","similar to")) -> similar to
E35: =E19-E30 -> 0.001479171292 | F35: =IF(E35<-0.05,"less than",IF(E35>0.05,"greater than","similar to")) -> similar to | I35: =I19-I30 -> 0.01167387735 | J35: =IF(I35<-0.05,"less than",IF(I35>0.05,"greater than","similar to")) -> similar to | O35: =Q19-Q30 -> 0.005722054621 | P35: =IF(O35<-0.05,"less than",IF(O35>0.05,"greater than","similar to")) -> similar to
I36: =M19-M28 -> 0.02298718244 | J36: =IF(I36<-0.05,"less than",IF(I36>0.05,"greater than","similar to")) -> similar to | L36: =I30-E30 -> -0.012463492 | M36: =IF(L36<0,"a decrease of ",IF(L36>=0,"an increase of ")) -> a decrease of
I37: =M19-M30 -> 0.02786116984 | J37: =IF(I37<-0.05,"less than",IF(I37>0.05,"greater than","similar to")) -> similar to | O37: =Q19-M19 -> -0.02214147287 | P37: =IF(O37<0,"a decrease of ",IF(O37>=0,"an increase of ")) -> a decrease of
L38: =M19-I19 -> 0.01465472375 | M38: =IF(L38<0,"a decrease of ",IF(L38>=0,"an increase of ")) -> an increase of | O38: =Q28-M28 -> -0.00415615332 | P38: =IF(O38<0,"a decrease",IF(O38>=0,"an increase")) -> a decrease
L39: =M28-I28 -> -0.005132468134 | M39: =IF(L39<0,"a decrease of ",IF(L39>=0,"an increase of ")) -> a decrease of | O39: =Q30-M30 -> -2.357650817e-06 | P39: =IF(O39<0,"a decrease",IF(O39>=0,"an increase")) -> a decrease
L40: =M30-I30 -> -0.001532568736 | M40: =IF(L40<0,"a decrease of ",IF(L40>=0,"an increase of ")) -> a decrease of

Sheet DATA CLA (hidden)
A1: Looked after children on 31 July, 2016 to 2022
A3: Total number of looked after children on 31 July 2016-2022 | J3: Population Aged 0-17 | R3: Total number of children looked after at 31 July 2016-2022- rate per 1000, 0-17 population
A5: Council | B5: 2016 | C5: 2017 | D5: 2018 | E5: 2019 | F5: 2020 | G5: 2021 | H5: 2022 | J5: 2016 | K5: 2017 | L5: 2018 | M5: 2019 | N5: 2020 | O5: 2021 | P5: 2022 | R5: Council | S5: 2016 | T5: 2017 | U5: 2018 | V5: 2019 | W5: 2020 | X5: 2021 | Y5: 2022
A6: Aberdeen City | B6: 553 | C6: 590 | D6: 549 | E6: 542 | F6: 566 | G6: 516 | H6: 480 | J6: 38001 | K6: 38221 | L6: 38418 | M6: 38966 | N6: 39401 | O6: 39663 | P6: 39663 | R6: Aberdeen City | S6: =IFERROR(B6*1000/J6,"*") -> 14.55224863 | T6: =IFERROR(C6*1000/K6,"*") -> 15.43654012 | U6: =IFERROR(D6*1000/L6,"*") -> 14.29017648 | V6: =IFERROR(E6*1000/M6,"*") -> 13.90956218 | W6: =IFERROR(F6*1000/N6,"*") -> 14.36511764 | X6: =IFERROR(G6*1000/O6,"*") -> 13.00960593 | Y6: =IFERROR(H6*1000/P6,"*") -> 12.101959
A7: Aberdeenshire | B7: 411 | C7: 395 | D7: 409 | E7: 403 | F7: 404 | G7: 386 | H7: 378 | J7: 54908 | K7: 54677 | L7: 54594 | M7: 54634 | N7: 54387 | O7: 54422 | P7: 54422 | R7: Aberdeenshire | S7: 7.485248051 | T7: 7.224244198 | U7: 7.491665751 | V7: 7.376359044 | W7: 7.42824572 | X7: 7.092719856 | Y7: 6.945720481
A8: Angus | B8: 238 | C8: 255 | D8: 251 | E8: 244 | F8: 265 | G8: 252 | H8: 211 | J8: 22034 | K8: 21907 | L8: 21759 | M8: 21588 | N8: 21420 | O8: 21172 | P8: 21172 | R8: Angus | S8: 10.80148861 | T8: 11.64011503 | U8: 11.53545659 | V8: 11.3025755 | W8: 12.37161531 | X8: 11.90251275 | Y8: 9.965992821
A9: Argyll & Bute | B9: 163 | C9: 175 | D9: 149 | E9: 150 | F9: 162 | G9: 151 | H9: 144 | J9: 15141 | K9: 14906 | L9: 14742 | M9: 14566 | N9: 14304 | O9: 14202 | P9: 14202 | R9: Argyll & Bute | S9: 10.76547124 | T9: 11.74023883 | U9: 10.10717677 | V9: 10.29795414 | W9: 11.32550336 | X9: 10.63230531 | Y9: 10.13941698
A10: City of Edinburgh | B10: 1368 | C10: 1349 | D10: 1309 | E10: 1234 | F10: 1180 | G10: 1045 | H10: 1015 | J10: 86107 | K10: 86478 | L10: 86866 | M10: 87481 | N10: 87556 | O10: 87551 | P10: 87551 | R10: City of Edinburgh | S10: 15.8872101 | T10: 15.59934319 | U10: 15.06918702 | V10: 14.10592014 | W10: 13.47708895 | X10: 11.93590022 | Y10: 11.5932428
A11: Clackmannanshire | B11: 233 | C11: 213 | D11: 211 | E11: 185 | F11: 248 | G11: 261 | H11: 263 | J11: 10258 | K11: 10222 | L11: 10126 | M11: 10027 | N11: 10010 | O11: 10010 | P11: 10010 | R11: Clackmannanshire | S11: 22.71397933 | T11: 20.83740951 | U11: 20.83744815 | V11: 18.4501845 | W11: 24.77522478 | X11: 26.07392607 | Y11: 26.27372627
A12: Dumfries and Galloway | B12: 393 | C12: 382 | D12: 439 | E12: 395 | F12: 365 | G12: 311 | H12: 303 | J12: 26707 | K12: 26480 | L12: 26328 | M12: 26168 | N12: 26038 | O12: 25967 | P12: 25967 | R12: Dumfries and Galloway | S12: 14.71524319 | T12: 14.42598187 | U12: 16.67426314 | V12: 15.09477224 | W12: 14.01797373 | X12: 11.97673971 | Y12: 11.66865637
A13: Dundee City | B13: 592 | C13: 555 | D13: 519 | E13: 463 | F13: 493 | G13: 437 | H13: 435 | J13: 26729 | K13: 26803 | L13: 26743 | M13: 26763 | N13: 26678 | O13: 26530 | P13: 26530 | R13: Dundee City | S13: 22.14822852 | T13: 20.70663732 | U13: 19.40694761 | V13: 17.30000374 | W13: 18.47964615 | X13: 16.47191858 | Y13: 16.39653223
A14: East Ayrshire | B14: 463 | C14: 386 | D14: 401 | E14: 375 | F14: 382 | G14: 402 | H14: 387 | J14: 23930 | K14: 23767 | L14: 23671 | M14: 23559 | N14: 23423 | O14: 23427 | P14: 23427 | R14: East Ayrshire | S14: 19.34809862 | T14: 16.24100644 | U14: 16.94056018 | V14: 15.91748376 | W14: 16.30875635 | X14: 17.15968754 | Y14: 16.51940069
A15: East Dunbartonshire | B15: 164 | C15: 162 | D15: 140 | E15: 149 | F15: 155 | G15: 165 | H15: 157 | J15: 21353 | K15: 21543 | L15: 21627 | M15: 21718 | N15: 21895 | O15: 22022 | P15: 22022 | R15: East Dunbartonshire | S15: 7.680419613 | T15: 7.519844033 | U15: 6.473389744 | V15: 6.86066857 | W15: 7.079241836 | X15: 7.492507493 | Y15: 7.129234402
A16: East Lothian | B16: 229 | C16: 242 | D16: 245 | E16: 246 | F16: 260 | G16: 223 | H16: 207 | J16: 21329 | K16: 21365 | L16: 21590 | M16: 21828 | N16: 21935 | O16: 22189 | P16: 22189 | R16: East Lothian | S16: 10.73655586 | T16: 11.32693658 | U16: 11.34784623 | V16: 11.26992853 | W16: 11.85320264 | X16: 10.05002479 | Y16: 9.328946775
A17: East Renfrewshire | B17: 130 | C17: 117 | D17: 110 | E17: 102 | F17: 117 | G17: 90 | H17: 96 | J17: 21099 | K17: 21422 | L17: 21655 | M17: 21828 | N17: 22055 | O17: 22263 | P17: 22263 | R17: East Renfrewshire | S17: 6.161429452 | T17: 5.461674914 | U17: 5.079658278 | V17: 4.672897196 | W17: 5.304919519 | X17: 4.042581862 | Y17: 4.31208732
A18: Falkirk | B18: 373 | C18: 381 | D18: 368 | E18: 344 | F18: 369 | G18: 378 | H18: 390 | J18: 31846 | K18: 31745 | L18: 31519 | M18: 31432 | N18: 31291 | O18: 31062 | P18: 31062 | R18: Falkirk | S18: 11.71261697 | T18: 12.00189006 | U18: 11.67549732 | V18: 10.94426063 | W18: 11.7925282 | X18: 12.16920997 | Y18: 12.55553409
A19: Fife | B19: 981 | C19: 942 | D19: 941 | E19: 935 | F19: 919 | G19: 810 | H19: 748 | J19: 72326 | K19: 72081 | L19: 72088 | M19: 72048 | N19: 71956 | O19: 71746 | P19: 71746 | R19: Fife | S19: 13.56358709 | T19: 13.06863112 | U19: 13.05349018 | V19: 12.97745947 | W19: 12.77169381 | X19: 11.289828 | Y19: 10.42566833
A20: Glasgow City | B20: 3294 | C20: 2827 | D20: 2645 | E20: 2523 | F20: 2544 | G20: 2328 | H20: 2146 | J20: 110239 | K20: 110863 | L20: 111161 | M20: 111598 | N20: 111512 | O20: 111037 | P20: 111037 | R20: Glasgow City | S20: 29.8805323 | T20: 25.49994137 | U20: 23.79431635 | V20: 22.60793204 | W20: 22.81368821 | X20: 20.96598431 | Y20: 19.32689104
A21: Highland | B21: 440 | C21: 487 | D21: 521 | E21: 483 | F21: 495 | G21: 467 | H21: 402 | J21: 45284 | K21: 44684 | L21: 44427 | M21: 44039 | N21: 43515 | O21: 43268 | P21: 43268 | R21: Highland | S21: 9.716456143 | T21: 10.89875571 | U21: 11.72710289 | V21: 10.96755149 | W21: 11.3753878 | X21: 10.7931959 | Y21: 9.290930942
A22: Inverclyde | B22: 207 | C22: 218 | D22: 199 | E22: 205 | F22: 223 | G22: 206 | H22: 193 | J22: 14638 | K22: 14389 | L22: 14192 | M22: 14126 | N22: 14051 | O22: 13889 | P22: 13889 | R22: Inverclyde | S22: 14.14127613 | T22: 15.15046216 | U22: 14.02198422 | V22: 14.51224692 | W22: 15.87075653 | X22: 14.83188134 | Y22: 13.89588883
A23: Midlothian | B23: 250 | C23: 259 | D23: 233 | E23: 218 | F23: 214 | G23: 172 | H23: 172 | J23: 18958 | K23: 19254 | L23: 19500 | M23: 19834 | N23: 20036 | O23: 20305 | P23: 20305 | R23: Midlothian | S23: 13.18704505 | T23: 13.45175029 | U23: 11.94871795 | V23: 10.99122719 | W23: 10.68077461 | X23: 8.470819995 | Y23: 8.470819995
A24: Moray | B24: 213 | C24: 215 | D24: 222 | E24: 210 | F24: 188 | G24: 174 | H24: 165 | J24: 18840 | K24: 18568 | L24: 18312 | M24: 18293 | N24: 18204 | O24: 18093 | P24: 18093 | R24: Moray | S24: 11.30573248 | T24: 11.57906075 | U24: 12.1231979 | V24: 11.47980102 | W24: 10.32740057 | X24: 9.616978942 | Y24: 9.119548997
A25: Na h-Eileanan Siar | B25: 37 | C25: 47 | D25: 41 | E25: 39 | F25: 50 | G25: 39 | H25: 44 | J25: 4878 | K25: 4892 | L25: 4842 | M25: 4792 | N25: 4719 | O25: 4625 | P25: 4625 | R25: Na h-Eileanan Siar | S25: 7.585075851 | T25: 9.607522486 | U25: 8.467575382 | V25: 8.138564274 | W25: 10.59546514 | X25: 8.432432432 | Y25: 9.513513514
A26: North Ayrshire | B26: 603 | C26: 585 | D26: 563 | E26: 550 | F26: 575 | G26: 489 | H26: 447 | J26: 26157 | K26: 25894 | L26: 25682 | M26: 25314 | N26: 25178 | O26: 24804 | P26: 24804 | R26: North Ayrshire | S26: 23.05310242 | T26: 22.59210628 | U26: 21.92196869 | V26: 21.72710753 | W26: 22.83739773 | X26: 19.71456217 | Y26: 18.02128689
A27: North Lanarkshire | B27: 765 | C27: 773 | D27: 754 | E27: 850 | F27: 832 | G27: 734 | H27: 692 | J27: 71393 | K27: 70766 | L27: 70636 | M27: 70519 | N27: 70219 | O27: 69751 | P27: 69751 | R27: North Lanarkshire | S27: 10.71533624 | T27: 10.92332476 | U27: 10.67444363 | V27: 12.05348913 | W27: 11.84864495 | X27: 10.52314662 | Y27: 9.921004717
A28: Orkney Islands | B28: 28 | C28: 38 | D28: 31 | E28: 37 | F28: 31 | G28: 38 | H28: 34 | J28: 3984 | K28: 3972 | L28: 3988 | M28: 4024 | N28: 4002 | O28: 4004 | P28: 4004 | R28: Orkney Islands | S28: 7.02811245 | T28: 9.566968781 | U28: 7.77331996 | V28: 9.194831014 | W28: 7.746126937 | X28: 9.490509491 | Y28: 8.491508492
A29: Perth and Kinross | B29: 286 | C29: 281 | D29: 280 | E29: 282 | F29: 285 | G29: 288 | H29: 284 | J29: 28082 | K29: 27954 | L29: 27747 | M29: 27656 | N29: 27533 | O29: 27561 | P29: 27561 | R29: Perth and Kinross | S29: 10.1844598 | T29: 10.05222866 | U29: 10.09118103 | V29: 10.19670234 | W29: 10.35121491 | X29: 10.44954827 | Y29: 10.30441566
A30: Renfrewshire | B30: 681 | C30: 659 | D30: 656 | E30: 629 | F30: 642 | G30: 587 | H30: 592 | J30: 33865 | K30: 33893 | L30: 33904 | M30: 33889 | N30: 33858 | O30: 33624 | P30: 33624 | R30: Renfrewshire | S30: 20.10925735 | T30: 19.44354291 | U30: 19.34874941 | V30: 18.56059488 | W30: 18.96154528 | X30: 17.45776826 | Y30: 17.60647157
A31: Scottish Borders | B31: 218 | C31: 228 | D31: 205 | E31: 195 | F31: 187 | G31: 174 | H31: 183 | J31: 21507 | K31: 21479 | L31: 21434 | M31: 21349 | N31: 21192 | O31: 21207 | P31: 21207 | R31: Scottish Borders | S31: 10.13623471 | T31: 10.61501932 | U31: 9.564243725 | V31: 9.133917279 | W31: 8.82408456 | X31: 8.204838025 | Y31: 8.629226199
A32: Shetland Islands | B32: 29 | C32: 32 | D32: 29 | E32: 34 | F32: 28 | G32: 26 | H32: 27 | J32: 4801 | K32: 4771 | L32: 4689 | M32: 4691 | N32: 4674 | O32: 4624 | P32: 4624 | R32: Shetland Islands | S32: 6.040408248 | T32: 6.707189268 | U32: 6.184687567 | V32: 7.247921552 | W32: 5.990586222 | X32: 5.62283737 | Y32: 5.839100346
A33: South Ayrshire | B33: 384 | C33: 370 | D33: 355 | E33: 345 | F33: 300 | G33: 229 | H33: 182 | J33: 20196 | K33: 20082 | L33: 19881 | M33: 19796 | N33: 19656 | O33: 19575 | P33: 19575 | R33: South Ayrshire | S33: 19.01366607 | T33: 18.42445972 | U33: 17.85624466 | V33: 17.42776318 | W33: 15.26251526 | X33: 11.69859515 | Y33: 9.297573436
A34: South Lanarkshire | B34: 563 | C34: 549 | D34: 655 | E34: 725 | F34: 786 | G34: 747 | H34: 774 | J34: 62097 | K34: 62114 | L34: 61941 | M34: 62118 | N34: 62112 | O34: 62492 | P34: 62492 | R34: South Lanarkshire | S34: 9.066460538 | T34: 8.838587114 | U34: 10.57457903 | V34: 11.6713352 | W34: 12.65455951 | X34: 11.95353005 | Y34: 12.38558535
A35: Stirling | B35: 216 | C35: 245 | D35: 236 | E35: 238 | F35: 246 | G35: 230 | H35: 210 | J35: 17784 | K35: 17593 | L35: 17551 | M35: 17450 | N35: 17292 | O35: 17130 | P35: 17130 | R35: Stirling | S35: 12.14574899 | T35: 13.92599329 | U35: 13.44652726 | V35: 13.63896848 | W35: 14.22623178 | X35: 13.42673672 | Y35: 12.2591944
A36: West Dunbartonshire | B36: 363 | C36: 429 | D36: 445 | E36: 505 | F36: 506 | G36: 466 | H36: 462 | J36: 17716 | K36: 17656 | L36: 17500 | M36: 17457 | N36: 17331 | O36: 17169 | P36: 17169 | R36: West Dunbartonshire | S36: 20.48995259 | T36: 24.29768917 | U36: 25.42857143 | V36: 28.92822364 | W36: 29.19623796 | X36: 27.14194187 | Y36: 26.90896383
A37: West Lothian | B37: 449 | C37: 511 | D37: 443 | E37: 427 | F37: 441 | G37: 379 | H37: 373 | J37: 39574 | K37: 39614 | L37: 39685 | M37: 39611 | N37: 39489 | O37: 39597 | P37: 39597 | R37: West Lothian | S37: 11.34583312 | T37: 12.89947998 | U37: 11.1629079 | V37: 10.77983388 | W37: 11.16766695 | X37: 9.571432179 | Y37: 9.419905548
A38: SCOTLAND | B38: 15317 | C38: 14897 | D38: 14554 | E38: 14262 | F38: 14458 | G38: 13200 | H38: 12596 | J38: 1031761 | K38: 1030055 | L38: 1028798 | M38: 1029162 | N38: 1026922 | O38: 1024981 | P38: 1024981 | R38: SCOTLAND | S38: 14.84549232 | T38: 14.46233454 | U38: 14.14660604 | V38: 13.8578766 | W38: 14.07896608 | X38: 12.8782875 | Y38: 12.28900828
A39: Notes:
A40: Population figures source: NRS mid-year population estimates for 2016-2022
A41: Source: Scottish Government CLAS Returns

Sheet DATA CLA Acc (hidden)
A1: Looked after children by accommodation type on 31 July, 2019 to 2022
B3: 2019 | K3: 2020 | T3: 2021 | AC3: 2022
B4: In the community | G4: In residential accommodation | K4: In the community | P4: In residential accommodation | T4: In the community | Y4: In residential accommodation | AC4: In the community | AH4: In residential accommodation
B5: At home with parents | C5: With friends / relatives | D5: With foster carers provided by LA | E5: With foster carers purchased by LA | F5: In other community(1) | G5: In local authority home/ Voluntary Home | H5: In other residential care(2) | I5: Total | K5: At home with parents | L5: With friends / relatives | M5: With foster carers provided by LA | N5: With foster carers purchased by LA | O5: In other community(1) | P5: In local authority home/ Voluntary Home | Q5: In other residential care(2) | R5: Total | T5: At home with parents | U5: With friends / relatives | V5: With foster carers provided by LA | W5: With foster carers purchased by LA | X5: In other community(1) | Y5: In local authority home/ Voluntary Home | Z5: In other residential care(2) | AA5: Total | AC5: At home with parents | AD5: With friends / relatives | AE5: With foster carers provided by LA | AF5: With foster carers purchased by LA | AG5: In other community(1) | AH5: In local authority home/ Voluntary Home | AI5: In other residential care(2) | AJ5: Total
A6: Council
A7: Aberdeen City | B7: 97 | C7: 98 | D7: 81 | E7: 193 | F7: 22 | G7: 16 | H7: 35 | I7: 542 | K7: 120 | L7: 105 | M7: 77 | N7: 185 | O7: 18 | P7: 17 | Q7: 44 | R7: 566 | T7: 95 | U7: 106 | V7: 78 | W7: 164 | X7: 16 | Y7: 18 | Z7: 39 | AA7: 516 | AC7: 86 | AD7: 99 | AE7: 73 | AF7: 146 | AG7: 21 | AH7: 17 | AI7: 38 | AJ7: 480
A8: Aberdeenshire | B8: 68 | C8: 75 | D8: 139 | E8: 36 | F8: 14 | G8: 31 | H8: 40 | I8: 403 | K8: 71 | L8: 81 | M8: 140 | N8: 34 | O8: 7 | P8: 35 | Q8: 36 | R8: 404 | T8: 61 | U8: 79 | V8: 124 | W8: 42 | X8: 12 | Y8: 35 | Z8: 33 | AA8: 386 | AC8: 68 | AD8: 65 | AE8: 114 | AF8: 43 | AG8: 15 | AH8: 43 | AI8: 30 | AJ8: 378
A9: Angus | B9: 61 | C9: 65 | D9: 80 | E9: 7 | F9: 6 | G9: 8 | H9: 17 | I9: 244 | K9: 78 | L9: 57 | M9: 84 | N9: 11 | O9: 8 | P9: 6 | Q9: 21 | R9: 265 | T9: 58 | U9: 66 | V9: 84 | W9: 17 | X9: 4 | Y9: 4 | Z9: 19 | AA9: 252 | AC9: 33 | AD9: 49 | AE9: 66 | AF9: 23 | AG9: 3 | AH9: 9 | AI9: 28 | AJ9: 211
A10: Argyll & Bute | B10: 46 | C10: 42 | D10: 32 | E10: 3 | F10: 2 | G10: 15 | H10: 10 | I10: 150 | K10: 48 | L10: 51 | M10: 33 | N10: 5 | O10: 1 | P10: 14 | Q10: 10 | R10: 162 | T10: 38 | U10: 55 | V10: 29 | W10: 3 | X10: 0 | Y10: 15 | Z10: 11 | AA10: 151 | AC10: 41 | AD10: 47 | AE10: 27 | AF10: 2 | AG10: 1 | AH10: 16 | AI10: 10 | AJ10: 144
A11: City of Edinburgh | B11: 337 | C11: 225 | D11: 349 | E11: 174 | F11: 43 | G11: 59 | H11: 47 | I11: 1234 | K11: 288 | L11: 211 | M11: 358 | N11: 161 | O11: 44 | P11: 68 | Q11: 50 | R11: 1180 | T11: 225 | U11: 198 | V11: 314 | W11: 144 | X11: 62 | Y11: 57 | Z11: 45 | AA11: 1045 | AC11: 205 | AD11: 238 | AE11: 281 | AF11: 144 | AG11: 38 | AH11: 81 | AI11: 28 | AJ11: 1015
A12: Clackmannanshire | B12: 43 | C12: 59 | D12: 24 | E12: 41 | F12: 5 | G12: 3 | H12: 10 | I12: 185 | K12: 46 | L12: 97 | M12: 29 | N12: 56 | O12: 3 | P12: 4 | Q12: 13 | R12: 248 | T12: 50 | U12: 116 | V12: 23 | W12: 55 | X12: 0 | Y12: 5 | Z12: 12 | AA12: 261 | AC12: 49 | AD12: 113 | AE12: 22 | AF12: 62 | AG12: 4 | AH12: 4 | AI12: 9 | AJ12: 263
A13: Dumfries and Galloway | B13: 139 | C13: 120 | D13: 105 | E13: 5 | F13: 3 | G13: 4 | H13: 19 | I13: 395 | K13: 125 | L13: 108 | M13: 100 | N13: 4 | O13: 4 | P13: 6 | Q13: 18 | R13: 365 | T13: 93 | U13: 80 | V13: 96 | W13: 12 | X13: 6 | Y13: 5 | Z13: 19 | AA13: 311 | AC13: 101 | AD13: 70 | AE13: 93 | AF13: 12 | AG13: 5 | AH13: 5 | AI13: 17 | AJ13: 303
A14: Dundee City | B14: 87 | C14: 97 | D14: 139 | E14: 73 | F14: 13 | G14: 32 | H14: 22 | I14: 463 | K14: 83 | L14: 136 | M14: 140 | N14: 67 | O14: 14 | P14: 25 | Q14: 28 | R14: 493 | T14: 64 | U14: 113 | V14: 138 | W14: 67 | X14: 5 | Y14: 30 | Z14: 20 | AA14: 437 | AC14: 53 | AD14: 104 | AE14: 108 | AF14: 97 | AG14: 16 | AH14: 32 | AI14: 25 | AJ14: 435
A15: East Ayrshire | B15: 114 | C15: 90 | D15: 104 | E15: 25 | F15: 10 | G15: 17 | H15: 15 | I15: 375 | K15: 87 | L15: 110 | M15: 107 | N15: 30 | O15: 11 | P15: 18 | Q15: 19 | R15: 382 | T15: 102 | U15: 67 | V15: 161 | W15: 31 | X15: 2 | Y15: 19 | Z15: 20 | AA15: 402 | AC15: 103 | AD15: 108 | AE15: 107 | AF15: 29 | AG15: 1 | AH15: 20 | AI15: 19 | AJ15: 387
A16: East Dunbartonshire | B16: 39 | C16: 44 | D16: 21 | E16: 23 | F16: 0 | G16: 17 | H16: 5 | I16: 149 | K16: 48 | L16: 44 | M16: 16 | N16: 24 | O16: 1 | P16: 17 | Q16: 5 | R16: 155 | T16: 49 | U16: 50 | V16: 17 | W16: 23 | X16: 1 | Y16: 18 | Z16: 7 | AA16: 165 | AC16: 38 | AD16: 45 | AE16: 17 | AF16: 26 | AG16: 4 | AH16: 16 | AI16: 11 | AJ16: 157
A17: East Lothian | B17: 62 | C17: 50 | D17: 77 | E17: 11 | F17: 3 | G17: 12 | H17: 31 | I17: 246 | K17: 70 | L17: 52 | M17: 79 | N17: 19 | O17: 0 | P17: 10 | Q17: 30 | R17: 260 | T17: 58 | U17: 57 | V17: 58 | W17: 15 | X17: 0 | Y17: 10 | Z17: 25 | AA17: 223 | AC17: 56 | AD17: 42 | AE17: 56 | AF17: 12 | AG17: 3 | AH17: 11 | AI17: 27 | AJ17: 207
A18: East Renfrewshire | B18: 50 | C18: 24 | D18: 17 | E18: 6 | F18: 3 | G18: 0 | H18: 2 | I18: 102 | K18: 62 | L18: 26 | M18: 14 | N18: 8 | O18: 1 | P18: 0 | Q18: 6 | R18: 117 | T18: 35 | U18: 21 | V18: 19 | W18: 6 | X18: 1 | Y18: 0 | Z18: 8 | AA18: 90 | AC18: 45 | AD18: 20 | AE18: 14 | AF18: 8 | AG18: 2 | AH18: 0 | AI18: 7 | AJ18: 96
A19: Falkirk | B19: 113 | C19: 49 | D19: 76 | E19: 38 | F19: 7 | G19: 9 | H19: 52 | I19: 344 | K19: 114 | L19: 62 | M19: 83 | N19: 39 | O19: 4 | P19: 8 | Q19: 59 | R19: 369 | T19: 104 | U19: 81 | V19: 79 | W19: 44 | X19: 5 | Y19: 10 | Z19: 55 | AA19: 378 | AC19: 122 | AD19: 83 | AE19: 68 | AF19: 55 | AG19: 9 | AH19: 5 | AI19: 48 | AJ19: 390
A20: Fife | B20: 165 | C20: 182 | D20: 207 | E20: 247 | F20: 0 | G20: 64 | H20: 70 | I20: 935 | K20: 166 | L20: 227 | M20: 216 | N20: 216 | O20: 2 | P20: 75 | Q20: 17 | R20: 919 | T20: 138 | U20: 222 | V20: 228 | W20: 169 | X20: 2 | Y20: 44 | Z20: 7 | AA20: 810 | AC20: 163 | AD20: 193 | AE20: 214 | AF20: 141 | AG20: 0 | AH20: 32 | AI20: 5 | AJ20: 748
A21: Glasgow City | B21: 399 | C21: 1163 | D21: 550 | E21: 214 | F21: 2 | G21: 136 | H21: 59 | I21: 2523 | K21: 471 | L21: 1154 | M21: 506 | N21: 190 | O21: 4 | P21: 127 | Q21: 92 | R21: 2544 | T21: 381 | U21: 1154 | V21: 474 | W21: 152 | X21: 9 | Y21: 119 | Z21: 39 | AA21: 2328 | AC21: 322 | AD21: 1089 | AE21: 428 | AF21: 146 | AG21: 11 | AH21: 124 | AI21: 26 | AJ21: 2146
A22: Highland | B22: 126 | C22: 96 | D22: 117 | E22: 43 | F22: 20 | G22: 32 | H22: 49 | I22: 483 | K22: 141 | L22: 98 | M22: 105 | N22: 47 | O22: 20 | P22: 29 | Q22: 55 | R22: 495 | T22: 111 | U22: 109 | V22: 108 | W22: 49 | X22: 22 | Y22: 28 | Z22: 40 | AA22: 467 | AC22: 82 | AD22: 73 | AE22: 105 | AF22: 51 | AG22: 26 | AH22: 29 | AI22: 36 | AJ22: 402
A23: Inverclyde | B23: 98 | C23: 45 | D23: 25 | E23: 5 | F23: 4 | G23: 19 | H23: 9 | I23: 205 | K23: 103 | L23: 51 | M23: 32 | N23: 6 | O23: 1 | P23: 20 | Q23: 10 | R23: 223 | T23: 79 | U23: 53 | V23: 33 | W23: 8 | X23: 0 | Y23: 10 | Z23: 23 | AA23: 206 | AC23: 71 | AD23: 51 | AE23: 28 | AF23: 8 | AG23: 9 | AH23: 2 | AI23: 24 | AJ23: 193
A24: Midlothian | B24: 62 | C24: 67 | D24: 48 | E24: 15 | F24: 5 | G24: 12 | H24: 9 | I24: 218 | K24: 56 | L24: 70 | M24: 52 | N24: 11 | O24: 6 | P24: 11 | Q24: 8 | R24: 214 | T24: 35 | U24: 59 | V24: 48 | W24: 11 | X24: 6 | Y24: 9 | Z24: 4 | AA24: 172 | AC24: 27 | AD24: 61 | AE24: 50 | AF24: 12 | AG24: 9 | AH24: 7 | AI24: 6 | AJ24: 172
A25: Moray | B25: 44 | C25: 47 | D25: 54 | E25: 13 | F25: 8 | G25: 21 | H25: 23 | I25: 210 | K25: 40 | L25: 48 | M25: 48 | N25: 12 | O25: 5 | P25: 17 | Q25: 18 | R25: 188 | T25: 33 | U25: 56 | V25: 42 | W25: 10 | X25: 2 | Y25: 17 | Z25: 14 | AA25: 174 | AC25: 36 | AD25: 42 | AE25: 44 | AF25: 8 | AG25: 3 | AH25: 16 | AI25: 16 | AJ25: 165
A26: Na h-Eileanan Siar | B26: 18 | C26: 5 | D26: 7 | E26: 0 | F26: 2 | G26: 4 | H26: 3 | I26: 39 | K26: 24 | L26: 14 | M26: 5 | N26: 0 | O26: 1 | P26: 3 | Q26: 3 | R26: 50 | T26: 17 | U26: 11 | V26: 3 | W26: 0 | X26: 1 | Y26: 3 | Z26: 4 | AA26: 39 | AC26: 27 | AD26: 10 | AE26: 3 | AF26: 0 | AG26: 0 | AH26: 2 | AI26: 2 | AJ26: 44
A27: North Ayrshire | B27: 178 | C27: 135 | D27: 152 | E27: 12 | F27: 8 | G27: 30 | H27: 35 | I27: 550 | K27: 181 | L27: 136 | M27: 182 | N27: 12 | O27: 8 | P27: 31 | Q27: 25 | R27: 575 | T27: 144 | U27: 115 | V27: 159 | W27: 10 | X27: 11 | Y27: 30 | Z27: 20 | AA27: 489 | AC27: 141 | AD27: 91 | AE27: 142 | AF27: 11 | AG27: 10 | AH27: 22 | AI27: 30 | AJ27: 447
A28: North Lanarkshire | B28: 325 | C28: 304 | D28: 128 | E28: 49 | F28: 5 | G28: 30 | H28: 9 | I28: 850 | K28: 286 | L28: 326 | M28: 124 | N28: 59 | O28: 2 | P28: 24 | Q28: 11 | R28: 832 | T28: 214 | U28: 321 | V28: 118 | W28: 55 | X28: 0 | Y28: 18 | Z28: 8 | AA28: 734 | AC28: 177 | AD28: 315 | AE28: 106 | AF28: 55 | AG28: 0 | AH28: 31 | AI28: 8 | AJ28: 692
A29: Orkney Islands | B29: 12 | C29: 7 | D29: 12 | E29: 0 | F29: 1 | G29: 3 | H29: 2 | I29: 37 | K29: 8 | L29: 6 | M29: 10 | N29: 0 | O29: 0 | P29: 3 | Q29: 4 | R29: 31 | T29: 8 | U29: 10 | V29: 10 | W29: 1 | X29: 0 | Y29: 4 | Z29: 5 | AA29: 38 | AC29: 5 | AD29: 8 | AE29: 10 | AF29: 1 | AG29: 0 | AH29: 4 | AI29: 6 | AJ29: 34
A30: Perth and Kinross | B30: 69 | C30: 76 | D30: 79 | E30: 24 | F30: 23 | G30: 4 | H30: 7 | I30: 282 | K30: 60 | L30: 90 | M30: 85 | N30: 27 | O30: 11 | P30: 0 | Q30: 12 | R30: 285 | T30: 62 | U30: 91 | V30: 90 | W30: 22 | X30: 11 | Y30: 4 | Z30: 8 | AA30: 288 | AC30: 50 | AD30: 102 | AE30: 77 | AF30: 21 | AG30: 16 | AH30: 9 | AI30: 9 | AJ30: 284
A31: Renfrewshire | B31: 190 | C31: 190 | D31: 127 | E31: 61 | F31: 13 | G31: 36 | H31: 12 | I31: 629 | K31: 197 | L31: 212 | M31: 125 | N31: 60 | O31: 12 | P31: 23 | Q31: 13 | R31: 642 | T31: 158 | U31: 220 | V31: 110 | W31: 48 | X31: 7 | Y31: 16 | Z31: 28 | AA31: 587 | AC31: 146 | AD31: 230 | AE31: 111 | AF31: 45 | AG31: 9 | AH31: 17 | AI31: 34 | AJ31: 592
A32: Scottish Borders | B32: 55 | C32: 50 | D32: 57 | E32: 7 | F32: 4 | G32: 2 | H32: 20 | I32: 195 | K32: 47 | L32: 53 | M32: 53 | N32: 3 | O32: 2 | P32: 3 | Q32: 26 | R32: 187 | T32: 35 | U32: 60 | V32: 49 | W32: 2 | X32: 2 | Y32: 3 | Z32: 23 | AA32: 174 | AC32: 38 | AD32: 46 | AE32: 54 | AF32: 6 | AG32: 6 | AH32: 6 | AI32: 27 | AJ32: 183
A33: Shetland Islands | B33: 4 | C33: 4 | D33: 19 | E33: 0 | F33: 0 | G33: 4 | H33: 3 | I33: 34 | K33: 5 | L33: 2 | M33: 13 | N33: 0 | O33: 4 | P33: 4 | Q33: 0 | R33: 28 | T33: 4 | U33: 4 | V33: 10 | W33: 0 | X33: 2 | Y33: 6 | Z33: 0 | AA33: 26 | AC33: 5 | AD33: 4 | AE33: 12 | AF33: 0 | AG33: 0 | AH33: 5 | AI33: 1 | AJ33: 27
A34: South Ayrshire | B34: 71 | C34: 90 | D34: 112 | E34: 27 | F34: 10 | G34: 12 | H34: 23 | I34: 345 | K34: 60 | L34: 74 | M34: 101 | N34: 24 | O34: 12 | P34: 13 | Q34: 16 | R34: 300 | T34: 42 | U34: 48 | V34: 85 | W34: 19 | X34: 10 | Y34: 10 | Z34: 15 | AA34: 229 | AC34: 33 | AD34: 39 | AE34: 74 | AF34: 13 | AG34: 2 | AH34: 11 | AI34: 10 | AJ34: 182
A35: South Lanarkshire | B35: 179 | C35: 259 | D35: 164 | E35: 35 | F35: 15 | G35: 38 | H35: 35 | I35: 725 | K35: 193 | L35: 294 | M35: 159 | N35: 43 | O35: 22 | P35: 41 | Q35: 34 | R35: 786 | T35: 136 | U35: 329 | V35: 163 | W35: 39 | X35: 10 | Y35: 33 | Z35: 37 | AA35: 747 | AC35: 126 | AD35: 366 | AE35: 162 | AF35: 34 | AG35: 12 | AH35: 31 | AI35: 43 | AJ35: 774
A36: Stirling | B36: 97 | C36: 69 | D36: 55 | E36: 1 | F36: 2 | G36: 1 | H36: 13 | I36: 238 | K36: 76 | L36: 99 | M36: 48 | N36: 1 | O36: 4 | P36: 2 | Q36: 16 | R36: 246 | T36: 64 | U36: 113 | V36: 33 | W36: 1 | X36: 2 | Y36: 4 | Z36: 13 | AA36: 230 | AC36: 46 | AD36: 108 | AE36: 31 | AF36: 1 | AG36: 11 | AH36: 5 | AI36: 8 | AJ36: 210
A37: West Dunbartonshire | B37: 111 | C37: 219 | D37: 62 | E37: 55 | F37: 10 | G37: 21 | H37: 27 | I37: 505 | K37: 113 | L37: 212 | M37: 56 | N37: 58 | O37: 22 | P37: 23 | Q37: 22 | R37: 506 | T37: 83 | U37: 215 | V37: 46 | W37: 58 | X37: 9 | Y37: 21 | Z37: 34 | AA37: 466 | AC37: 82 | AD37: 210 | AE37: 47 | AF37: 56 | AG37: 19 | AH37: 19 | AI37: 29 | AJ37: 462
A38: West Lothian | B38: 110 | C38: 129 | D38: 116 | E38: 20 | F38: 9 | G38: 16 | H38: 27 | I38: 427 | K38: 96 | L38: 150 | M38: 135 | N38: 17 | O38: 5 | P38: 9 | Q38: 29 | R38: 441 | T38: 77 | U38: 131 | V38: 122 | W38: 18 | X38: 4 | Y38: 5 | Z38: 22 | AA38: 379 | AC38: 60 | AD38: 128 | AE38: 127 | AF38: 16 | AG38: 6 | AH38: 11 | AI38: 25 | AJ38: 373
A39: Scotland | B39: 3569 | C39: 4175 | D39: 3335 | E39: 1463 | F39: 272 | G39: 708 | H39: 740 | I39: 14262 | K39: 3563 | L39: 4456 | M39: 3315 | N39: 1429 | O39: 259 | P39: 686 | Q39: 750 | R39: 14458 | T39: 2853 | U39: 4410 | V39: 3151 | W39: 1295 | X39: 224 | Y39: 610 | Z39: 657 | AA39: 13200 | AC39: 2637 | AD39: 4249 | AE39: 2871 | AF39: 1284 | AG39: 271 | AH39: 642 | AI39: 642 | AJ39: 12596
A40: Notes:
A41: Source: Scottish Government CLAS Returns
B48: 2 | C48: 3 | D48: 4 | E48: 5 | F48: 6 | G48: 7 | H48: 8 | I48: 9 | J48: 10 | K48: 11 | L48: 12 | M48: 13 | N48: 14 | O48: 15 | P48: 16 | Q48: 17 | R48: 18 | S48: 19 | T48: 20 | U48: 21 | V48: 22 | W48: 23 | X48: 24 | Y48: 25 | Z48: 26 | AA48: 27 | AB48: 28 | AC48: 29 | AD48: 30 | AE48: 31 | AF48: 32 | AG48: 33 | AH48: 34 | AI48: 35 | AJ48: 36

Sheet DATA CLA DIS (hidden)
A1: Looked after children by disability status on 31 July, 2019 to 2022
B3: 2019 | E3: 2020 | H3: 2021 | K3: 2022
A4: Council | B4: Number of children looked after | C4: Number of children looked after with a disability | D4: Percentage of children looked after with a disability | E4: Number of children looked after | F4: Number of children looked after with a disability | G4: Percentage of children looked after with a disability | H4: Number of children looked after | I4: Number of children looked after with a disability | J4: Percentage of children looked after with a disability | K4: Number of children looked after | L4: Number of children looked after with a disability | M4: Percentage of children looked after with a disability
A5: Aberdeen City | B5: 542 | C5: 142 | D5: 0.2619926199 | E5: 549 | F5: 130 | G5: 0.2296819788 | H5: 516 | I5: 129 | J5: =I5/H5 -> 0.25 | K5: 480 | L5: 122 | M5: =L5/K5 -> 0.2541666667
A6: Aberdeenshire | B6: 403 | C6: 80 | D6: 0.1985111663 | E6: 409 | F6: 77 | G6: 0.1905940594 | H6: 386 | I6: 71 | J6: =I6/H6 -> 0.1839378238 | K6: 378 | L6: 65 | M6: =L6/K6 -> 0.171957672
A7: Angus | B7: 244 | C7: 46 | D7: 0.1885245902 | E7: 251 | F7: 20 | G7: 0.07547169811 | H7: 252 | I7: 31 | J7: 0.123015873 | K7: 211 | L7: 18 | M7: 0.08530805687
A8: Argyll & Bute | B8: 150 | C8: 34 | D8: 0.2266666667 | E8: 149 | F8: 39 | G8: 0.2407407407 | H8: 151 | I8: 45 | J8: 0.298013245 | K8: 144 | L8: 37 | M8: 0.2569444444
A9: City of Edinburgh | B9: 1234 | C9: 57 | D9: 0.04619124797 | E9: 1309 | F9: 55 | G9: 0.04661016949 | H9: 1045 | I9: 52 | J9: 0.04976076555 | K9: 1015 | L9: 49 | M9: 0.04827586207
A10: Clackmannanshire | B10: 185 | C10: 13 | D10: 0.07027027027 | E10: 211 | F10: 14 | G10: 0.0564516129 | H10: 261 | I10: 14 | J10: 0.05363984674 | K10: 263 | L10: 12 | M10: 0.04562737643
A11: Dumfries & Galloway | B11: 395 | C11: 11 | D11: 0.02784810127 | E11: 439 | F11: 58 | G11: 0.1589041096 | H11: 311 | I11: 14 | J11: 0.04501607717 | K11: 303 | L11: 21 | M11: 0.06930693069
A12: Dundee City | B12: 463 | C12: 79 | D12: 0.1706263499 | E12: 519 | F12: 86 | G12: 0.1744421907 | H12: 437 | I12: 77 | J12: 0.176201373 | K12: 435 | L12: 68 | M12: 0.1563218391
A13: East Ayrshire | B13: 375 | C13: 9 | D13: 0.024 | E13: 401 | F13: 18 | G13: 0.04712041885 | H13: 402 | I13: 17 | J13: 0.04228855721 | K13: 387 | L13: 16 | M13: 0.04134366925
A14: East Dunbartonshire | B14: 149 | C14: 22 | D14: 0.1476510067 | E14: 140 | F14: 28 | G14: 0.1806451613 | H14: 165 | I14: 29 | J14: 0.1757575758 | K14: 157 | L14: 27 | M14: 0.1719745223
A15: East Lothian | B15: 246 | C15: 22 | D15: 0.08943089431 | E15: 245 | F15: 17 | G15: 0.06538461538 | H15: 223 | I15: 13 | J15: 0.05829596413 | K15: 207 | L15: 29 | M15: 0.1400966184
A16: East Renfrewshire | B16: 102 | C16: 5 | D16: 0.04901960784 | E16: 110 | F16: 19 | G16: 0.1623931624 | H16: 90 | I16: 26 | J16: 0.2888888889 | K16: 96 | L16: 28 | M16: 0.2916666667
A17: Falkirk | B17: 344 | C17: 7 | D17: 0.02034883721 | E17: 368 | F17: 8 | G17: 0.0216802168 | H17: 378 | I17: 7 | J17: 0.01851851852 | K17: 390 | L17: * | M17: *
A18: Fife | B18: 935 | C18: 0 | D18: 0 | E18: 941 | F18: 0 | G18: 0 | H18: 810 | I18: 0 | J18: 0 | K18: 748 | L18: 0 | M18: 0
A19: Glasgow City | B19: 2523 | C19: 326 | D19: 0.1292112564 | E19: 2645 | F19: 293 | G19: 0.115172956 | H19: 2328 | I19: 236 | J19: 0.1013745704 | K19: 2146 | L19: 197 | M19: 0.09179869525
A20: Highland | B20: 483 | C20: 37 | D20: 0.07660455487 | E20: 521 | F20: 47 | G20: 0.09494949495 | H20: 467 | I20: 71 | J20: 0.1520342612 | K20: 402 | L20: 74 | M20: 0.184079602
A21: Inverclyde | B21: 205 | C21: 31 | D21: 0.1512195122 | E21: 199 | F21: 9 | G21: 0.04035874439 | H21: 206 | I21: 12 | J21: 0.05825242718 | K21: 193 | L21: 10 | M21: 0.0518134715
A22: Midlothian | B22: 218 | C22: 150 | D22: 0.6880733945 | E22: 233 | F22: 20 | G22: 0.09345794393 | H22: 172 | I22: 11 | J22: 0.06395348837 | K22: 172 | L22: 10 | M22: 0.05813953488
A23: Moray | B23: 210 | C23: 29 | D23: 0.1380952381 | E23: 222 | F23: 33 | G23: 0.1755319149 | H23: 174 | I23: 28 | J23: 0.1609195402 | K23: 165 | L23: 29 | M23: 0.1757575758
A24: Na h-Eileanan Siar | B24: 39 | C24: * | D24: * | E24: 41 | F24: * | G24: * | H24: 39 | I24: * | J24: * | K24: 44 | L24: 7 | M24: 0.1590909091
A25: North Ayrshire | B25: 550 | C25: 55 | D25: 0.1 | E25: 563 | F25: 55 | G25: 0.09565217391 | H25: 489 | I25: 75 | J25: 0.1533742331 | K25: 447 | L25: 72 | M25: 0.1610738255
A26: North Lanarkshire | B26: 850 | C26: 39 | D26: 0.04588235294 | E26: 754 | F26: 35 | G26: 0.04206730769 | H26: 734 | I26: 30 | J26: 0.0408719346 | K26: 692 | L26: 31 | M26: 0.04479768786
A27: Orkney Islands | B27: 37 | C27: * | D27: * | E27: 31 | F27: * | G27: * | H27: 38 | I27: * | J27: * | K27: 34 | L27: 0 | M27: 0
A28: Perth & Kinross | B28: 282 | C28: 19 | D28: 0.06737588652 | E28: 280 | F28: 19 | G28: 0.06666666667 | H28: 288 | I28: 16 | J28: 0.05555555556 | K28: 284 | L28: 15 | M28: 0.05281690141
A29: Renfrewshire | B29: 629 | C29: 31 | D29: 0.0492845787 | E29: 656 | F29: 27 | G29: 0.04205607477 | H29: 587 | I29: 35 | J29: 0.05962521295 | K29: 592 | L29: 45 | M29: 0.07601351351
A30: Scottish Borders | B30: 195 | C30: 15 | D30: 0.07692307692 | E30: 205 | F30: 13 | G30: 0.06951871658 | H30: 174 | I30: 12 | J30: 0.06896551724 | K30: 183 | L30: 8 | M30: 0.04371584699
A31: Shetland Islands | B31: 34 | C31: * | D31: * | E31: 29 | F31: * | G31: * | H31: 26 | I31: * | J31: * | K31: 27 | L31: * | M31: *
A32: South Ayrshire | B32: 345 | C32: 58 | D32: 0.168115942 | E32: 355 | F32: 51 | G32: 0.17 | H32: 229 | I32: 36 | J32: 0.1572052402 | K32: 182 | L32: 28 | M32: 0.1538461538
A33: South Lanarkshire | B33: 725 | C33: 84 | D33: 0.115862069 | E33: 655 | F33: 99 | G33: 0.1259541985 | H33: 747 | I33: 91 | J33: 0.1218206158 | K33: 774 | L33: 102 | M33: 0.1317829457
A34: Stirling | B34: 238 | C34: 25 | D34: 0.1050420168 | E34: 236 | F34: 23 | G34: 0.09349593496 | H34: 230 | I34: 21 | J34: 0.09130434783 | K34: 210 | L34: 21 | M34: 0.1
A35: West Dunbartonshire | B35: 505 | C35: 56 | D35: 0.1108910891 | E35: 445 | F35: 51 | G35: 0.1007905138 | H35: 466 | I35: 53 | J35: 0.1137339056 | K35: 462 | L35: 47 | M35: 0.1017316017
A36: West Lothian | B36: 427 | C36: 46 | D36: 0.1077283372 | E36: 443 | F36: 31 | G36: 0.07045454545 | H36: 379 | I36: 21 | J36: 0.05540897098 | K36: 373 | L36: 17 | M36: 0.04557640751
A37: SCOTLAND | B37: 14262 | C37: 1535 | D37: 0.1076286636 | E37: 14554 | F37: 1381 | G37: 0.09552465933 | H37: 13200 | I37: 1280 | J37: 0.09696969697 | K37: 12596 | L37: 1216 | M37: 0.09653858368
A38: Notes:
A39: Cells containing * represent numbers that are supressed to maintain confidentiality.
A40: Source: Scottish Government CLAS Returns

Sheet DATA CLA 3P (hidden)
A1: Looked after children with 3 or more placements during the year for those looked on 31 July, 2019 to 2022
C3: 2019 | G3: 2020 | K3: 2021 | O3: 2022
C4: Number of children looked after | D4: Number with 3 or more placements | E4: Percentage with 3 or more placements | G4: Number of children looked after | H4: Number with 3 or more placements | I4: Percentage with 3 or more placements | K4: Number of children looked after | L4: Number with 3 or more placements | M4: Percentage with 3 or more placements | O4: Number of children looked after | P4: Number with 3 or more placements | Q4: Percentage with 3 or more placements
A5: Council
A6: Aberdeen City | C6: 542 | D6: 29 | E6: 0.05350553506 | G6: 566 | H6: 29 | I6: 0.05123674912 | K6: 516 | L6: 34 | M6: 0.06589147287 | O6: 480 | P6: 21 | Q6: 0.04375
A7: Aberdeenshire | C7: 403 | D7: 29 | E7: 0.07196029777 | G7: 404 | H7: 15 | I7: 0.03712871287 | K7: 386 | L7: 19 | M7: 0.04922279793 | O7: 378 | P7: 13 | Q7: 0.03439153439
A8: Angus | C8: 244 | D8: 18 | E8: 0.0737704918 | G8: 265 | H8: 31 | I8: 0.1169811321 | K8: 252 | L8: 35 | M8: 0.1388888889 | O8: 211 | P8: 22 | Q8: 0.1042654028
A9: Argyll & Bute | C9: 150 | D9: 9 | E9: 0.06 | G9: 162 | H9: 2 | I9: 0.01234567901 | K9: 151 | L9: 8 | M9: 0.05298013245 | O9: 144 | P9: 6 | Q9: 0.04166666667
A10: City of Edinburgh | C10: 1234 | D10: 91 | E10: 0.0737439222 | G10: 1180 | H10: 67 | I10: 0.05677966102 | K10: 1045 | L10: 47 | M10: 0.04497607656 | O10: 1015 | P10: 56 | Q10: 0.05517241379
A11: Clackmannanshire | C11: 185 | D11: 11 | E11: 0.05945945946 | G11: 248 | H11: 16 | I11: 0.06451612903 | K11: 261 | L11: 13 | M11: 0.04980842912 | O11: 263 | P11: 11 | Q11: 0.04182509506
A12: Dumfries and Galloway | C12: 395 | D12: 19 | E12: 0.04810126582 | G12: 365 | H12: 18 | I12: 0.04931506849 | K12: 311 | L12: 17 | M12: 0.05466237942 | O12: 303 | P12: 19 | Q12: 0.06270627063
A13: Dundee City | C13: 463 | D13: 39 | E13: 0.08423326134 | G13: 493 | H13: 23 | I13: 0.04665314402 | K13: 437 | L13: 17 | M13: 0.03890160183 | O13: 435 | P13: 28 | Q13: 0.06436781609
A14: East Ayrshire | C14: 375 | D14: 15 | E14: 0.04 | G14: 382 | H14: 3 | I14: 0.007853403141 | K14: 402 | L14: 9 | M14: 0.0223880597 | O14: 387 | P14: 3 | Q14: 0.007751937984
A15: East Dunbartonshire | C15: 149 | D15: 4 | E15: 0.02684563758 | G15: 155 | H15: 6 | I15: 0.03870967742 | K15: 165 | L15: 2 | M15: 0.01212121212 | O15: 157 | P15: 7 | Q15: 0.04458598726
A16: East Lothian | C16: 246 | D16: 15 | E16: 0.06097560976 | G16: 260 | H16: 7 | I16: 0.02692307692 | K16: 223 | L16: 3 | M16: 0.0134529148 | O16: 207 | P16: 2 | Q16: 0.009661835749
A17: East Renfrewshire | C17: 102 | D17: 7 | E17: 0.06862745098 | G17: 117 | H17: 3 | I17: 0.02564102564 | K17: 90 | L17: 4 | M17: 0.04444444444 | O17: 96 | P17: 4 | Q17: 0.04166666667
A18: Falkirk | C18: 344 | D18: 34 | E18: 0.0988372093 | G18: 369 | H18: 30 | I18: 0.08130081301 | K18: 378 | L18: 16 | M18: 0.04232804233 | O18: 390 | P18: 12 | Q18: 0.03076923077
A19: Fife | C19: 935 | D19: 50 | E19: 0.05347593583 | G19: 919 | H19: 51 | I19: 0.05549510337 | K19: 810 | L19: 40 | M19: 0.04938271605 | O19: 748 | P19: 35 | Q19: 0.04679144385
A20: Glasgow City | C20: 2523 | D20: 59 | E20: 0.02338485929 | G20: 2544 | H20: 60 | I20: 0.02358490566 | K20: 2328 | L20: 57 | M20: 0.02448453608 | O20: 2146 | P20: 39 | Q20: 0.01817334576
A21: Highland | C21: 483 | D21: 46 | E21: 0.09523809524 | G21: 495 | H21: 31 | I21: 0.06262626263 | K21: 467 | L21: 17 | M21: 0.03640256959 | O21: 402 | P21: 41 | Q21: 0.1019900498
A22: Inverclyde | C22: 205 | D22: 6 | E22: 0.02926829268 | G22: 223 | H22: 5 | I22: 0.02242152466 | K22: 206 | L22: 5 | M22: 0.02427184466 | O22: 193 | P22: 1 | Q22: 0.00518134715
A23: Midlothian | C23: 218 | D23: 8 | E23: 0.03669724771 | G23: 214 | H23: 11 | I23: 0.05140186916 | K23: 172 | L23: 9 | M23: 0.0523255814 | O23: 172 | P23: 11 | Q23: 0.06395348837
A24: Moray | C24: 210 | D24: 22 | E24: 0.1047619048 | G24: 188 | H24: 12 | I24: 0.06382978723 | K24: 174 | L24: 6 | M24: 0.03448275862 | O24: 165 | P24: 7 | Q24: 0.04242424242
A25: Na h-Eileanan Siar | C25: 39 | D25: 11 | E25: 0.2820512821 | G25: 50 | H25: 1 | I25: 0.02 | K25: 39 | L25: 2 | M25: 0.05128205128 | O25: 44 | P25: 3 | Q25: 0.06818181818
A26: North Ayrshire | C26: 550 | D26: 37 | E26: 0.06727272727 | G26: 575 | H26: 28 | I26: 0.04869565217 | K26: 489 | L26: 26 | M26: 0.05316973415 | O26: 447 | P26: 32 | Q26: 0.07158836689
A27: North Lanarkshire | C27: 850 | D27: 12 | E27: 0.01411764706 | G27: 832 | H27: 3 | I27: 0.003605769231 | K27: 734 | L27: 5 | M27: 0.006811989101 | O27: 692 | P27: 5 | Q27: 0.007225433526
A28: Orkney Islands | C28: 37 | D28: 6 | E28: 0.1621621622 | G28: 31 | H28: 5 | I28: 0.1612903226 | K28: 38 | L28: 1 | M28: 0.02631578947 | O28: 34 | P28: 5 | Q28: 0.1470588235
A29: Perth and Kinross | C29: 282 | D29: 31 | E29: 0.109929078 | G29: 285 | H29: 12 | I29: 0.04210526316 | K29: 288 | L29: 24 | M29: 0.08333333333 | O29: 284 | P29: 15 | Q29: 0.05281690141
A30: Renfrewshire | C30: 629 | D30: 35 | E30: 0.05564387917 | G30: 642 | H30: 14 | I30: 0.02180685358 | K30: 587 | L30: 25 | M30: 0.04258943782 | O30: 592 | P30: 18 | Q30: 0.03040540541
A31: Scottish Borders | C31: 195 | D31: 5 | E31: 0.02564102564 | G31: 187 | H31: 4 | I31: 0.02139037433 | K31: 174 | L31: 3 | M31: 0.01724137931 | O31: 183 | P31: 8 | Q31: 0.04371584699
A32: Shetland Islands | C32: 34 | D32: 2 | E32: 0.05882352941 | G32: 28 | H32: 1 | I32: 0.03571428571 | K32: 26 | L32: 0 | M32: 0 | O32: 27 | P32: 1 | Q32: 0.03703703704
A33: South Ayrshire | C33: 345 | D33: 16 | E33: 0.04637681159 | G33: 300 | H33: 16 | I33: 0.05333333333 | K33: 229 | L33: 14 | M33: 0.06113537118 | O33: 182 | P33: 4 | Q33: 0.02197802198
A34: South Lanarkshire | C34: 725 | D34: 16 | E34: 0.02206896552 | G34: 786 | H34: 18 | I34: 0.02290076336 | K34: 747 | L34: 13 | M34: 0.01740294511 | O34: 774 | P34: 19 | Q34: 0.02454780362
A35: Stirling | C35: 238 | D35: 11 | E35: 0.04621848739 | G35: 246 | H35: 11 | I35: 0.04471544715 | K35: 230 | L35: 7 | M35: 0.03043478261 | O35: 210 | P35: 8 | Q35: 0.0380952381
A36: West Dunbartonshire | C36: 505 | D36: 27 | E36: 0.05346534653 | G36: 506 | H36: 19 | I36: 0.03754940711 | K36: 466 | L36: 15 | M36: 0.0321888412 | O36: 462 | P36: 4 | Q36: 0.008658008658
A37: West Lothian | C37: 427 | D37: 22 | E37: 0.05152224824 | G37: 441 | H37: 20 | I37: 0.04535147392 | K37: 379 | L37: 9 | M37: 0.02374670185 | O37: 373 | P37: 19 | Q37: 0.0509383378
A38: SCOTLAND | C38: 14262 | D38: 742 | E38: 0.05202636376 | G38: 14458 | H38: 572 | I38: 0.03956287177 | K38: 13200 | L38: 502 | M38: 0.03803030303 | O38: 12596 | P38: 479 | Q38: 0.03802794538
A39: Notes:
A40: The figures refer to the number of placements a child has between the 1st August and 31st July of each year.
A41: Cells containing * represent numbers that are supressed to maintain confidentiality.
A42: Source: Scottish Government CLAS Returns

Sheet REF EA Name (hidden)
A1: EA Code | B1: EA Name
A3: 100 | B3: Aberdeen City
A4: 110 | B4: Aberdeenshire
A5: 120 | B5: Angus
A6: 130 | B6: Argyll & Bute
A7: 230 | B7: City of Edinburgh
A8: 150 | B8: Clackmannanshire
A9: 170 | B9: Dumfries and Galloway
A10: 180 | B10: Dundee City
A11: 190 | B11: East Ayrshire
A12: 200 | B12: East Dunbartonshire
A13: 210 | B13: East Lothian
A14: 220 | B14: East Renfrewshire
A15: 240 | B15: Falkirk
A16: 250 | B16: Fife
A17: 260 | B17: Glasgow City
A18: 270 | B18: Highland
A19: 280 | B19: Inverclyde
A20: 290 | B20: Midlothian
A21: 300 | B21: Moray
A22: 235 | B22: Na h-Eileanan Siar
A23: 310 | B23: North Ayrshire
A24: 320 | B24: North Lanarkshire
A25: 330 | B25: Orkney Islands
A26: 340 | B26: Perth and Kinross
A27: 350 | B27: Renfrewshire
A28: 355 | B28: Scottish Borders
A29: 360 | B29: Shetland Islands
A30: 370 | B30: South Ayrshire
A31: 380 | B31: South Lanarkshire
A32: 390 | B32: Stirling
A33: 395 | B33: West Dunbartonshire
A34: 400 | B34: West Lothian
B35: [no comparator]

Sheet REF CAS2 (hidden)
A2: 100 | B2: Aberdeen City | C2: City of Edinburgh | D2: **** | E2: Dundee City | F2: *** | G2: South Ayrshire | H2: *** | I2: Argyll and Bute | J2: *** | K2: Renfrewshire | L2: ***
A3: 110 | B3: Aberdeenshire | C3: Stirling | D3: **** | E3: Perth and Kinross | F3: **** | G3: Highland | H3: **** | I3: Scottish Borders | J3: **** | K3: South Lanarkshire | L3: ****
A4: 120 | B4: Angus | C4: Highland | D4: ***** | E4: Dumfries and Galloway | F4: ***** | G4: Moray | H4: ***** | I4: Scottish Borders | J4: **** | K4: South Ayrshire | L4: ****
A5: 130 | B5: Argyll & Bute | C5: South Ayrshire | D5: ***** | E5: Dumfries and Galloway | F5: **** | G5: Scottish Borders | H5: **** | I5: Highland | J5: **** | K5: Angus | L5: ****
A6: 230 | B6: City of Edinburgh | C6: Aberdeen City | D6: **** | E6: Dundee City | F6: ** | G6: South Ayrshire | H6: ** | I6: Argyll and Bute | J6: ** | K6: Renfrewshire | L6: **
A7: 150 | B7: Clackmannanshire | C7: North Lanarkshire | D7: ***** | E7: West Lothian | F7: **** | G7: Falkirk | H7: **** | I7: South Lanarkshire | J7: **** | K7: East Ayrshire | L7: ****
A8: 170 | B8: Dumfries & Galloway | C8: Angus | D8: ***** | E8: Highland | F8: **** | G8: Argyll and Bute | H8: **** | I8: Scottish Borders | J8: **** | K8: Moray | L8: ****
A9: 180 | B9: Dundee City | C9: Aberdeen City | D9: *** | E9: Renfrewshire | F9: *** | G9: Dumfries and Galloway | H9: *** | I9: Inverclyde | J9: *** | K9: South Ayrshire | L9: ***
A10: 190 | B10: East Ayrshire | C10: North Lanarkshire | D10: ***** | E10: Clackmannanshire | F10: **** | G10: Falkirk | H10: **** | I10: North Ayrshire | J10: **** | K10: West Lothian | L10: ****
A11: 200 | B11: East Dunbartonshire | C11: East Renfrewshire | D11: **** | E11: Stirling | F11: **** | G11: East Lothian | H11: **** | I11: Aberdeenshire | J11: *** | K11: Perth and Kinross | L11: ***
A12: 210 | B12: East Lothian | C12: Stirling | D12: **** | E12: Midlothian | F12: **** | G12: Fife | H12: **** | I12: Aberdeenshire | J12: **** | K12: South Lanarkshire | L12: ****
A13: 220 | B13: East Renfrewshire | C13: East Dunbartonshire | D13: **** | E13: East Lothian | F13: **** | G13: Stirling | H13: *** | I13: Aberdeenshire | J13: *** | K13: Midlothian | L13: ***
A14: 240 | B14: Falkirk | C14: South Lanarkshire | D14: **** | E14: Fife | F14: **** | G14: Clackmannanshire | H14: **** | I14: Moray | J14: **** | K14: Angus | L14: ****
A15: 250 | B15: Fife | C15: South Lanarkshire | D15: ***** | E15: Falkirk | F15: **** | G15: Clackmannanshire | H15: **** | I15: West Lothian | J15: **** | K15: Renfrewshire | L15: ****
A16: 260 | B16: Glasgow City | C16: Dundee City | D16: *** | E16: West Dunbartonshire | F16: *** | G16: Inverclyde | H16: *** | I16: Aberdeen City | J16: *** | K16: Renfrewshire | L16: ***
A17: 270 | B17: Highland | C17: Angus | D17: ***** | E17: Scottish Borders | F17: ***** | G17: Dumfries and Galloway | H17: **** | I17: Moray | J17: **** | K17: Argyll and Bute | L17: ****
A18: 280 | B18: Inverclyde | C18: West Dunbartonshire | D18: **** | E18: North Ayrshire | F18: **** | G18: North Lanarkshire | H18: **** | I18: East Ayrshire | J18: **** | K18: Renfrewshire | L18: ****
A19: 290 | B19: Midlothian | C19: West Lothian | D19: **** | E19: Fife | F19: **** | G19: Clackmannanshire | H19: **** | I19: South Lanarkshire | J19: **** | K19: East Lothian | L19: ****
A20: 300 | B20: Moray | C20: Angus | D20: ***** | E20: Highland | F20: **** | G20: Dumfries and Galloway | H20: **** | I20: Falkirk | J20: **** | K20: Scottish Borders | L20: ****
A21: 235 | B21: Na h-Eileanan Siar | C21: Orkney Islands | D21: **** | E21: Dumfries and Galloway | F21: *** | G21: Scottish Borders | H21: *** | I21: Highland | J21: *** | K21: Moray | L21: ***
A22: 310 | B22: North Ayrshire | C22: North Lanarkshire | D22: **** | E22: Inverclyde | F22: **** | G22: Clackmannanshire | H22: **** | I22: West Dunbartonshire | J22: **** | K22: West Lothian | L22: ****
A23: 320 | B23: North Lanarkshire | C23: Clackmannanshire | D23: ***** | E23: East Ayrshire | F23: ***** | G23: Falkirk | H23: **** | I23: West Lothian | J23: **** | K23: North Ayrshire | L23: ****
A24: 330 | B24: Orkney Islands | C24: Scottish Borders | D24: **** | E24: Highland | F24: **** | G24: Na h-Eileanan Siar | H24: **** | I24: Moray | J24: **** | K24: Shetland Islands | L24: ****
A25: 340 | B25: Perth & Kinross | C25: Scottish Borders | D25: **** | E25: Argyll and Bute | F25: **** | G25: Aberdeenshire | H25: **** | I25: Stirling | J25: **** | K25: Highland | L25: ****
A26: 350 | B26: Renfrewshire | C26: Fife | D26: **** | E26: Falkirk | F26: **** | G26: Clackmannanshire | H26: **** | I26: West Dunbartonshire | J26: **** | K26: South Lanarkshire | L26: ****
A27: 355 | B27: Scottish Borders | C27: Highland | D27: ***** | E27: Angus | F27: **** | G27: Dumfries and Galloway | H27: **** | I27: Argyll and Bute | J27: **** | K27: Perth and Kinross | L27: ****
A28: 360 | B28: Shetland Islands | C28: Orkney Islands | D28: **** | E28: Moray | F28: **** | G28: Highland | H28: **** | I28: Scottish Borders | J28: **** | K28: Angus | L28: ***
A29: 370 | B29: South Ayrshire | C29: Argyll and Bute | D29: ***** | E29: Angus | F29: **** | G29: Dumfries and Galloway | H29: **** | I29: Highland | J29: **** | K29: Scottish Borders | L29: ****
A30: 380 | B30: South Lanarkshire | C30: Fife | D30: ***** | E30: Falkirk | F30: **** | G30: West Lothian | H30: **** | I30: Clackmannanshire | J30: **** | K30: North Lanarkshire | L30: ****
A31: 390 | B31: Stirling | C31: Aberdeenshire | D31: **** | E31: Perth and Kinross | F31: **** | G31: East Lothian | H31: **** | I31: South Ayrshire | J31: **** | K31: Fife | L31: ****
A32: 395 | B32: West Dunbartonshire | C32: Inverclyde | D32: **** | E32: Renfrewshire | F32: **** | G32: North Ayrshire | H32: **** | I32: Clackmannanshire | J32: **** | K32: Midlothian | L32: ****
A33: 400 | B33: West Lothian | C33: Clackmannanshire | D33: **** | E33: South Lanarkshire | F33: **** | G33: Midlothian | H33: **** | I33: North Lanarkshire | J33: **** | K33: Fife | L33: ****

Sheet REF CAs (hidden)
A1: 1 | B1: =INDEX($J$1:$K$32,MATCH(C39,$J$1:$J$32,0),2) -> 5 | C1: 8 | D1: 28 | E1: 4 | F1: 25 | I1: Aberdeen City | J1: Aberdeen City | K1: 1
A2: 2 | B2: 30 | C2: 24 | D2: 16 | E2: 26 | F2: 29 | I2: Aberdeenshire | J2: Aberdeenshire | K2: 2
A3: 3 | B3: 16 | C3: 7 | D3: 19 | E3: 26 | F3: 28 | I3: Angus | J3: Angus | K3: 3
A4: 4 | B4: 28 | C4: 7 | D4: 26 | E4: 16 | F4: 3 | I4: Argyll and Bute | J4: Argyll and Bute | K4: 4
A5: 5 | B5: 1 | C5: 8 | D5: 28 | E5: 4 | F5: 25 | I5: Clackmannanshire | J5: City of Edinburgh | K5: 5
A6: 6 | B6: 22 | C6: 32 | D6: 13 | E6: 29 | F6: 9 | I6: Dumfries and Galloway | J6: Clackmannanshire | K6: 6
A7: 7 | B7: 3 | C7: 16 | D7: 4 | E7: 26 | F7: 19 | I7: Dundee City | J7: Dumfries and Galloway | K7: 7
A8: 8 | B8: 1 | C8: 25 | D8: 7 | E8: 17 | F8: 28 | I8: East Ayrshire | J8: Dundee City | K8: 8
A9: 9 | B9: 22 | C9: 6 | D9: 13 | E9: 21 | F9: 32 | I9: East Dunbartonshire | J9: East Ayrshire | K9: 9
A10: 10 | B10: 12 | C10: 30 | D10: 11 | E10: 2 | F10: 24 | I10: East Lothian | J10: East Dunbartonshire | K10: 10
A11: 11 | B11: =INDEX($J$1:$K$32,MATCH(C49,$J$1:$J$32,0),2) -> 30 | C11: 18 | D11: 14 | E11: 2 | F11: 29 | I11: East Renfrewshire | J11: East Lothian | K11: 11
A12: 12 | B12: 10 | C12: 11 | D12: 30 | E12: 2 | F12: 18 | I12: Edinburgh | J12: East Renfrewshire | K12: 12
A13: 13 | B13: 29 | C13: 14 | D13: 6 | E13: 19 | F13: 3 | I13: Eilean Siar | J13: Falkirk | K13: 13
A14: 14 | B14: 29 | C14: 13 | D14: 6 | E14: 32 | F14: 25 | I14: Falkirk | J14: Fife | K14: 14
A15: 15 | B15: 8 | C15: 31 | D15: 17 | E15: 1 | F15: 25 | I15: Fife | J15: Glasgow City | K15: 15
A16: 16 | B16: 3 | C16: 26 | D16: 7 | E16: 19 | F16: 4 | I16: Glasgow City | J16: Highland | K16: 16
A17: 17 | B17: 31 | C17: 21 | D17: 22 | E17: 9 | F17: 25 | I17: Highland | J17: Inverclyde | K17: 17
A18: 18 | B18: 32 | C18: 14 | D18: 6 | E18: 29 | F18: 11 | I18: Inverclyde | J18: Midlothian | K18: 18
A19: 19 | B19: 3 | C19: 16 | D19: 7 | E19: 13 | F19: 26 | I19: Midlothian | J19: Moray | K19: 19
A20: 20 | B20: 23 | C20: 7 | D20: 26 | E20: 16 | F20: 19 | I20: Moray | J20: Na h-Eileanan Siar | K20: 20
A21: 21 | B21: =INDEX($J$1:$K$32,MATCH(C59,$J$1:$J$32,0),2) -> 22 | C21: 17 | D21: 6 | E21: 31 | F21: 32 | I21: North Ayrshire | J21: North Ayrshire | K21: 21
A22: 22 | B22: 6 | C22: 9 | D22: 13 | E22: 32 | F22: 21 | I22: North Lanarkshire | J22: North Lanarkshire | K22: 22
A23: 23 | B23: 26 | C23: 16 | D23: 20 | E23: 19 | F23: 27 | I23: Orkney Islands | J23: Orkney Islands | K23: 23
A24: 24 | B24: 26 | C24: 4 | D24: 2 | E24: 30 | F24: 16 | I24: Perth and Kinross | J24: Perth and Kinross | K24: 24
A25: 25 | B25: 14 | C25: 13 | D25: 6 | E25: 31 | F25: 29 | I25: Renfrewshire | J25: Renfrewshire | K25: 25
A26: 26 | B26: 16 | C26: 3 | D26: 7 | E26: 4 | F26: 24 | I26: Scottish Borders | J26: Scottish Borders | K26: 26
A27: 27 | B27: 23 | C27: 19 | D27: 16 | E27: 26 | F27: 3 | I27: Shetland Islands | J27: Shetland Islands | K27: 27
A28: 28 | B28: 4 | C28: 3 | D28: 7 | E28: 16 | F28: 26 | I28: South Ayrshire | J28: South Ayrshire | K28: 28
A29: 29 | B29: 14 | C29: 13 | D29: 32 | E29: 6 | F29: 22 | I29: South Lanarkshire | J29: South Lanarkshire | K29: 29
A30: 30 | B30: 2 | C30: 24 | D30: 11 | E30: 28 | F30: 14 | I30: Stirling | J30: Stirling | K30: 30
A31: 31 | B31: =INDEX($J$1:$K$32,MATCH(C69,$J$1:$J$32,0),2) -> 17 | C31: 25 | D31: 21 | E31: 6 | F31: 18 | I31: West Dunbartonshire | J31: West Dunbartonshire | K31: 31
A32: 32 | B32: 6 | C32: 29 | D32: 18 | E32: 22 | F32: 14 | I32: West Lothian | J32: West Lothian | K32: 32
A39: 1 | B39: Aberdeen City | C39: City of Edinburgh | D39: Dundee City | E39: South Ayrshire | F39: Argyll and Bute | G39: Renfrewshire
A40: 2 | B40: Aberdeenshire | C40: Stirling | D40: Perth and Kinross | E40: Highland | F40: Scottish Borders | G40: South Lanarkshire
A41: 3 | B41: Angus | C41: Highland | D41: Dumfries and Galloway | E41: Moray | F41: Scottish Borders | G41: South Ayrshire
A42: 4 | B42: Argyll & Bute | C42: South Ayrshire | D42: Dumfries and Galloway | E42: Scottish Borders | F42: Highland | G42: Angus
A43: 5 | B43: City of Edinburgh | C43: Aberdeen City | D43: Dundee City | E43: South Ayrshire | F43: Argyll and Bute | G43: Renfrewshire
A44: 6 | B44: Clackmannanshire | C44: North Lanarkshire | D44: West Lothian | E44: Falkirk | F44: South Lanarkshire | G44: East Ayrshire
A45: 7 | B45: Dumfries & Galloway | C45: Angus | D45: Highland | E45: Argyll and Bute | F45: Scottish Borders | G45: Moray
A46: 8 | B46: Dundee City | C46: Aberdeen City | D46: Renfrewshire | E46: Dumfries and Galloway | F46: Inverclyde | G46: South Ayrshire
A47: 9 | B47: East Ayrshire | C47: North Lanarkshire | D47: Clackmannanshire | E47: Falkirk | F47: North Ayrshire | G47: West Lothian
A48: 10 | B48: East Dunbartonshire | C48: East Renfrewshire | D48: Stirling | E48: East Lothian | F48: Aberdeenshire | G48: Perth and Kinross
A49: 11 | B49: East Lothian | C49: Stirling | D49: Midlothian | E49: Fife | F49: Aberdeenshire | G49: South Lanarkshire
A50: 12 | B50: East Renfrewshire | C50: East Dunbartonshire | D50: East Lothian | E50: Stirling | F50: Aberdeenshire | G50: Midlothian
A51: 13 | B51: Falkirk | C51: South Lanarkshire | D51: Fife | E51: Clackmannanshire | F51: Moray | G51: Angus
A52: 14 | B52: Fife | C52: South Lanarkshire | D52: Falkirk | E52: Clackmannanshire | F52: West Lothian | G52: Renfrewshire
A53: 15 | B53: Glasgow City | C53: Dundee City | D53: West Dunbartonshire | E53: Inverclyde | F53: Aberdeen City | G53: Renfrewshire
A54: 16 | B54: Highland | C54: Angus | D54: Scottish Borders | E54: Dumfries and Galloway | F54: Moray | G54: Argyll and Bute
A55: 17 | B55: Inverclyde | C55: West Dunbartonshire | D55: North Ayrshire | E55: North Lanarkshire | F55: East Ayrshire | G55: Renfrewshire
A56: 18 | B56: Midlothian | C56: West Lothian | D56: Fife | E56: Clackmannanshire | F56: South Lanarkshire | G56: East Lothian
A57: 19 | B57: Moray | C57: Angus | D57: Highland | E57: Dumfries and Galloway | F57: Falkirk | G57: Scottish Borders
A58: 20 | B58: Na h-Eileanan Siar | C58: Orkney Islands | D58: Dumfries and Galloway | E58: Scottish Borders | F58: Highland | G58: Moray
A59: 21 | B59: North Ayrshire | C59: North Lanarkshire | D59: Inverclyde | E59: Clackmannanshire | F59: West Dunbartonshire | G59: West Lothian
A60: 22 | B60: North Lanarkshire | C60: Clackmannanshire | D60: East Ayrshire | E60: Falkirk | F60: West Lothian | G60: North Ayrshire
A61: 23 | B61: Orkney Islands | C61: Scottish Borders | D61: Highland | E61: Na h-Eileanan Siar | F61: Moray | G61: Shetland Islands
A62: 24 | B62: Perth & Kinross | C62: Scottish Borders | D62: Argyll and Bute | E62: Aberdeenshire | F62: Stirling | G62: Highland
A63: 25 | B63: Renfrewshire | C63: Fife | D63: Falkirk | E63: Clackmannanshire | F63: West Dunbartonshire | G63: South Lanarkshire
A64: 26 | B64: Scottish Borders | C64: Highland | D64: Angus | E64: Dumfries and Galloway | F64: Argyll and Bute | G64: Perth and Kinross
A65: 27 | B65: Shetland Islands | C65: Orkney Islands | D65: Moray | E65: Highland | F65: Scottish Borders | G65: Angus
A66: 28 | B66: South Ayrshire | C66: Argyll and Bute | D66: Angus | E66: Dumfries and Galloway | F66: Highland | G66: Scottish Borders
A67: 29 | B67: South Lanarkshire | C67: Fife | D67: Falkirk | E67: West Lothian | F67: Clackmannanshire | G67: North Lanarkshire
A68: 30 | B68: Stirling | C68: Aberdeenshire | D68: Perth and Kinross | E68: East Lothian | F68: South Ayrshire | G68: Fife
A69: 31 | B69: West Dunbartonshire | C69: Inverclyde | D69: Renfrewshire | E69: North Ayrshire | F69: Clackmannanshire | G69: Midlothian
A70: 32 | B70: West Lothian | C70: Clackmannanshire | D70: South Lanarkshire | E70: Midlothian | F70: North Lanarkshire | G70: Fife
